BODY,BODY NAME,SUPPLIER CODE,SUPPLIER NAME,TRANSACTION NUMBER,INVOICE DATE,THEIR REF,NARR1,PAID DATE,VAT AMOUNT,EXCLUSIVE AMOUNT,INCLUSIVE AMOUNT,EXPENSE AREA,EXPENSE TYPE,EXPENSE CODE
http://statistics.data.gov.uk/id/local-authority/12UE,Huntingdonshire District Council,203173,Quartix Ltd,91273,19/12/2023,781542,ops rental from 191223,12/01/2024,4.77,23.85,28.62,Grounds Maintenance,Land Line Rental,64077
http://statistics.data.gov.uk/id/local-authority/12UE,Huntingdonshire District Council,200398,IAN'S TYRE & EXHAUST CENTRE IAN'S TYRE & EXHAUST CENTRE,90715,06/12/2023,INV-7360,Ground Maintenance Vehicle Tyres,02/01/2024,80,400,480,Grounds Maintenance,Tyres,62926
http://statistics.data.gov.uk/id/local-authority/12UE,Huntingdonshire District Council,203173,Quartix Ltd,91273,19/12/2023,781542,ops rental from 191223,12/01/2024,4.77,23.85,28.62,Grounds Maintenance,Land Line Rental,64077
http://statistics.data.gov.uk/id/local-authority/12UE,Huntingdonshire District Council,203173,Quartix Ltd,91273,19/12/2023,781542,ops rental from 191223,12/01/2024,4.77,23.85,28.62,Grounds Maintenance,Land Line Rental,64077
http://statistics.data.gov.uk/id/local-authority/12UE,Huntingdonshire District Council,203173,Quartix Ltd,91273,19/12/2023,781542,ops rental from 191223,12/01/2024,4.77,23.85,28.62,Grounds Maintenance,Land Line Rental,64077
http://statistics.data.gov.uk/id/local-authority/12UE,Huntingdonshire District Council,200669,REESINK  UK LTD REESINK  UK LTD,93556,22/01/2024,PSI2401974,AE16BWJ Seal/Light/Washer/Shaft,20/02/2024,131.45,657.25,788.7,Grounds Maintenance,Vehicle Repairs And Maintenance,60904
http://statistics.data.gov.uk/id/local-authority/12UE,Huntingdonshire District Council,203173,Quartix Ltd,91273,19/12/2023,781542,ops rental from 191223,12/01/2024,4.77,23.85,28.62,Grounds Maintenance,Land Line Rental,64077
http://statistics.data.gov.uk/id/local-authority/12UE,Huntingdonshire District Council,200000,A C COMMERCIALS A C COMMERCIALS,92885,27/01/2024,INV0026267,AF07OHA Turbo,15/02/2024,53.33,266.64,319.97,Hinchingbrooke Park Management,Vehicle Repairs And Maintenance,60904
http://statistics.data.gov.uk/id/local-authority/12UE,Huntingdonshire District Council,200721,SILVER SHIELD WINDSCREENS SILVER SHIELD WINDSCREENS,92576,15/01/2024,SSA81103,AF07OHA Replace Rear Screen & Door Glass,08/02/2024,114.8,574,688.8,Hinchingbrooke Park Management,Vehicle Accident Damage,60925
http://statistics.data.gov.uk/id/local-authority/12UE,Huntingdonshire District Council,200028,AEBI SCHMIDT AEBI SCHMIDT,92856,08/01/2024,60296022,AJ66AVV Control Panel,05/02/2024,260.39,1301.97,1562.36,Street Cleansing,Vehicle Repairs And Maintenance,60904
http://statistics.data.gov.uk/id/local-authority/12UE,Huntingdonshire District Council,200028,AEBI SCHMIDT AEBI SCHMIDT,93526,25/01/2024,60296595,AJ66AVV Alternator,20/02/2024,120.43,602.14,722.57,Street Cleansing,Vehicle Repairs And Maintenance,60904
http://statistics.data.gov.uk/id/local-authority/12UE,Huntingdonshire District Council,203173,Quartix Ltd,91273,19/12/2023,781542,ops rental from 191223,12/01/2024,4.77,23.85,28.62,Street Cleansing,Land Line Rental,64077
http://statistics.data.gov.uk/id/local-authority/12UE,Huntingdonshire District Council,200515,M & N VEHICLE SERVICES M & N VEHICLE SERVICES,95242,29/02/2024,58066,BG17OMA Collect/MOT/Defects/Deliver,22/03/2024,2035.8,10178.99,12214.79,Bulky Refuse,Vehicle Repairs And Maintenance,60904
http://statistics.data.gov.uk/id/local-authority/12UE,Huntingdonshire District Council,200515,M & N VEHICLE SERVICES M & N VEHICLE SERVICES,95242,29/02/2024,58066,BG17OMA Collect/MOT/Defects/Deliver,22/03/2024,0,182,182,Bulky Refuse,Vehicle Repairs And Maintenance,60904
http://statistics.data.gov.uk/id/local-authority/12UE,Huntingdonshire District Council,200042,ALFA TAIL LIFTS LTD ALFA TAIL LIFTS LTD,95306,28/02/2024,648396,BG17OMA Tail Lift Repairs,22/03/2024,78.99,394.96,473.95,Bulky Refuse,Vehicle Repairs And Maintenance,60904
http://statistics.data.gov.uk/id/local-authority/12UE,Huntingdonshire District Council,200351,GUEST MOTORS LTD GUEST MOTORS LTD,91539,22/12/2023,18532191,OPS CHASSIS,12/01/2024,70.58,352.9,423.48,Bulky Refuse,Vehicle Repairs And Maintenance,60904
http://statistics.data.gov.uk/id/local-authority/12UE,Huntingdonshire District Council,200042,ALFA TAIL LIFTS LTD ALFA TAIL LIFTS LTD,95305,15/02/2024,646851,BG17OMA Tail Lift Repairs,19/03/2024,61.86,309.28,371.14,Bulky Refuse,Vehicle Repairs And Maintenance,60904
http://statistics.data.gov.uk/id/local-authority/12UE,Huntingdonshire District Council,200398,IAN'S TYRE & EXHAUST CENTRE IAN'S TYRE & EXHAUST CENTRE,92890,25/01/2024,INV-7764,BG17OMA 225/75r/16c Tyres,15/02/2024,68,340,408,Bulky Refuse,Tyres,62926
http://statistics.data.gov.uk/id/local-authority/12UE,Huntingdonshire District Council,200236,DENNIS EAGLE LTD DENNIS EAGLE LTD,91663,04/10/2023,485473,DE EcoTrak/Waste Operator,12/01/2024,36,180,216,Bulky Refuse,Land Line Rental,64077
http://statistics.data.gov.uk/id/local-authority/12UE,Huntingdonshire District Council,200521,MAGNUM TYRES LTD MAGNUM TYRES LTD,95244,23/02/2024,74737,BJ17KYT Tyres,19/03/2024,205.75,1028.75,1234.5,Vehicle Maintenance,Tyres,62926
http://statistics.data.gov.uk/id/local-authority/12UE,Huntingdonshire District Council,203173,Quartix Ltd,91273,19/12/2023,781542,ops rental from 191223,12/01/2024,4.77,23.85,28.62,Street Cleansing,Land Line Rental,64077
http://statistics.data.gov.uk/id/local-authority/12UE,Huntingdonshire District Council,200322,G&C COACHWORKS LTD G&C COACHWORKS LTD,94084,02/02/2024,12036,BW66XHV Repairs NS Front Wing,29/02/2024,114,570,684,Grounds Maintenance,Vehicle Accident Damage,60925
http://statistics.data.gov.uk/id/local-authority/12UE,Huntingdonshire District Council,203173,Quartix Ltd,91273,19/12/2023,781542,ops rental from 191223,12/01/2024,4.77,23.85,28.62,Grounds Maintenance,Land Line Rental,64077
http://statistics.data.gov.uk/id/local-authority/12UE,Huntingdonshire District Council,200308,FRANK RATCLIFFE & SON FRANK RATCLIFFE & SON,91834,03/01/2024,110656,CE14BTF Recover To Hard Standing,26/01/2024,114.8,574,688.8,Green Waste Collection,Vehicle Maintenance - External,60921
http://statistics.data.gov.uk/id/local-authority/12UE,Huntingdonshire District Council,200398,IAN'S TYRE & EXHAUST CENTRE IAN'S TYRE & EXHAUST CENTRE,90715,06/12/2023,INV-7360,Ground Maintenance Vehicle Tyres,02/01/2024,54,270,324,Grounds Maintenance,Tyres,62926
http://statistics.data.gov.uk/id/local-authority/12UE,Huntingdonshire District Council,203173,Quartix Ltd,91273,19/12/2023,781542,ops rental from 191223,12/01/2024,4.77,23.85,28.62,Grounds Maintenance,Land Line Rental,64077
http://statistics.data.gov.uk/id/local-authority/12UE,Huntingdonshire District Council,200398,IAN'S TYRE & EXHAUST CENTRE IAN'S TYRE & EXHAUST CENTRE,90715,06/12/2023,INV-7360,Ground Maintenance Vehicle Tyres,02/01/2024,54,270,324,Grounds Maintenance,Tyres,62926
http://statistics.data.gov.uk/id/local-authority/12UE,Huntingdonshire District Council,203173,Quartix Ltd,91273,19/12/2023,781542,ops rental from 191223,12/01/2024,4.77,23.85,28.62,Grounds Maintenance,Land Line Rental,64077
http://statistics.data.gov.uk/id/local-authority/12UE,Huntingdonshire District Council,200279,ERNEST DOE & SONS ERNEST DOE & SONS,92597,13/12/2023,780575,Rollers/Sleeves,01/02/2024,65.98,329.92,395.9,Grounds Maintenance,Vehicle Repairs And Maintenance,60904
http://statistics.data.gov.uk/id/local-authority/12UE,Huntingdonshire District Council,200279,ERNEST DOE & SONS ERNEST DOE & SONS,92596,06/12/2023,780350,EU17AEK/EU17AEJ Rollers/Rod Ends/Lights,01/02/2024,45.6,228,273.6,Grounds Maintenance,Vehicle Repairs And Maintenance,60904
http://statistics.data.gov.uk/id/local-authority/12UE,Huntingdonshire District Council,200398,IAN'S TYRE & EXHAUST CENTRE IAN'S TYRE & EXHAUST CENTRE,90715,06/12/2023,INV-7360,Ground Maintenance Vehicle Tyres,02/01/2024,27,135,162,Grounds Maintenance,Tyres,62926
http://statistics.data.gov.uk/id/local-authority/12UE,Huntingdonshire District Council,203173,Quartix Ltd,91273,19/12/2023,781542,ops rental from 191223,12/01/2024,4.77,23.85,28.62,Grounds Maintenance,Land Line Rental,64077
http://statistics.data.gov.uk/id/local-authority/12UE,Huntingdonshire District Council,200279,ERNEST DOE & SONS ERNEST DOE & SONS,92597,13/12/2023,780575,Rollers/Sleeves,01/02/2024,65.98,329.92,395.9,Grounds Maintenance,Vehicle Repairs And Maintenance,60904
http://statistics.data.gov.uk/id/local-authority/12UE,Huntingdonshire District Council,200279,ERNEST DOE & SONS ERNEST DOE & SONS,92596,06/12/2023,780350,EU17AEK/EU17AEJ Rollers/Rod Ends/Lights,01/02/2024,45.6,228,273.6,Grounds Maintenance,Vehicle Repairs And Maintenance,60904
http://statistics.data.gov.uk/id/local-authority/12UE,Huntingdonshire District Council,203173,Quartix Ltd,91273,19/12/2023,781542,ops rental from 191223,12/01/2024,4.77,23.85,28.62,Grounds Maintenance,Land Line Rental,64077
http://statistics.data.gov.uk/id/local-authority/12UE,Huntingdonshire District Council,200398,IAN'S TYRE & EXHAUST CENTRE IAN'S TYRE & EXHAUST CENTRE,90715,06/12/2023,INV-7360,Ground Maintenance Vehicle Tyres,02/01/2024,42,210,252,Grounds Maintenance,Tyres,62926
http://statistics.data.gov.uk/id/local-authority/12UE,Huntingdonshire District Council,203173,Quartix Ltd,91273,19/12/2023,781542,ops rental from 191223,12/01/2024,4.77,23.85,28.62,Grounds Maintenance,Land Line Rental,64077
http://statistics.data.gov.uk/id/local-authority/12UE,Huntingdonshire District Council,203173,Quartix Ltd,91273,19/12/2023,781542,ops rental from 191223,12/01/2024,4.77,23.85,28.62,Grounds Maintenance,Land Line Rental,64077
http://statistics.data.gov.uk/id/local-authority/12UE,Huntingdonshire District Council,203173,Quartix Ltd,91273,19/12/2023,781542,ops rental from 191223,12/01/2024,4.77,23.85,28.62,Grounds Maintenance,Land Line Rental,64077
http://statistics.data.gov.uk/id/local-authority/12UE,Huntingdonshire District Council,200279,ERNEST DOE & SONS ERNEST DOE & SONS,91859,05/01/2024,781003,EU21CDK Bumper/Bar/Pin,26/01/2024,78.33,391.65,469.98,Grounds Maintenance,Vehicle Repairs And Maintenance,60904
http://statistics.data.gov.uk/id/local-authority/12UE,Huntingdonshire District Council,200279,ERNEST DOE & SONS ERNEST DOE & SONS,91858,15/12/2023,780647,EU21CDK Bumper Bar,15/01/2024,51.7,258.5,310.2,Grounds Maintenance,Vehicle Repairs And Maintenance,60904
http://statistics.data.gov.uk/id/local-authority/12UE,Huntingdonshire District Council,203173,Quartix Ltd,91273,19/12/2023,781542,ops rental from 191223,12/01/2024,4.77,23.85,28.62,Grounds Maintenance,Land Line Rental,64077
http://statistics.data.gov.uk/id/local-authority/12UE,Huntingdonshire District Council,203173,Quartix Ltd,91273,19/12/2023,781542,ops rental from 191223,12/01/2024,4.77,23.85,28.62,Grounds Maintenance,Land Line Rental,64077
http://statistics.data.gov.uk/id/local-authority/12UE,Huntingdonshire District Council,203173,Quartix Ltd,91273,19/12/2023,781542,ops rental from 191223,12/01/2024,4.77,23.85,28.62,Grounds Maintenance,Land Line Rental,64077
http://statistics.data.gov.uk/id/local-authority/12UE,Huntingdonshire District Council,203173,Quartix Ltd,91273,19/12/2023,781542,ops rental from 191223,12/01/2024,4.77,23.85,28.62,Street Cleansing,Land Line Rental,64077
http://statistics.data.gov.uk/id/local-authority/12UE,Huntingdonshire District Council,203173,Quartix Ltd,91273,19/12/2023,781542,ops rental from 191223,12/01/2024,4.77,23.85,28.62,Grounds Maintenance,Land Line Rental,64077
http://statistics.data.gov.uk/id/local-authority/12UE,Huntingdonshire District Council,202559,BUCHER MUNICIPAL LTD,91033,11/12/2023,62272900,ops screw socket,04/01/2024,67.76,338.79,406.55,Street Cleansing,Vehicle Repairs And Maintenance,60904
http://statistics.data.gov.uk/id/local-authority/12UE,Huntingdonshire District Council,200000,A C COMMERCIALS A C COMMERCIALS,92858,08/01/2024,INV0025957,Lamps,05/02/2024,27.74,138.7,166.44,Street Cleansing,Vehicle Repairs And Maintenance,60904
http://statistics.data.gov.uk/id/local-authority/12UE,Huntingdonshire District Council,202559,BUCHER MUNICIPAL LTD,94048,31/01/2024,62285751,LD23XXH Flaps,27/02/2024,50.32,251.61,301.93,Street Cleansing,Vehicle Repairs And Maintenance,60904
http://statistics.data.gov.uk/id/local-authority/12UE,Huntingdonshire District Council,200308,FRANK RATCLIFFE & SON FRANK RATCLIFFE & SON,94033,29/01/2024,110971,LD23XXH Pull Vehicle Onto Hard Standing,27/02/2024,112.62,563.12,675.74,Street Cleansing,Vehicle Maintenance - External,60921
http://statistics.data.gov.uk/id/local-authority/12UE,Huntingdonshire District Council,200000,A C COMMERCIALS A C COMMERCIALS,92858,08/01/2024,INV0025957,Lamps,05/02/2024,27.74,138.7,166.44,Street Cleansing,Vehicle Repairs And Maintenance,60904
http://statistics.data.gov.uk/id/local-authority/12UE,Huntingdonshire District Council,200079,BANDVULC TRUCK TYRES BANDVULC TRUCK TYRES,94286,28/02/2024,197348,Tyres P:2 W:0,22/03/2024,18.13,90.66,108.79,Street Cleansing,Tyres,62926
http://statistics.data.gov.uk/id/local-authority/12UE,Huntingdonshire District Council,203173,Quartix Ltd,91273,19/12/2023,781542,ops rental from 191223,12/01/2024,4.77,23.85,28.62,Street Cleansing,Land Line Rental,64077
http://statistics.data.gov.uk/id/local-authority/12UE,Huntingdonshire District Council,200308,FRANK RATCLIFFE & SON FRANK RATCLIFFE & SON,91029,09/12/2023,110428,ops vehicle recovery,02/01/2024,107.8,539,646.8,Narrow Access,Vehicle Maintenance - External,60921
http://statistics.data.gov.uk/id/local-authority/12UE,Huntingdonshire District Council,200079,BANDVULC TRUCK TYRES BANDVULC TRUCK TYRES,94286,28/02/2024,197348,Tyres P:2 W:0,22/03/2024,12.38,61.91,74.29,Narrow Access,Tyres,62926
http://statistics.data.gov.uk/id/local-authority/12UE,Huntingdonshire District Council,200236,DENNIS EAGLE LTD DENNIS EAGLE LTD,91663,04/10/2023,485473,DE EcoTrak/Waste Operator,12/01/2024,80,400,480,Narrow Access,Land Line Rental,64077
http://statistics.data.gov.uk/id/local-authority/12UE,Huntingdonshire District Council,200236,DENNIS EAGLE LTD DENNIS EAGLE LTD,91663,04/10/2023,485473,DE EcoTrak/Waste Operator,12/01/2024,80,400,480,Domestic Waste Collection,Land Line Rental,64077
http://statistics.data.gov.uk/id/local-authority/12UE,Huntingdonshire District Council,203173,Quartix Ltd,91273,19/12/2023,781542,ops rental from 191223,12/01/2024,4.77,23.85,28.62,Street Cleansing,Land Line Rental,64077
http://statistics.data.gov.uk/id/local-authority/12UE,Huntingdonshire District Council,200551,MOTOR SERV LTD MOTOR SERV LTD,93520,18/01/2024,MHNV498857,LL67XCH Bearing/Flywheel,20/02/2024,150.87,754.34,905.21,Street Cleansing,Vehicle Repairs And Maintenance,60904
http://statistics.data.gov.uk/id/local-authority/12UE,Huntingdonshire District Council,203173,Quartix Ltd,91273,19/12/2023,781542,ops rental from 191223,12/01/2024,4.77,23.85,28.62,Street Cleansing,Land Line Rental,64077
http://statistics.data.gov.uk/id/local-authority/12UE,Huntingdonshire District Council,203173,Quartix Ltd,91273,19/12/2023,781542,ops rental from 191223,12/01/2024,4.77,23.85,28.62,Grounds Maintenance,Land Line Rental,64077
http://statistics.data.gov.uk/id/local-authority/12UE,Huntingdonshire District Council,203173,Quartix Ltd,91273,19/12/2023,781542,ops rental from 191223,12/01/2024,4.77,23.85,28.62,Grounds Maintenance,Land Line Rental,64077
http://statistics.data.gov.uk/id/local-authority/12UE,Huntingdonshire District Council,203173,Quartix Ltd,91273,19/12/2023,781542,ops rental from 191223,12/01/2024,4.77,23.85,28.62,Grounds Maintenance,Land Line Rental,64077
http://statistics.data.gov.uk/id/local-authority/12UE,Huntingdonshire District Council,203173,Quartix Ltd,91273,19/12/2023,781542,ops rental from 191223,12/01/2024,4.77,23.85,28.62,Grounds Maintenance,Land Line Rental,64077
http://statistics.data.gov.uk/id/local-authority/12UE,Huntingdonshire District Council,203173,Quartix Ltd,91273,19/12/2023,781542,ops rental from 191223,12/01/2024,4.77,23.85,28.62,Grounds Maintenance,Land Line Rental,64077
http://statistics.data.gov.uk/id/local-authority/12UE,Huntingdonshire District Council,203173,Quartix Ltd,91273,19/12/2023,781542,ops rental from 191223,12/01/2024,4.77,23.85,28.62,Grounds Maintenance,Land Line Rental,64077
http://statistics.data.gov.uk/id/local-authority/12UE,Huntingdonshire District Council,200521,MAGNUM TYRES LTD MAGNUM TYRES LTD,95315,07/03/2024,74905,LM67UYB 195/75R 16C Tyres,27/03/2024,61.28,306.4,367.68,Grounds Maintenance,Tyres,62926
http://statistics.data.gov.uk/id/local-authority/12UE,Huntingdonshire District Council,203173,Quartix Ltd,91273,19/12/2023,781542,ops rental from 191223,12/01/2024,4.77,23.85,28.62,Grounds Maintenance,Land Line Rental,64077
http://statistics.data.gov.uk/id/local-authority/12UE,Huntingdonshire District Council,200000,A C COMMERCIALS A C COMMERCIALS,94037,06/02/2024,INV0026432,LM67UYC Beacon,29/02/2024,105.32,526.62,631.94,Grounds Maintenance,Vehicle Repairs And Maintenance,60904
http://statistics.data.gov.uk/id/local-authority/12UE,Huntingdonshire District Council,203173,Quartix Ltd,91273,19/12/2023,781542,ops rental from 191223,12/01/2024,4.77,23.85,28.62,Grounds Maintenance,Land Line Rental,64077
http://statistics.data.gov.uk/id/local-authority/12UE,Huntingdonshire District Council,200042,ALFA TAIL LIFTS LTD ALFA TAIL LIFTS LTD,91835,03/01/2024,638884,LO67LGK Repairs To Tail Lift,26/01/2024,95.87,479.35,575.22,Street Cleansing,Vehicle Repairs And Maintenance,60904
http://statistics.data.gov.uk/id/local-authority/12UE,Huntingdonshire District Council,200815,VEHICLE WEIGHTING SOLUTIONS LTD VEHICLE WEIGHTING SOLUTIONS LTD,94029,08/02/2024,INV54148,LO67LGK Repair Onboard Weigher,29/02/2024,73.08,365.39,438.47,Street Cleansing,Vehicle Repairs And Maintenance,60904
http://statistics.data.gov.uk/id/local-authority/12UE,Huntingdonshire District Council,203173,Quartix Ltd,91273,19/12/2023,781542,ops rental from 191223,12/01/2024,4.77,23.85,28.62,Street Cleansing,Land Line Rental,64077
http://statistics.data.gov.uk/id/local-authority/12UE,Huntingdonshire District Council,203173,Quartix Ltd,91273,19/12/2023,781542,ops rental from 191223,12/01/2024,4.77,23.85,28.62,Street Cleansing,Land Line Rental,64077
http://statistics.data.gov.uk/id/local-authority/12UE,Huntingdonshire District Council,203173,Quartix Ltd,91273,19/12/2023,781542,ops rental from 191223,12/01/2024,4.77,23.85,28.62,Street Cleansing,Land Line Rental,64077
http://statistics.data.gov.uk/id/local-authority/12UE,Huntingdonshire District Council,200523,MARSHALL MOTOR GROUP LTD MARSHALL MOTOR GROUP LTD,93528,23/01/2024,54352523,LO67OEX Caliper/Brake Kit/Wheel Badge,20/02/2024,159.43,797.17,956.6,Street Cleansing,Vehicle Repairs And Maintenance,60904
http://statistics.data.gov.uk/id/local-authority/12UE,Huntingdonshire District Council,203173,Quartix Ltd,91273,19/12/2023,781542,ops rental from 191223,12/01/2024,4.77,23.85,28.62,Street Cleansing,Land Line Rental,64077
http://statistics.data.gov.uk/id/local-authority/12UE,Huntingdonshire District Council,200000,A C COMMERCIALS A C COMMERCIALS,94038,06/02/2024,INV0026431,LP17HTX Light Bar,29/02/2024,66.46,332.32,398.78,Grounds Maintenance,Vehicle Repairs And Maintenance,60904
http://statistics.data.gov.uk/id/local-authority/12UE,Huntingdonshire District Council,203173,Quartix Ltd,91273,19/12/2023,781542,ops rental from 191223,12/01/2024,4.77,23.85,28.62,Grounds Maintenance,Land Line Rental,64077
http://statistics.data.gov.uk/id/local-authority/12UE,Huntingdonshire District Council,203173,Quartix Ltd,91273,19/12/2023,781542,ops rental from 191223,12/01/2024,4.77,23.85,28.62,Grounds Maintenance,Land Line Rental,64077
http://statistics.data.gov.uk/id/local-authority/12UE,Huntingdonshire District Council,203173,Quartix Ltd,91273,19/12/2023,781542,ops rental from 191223,12/01/2024,4.77,23.85,28.62,Street Cleansing,Land Line Rental,64077
http://statistics.data.gov.uk/id/local-authority/12UE,Huntingdonshire District Council,203173,Quartix Ltd,91273,19/12/2023,781542,ops rental from 191223,12/01/2024,4.77,23.85,28.62,Street Cleansing,Land Line Rental,64077
http://statistics.data.gov.uk/id/local-authority/12UE,Huntingdonshire District Council,203173,Quartix Ltd,91273,19/12/2023,781542,ops rental from 191223,12/01/2024,4.77,23.85,28.62,Street Cleansing,Land Line Rental,64077
http://statistics.data.gov.uk/id/local-authority/12UE,Huntingdonshire District Council,200060,ARTHUR IBBETT LTD ARTHUR IBBETT LTD,92570,12/01/2024,166329,Winter Overhaul Parts,01/02/2024,468.18,2340.89,2809.07,Grounds Maintenance,Vehicle Repairs And Maintenance,60904
http://statistics.data.gov.uk/id/local-authority/12UE,Huntingdonshire District Council,200279,ERNEST DOE & SONS ERNEST DOE & SONS,91498,22/12/2023,780885,ops equipment,12/01/2024,173.74,868.68,1042.42,Grounds Maintenance,Vehicle Repairs And Maintenance,60904
http://statistics.data.gov.uk/id/local-authority/12UE,Huntingdonshire District Council,200279,ERNEST DOE & SONS ERNEST DOE & SONS,90714,04/12/2023,780274,PM3074 Flail Parts,02/01/2024,131.38,656.92,788.3,Grounds Maintenance,Vehicle Repairs And Maintenance,60904
http://statistics.data.gov.uk/id/local-authority/12UE,Huntingdonshire District Council,200279,ERNEST DOE & SONS ERNEST DOE & SONS,95192,09/01/2024,781077,PM3062 Shackle Knife MU 080100,19/03/2024,92.53,462.67,555.2,Grounds Maintenance,Vehicle Repairs And Maintenance,60904
http://statistics.data.gov.uk/id/local-authority/12UE,Huntingdonshire District Council,200068,ATE ATE,94025,07/02/2024,IN478912,PM3029 Floor Board & Plug,29/02/2024,68.88,344.4,413.28,Grounds Maintenance,Vehicle Repairs And Maintenance,60904
http://statistics.data.gov.uk/id/local-authority/12UE,Huntingdonshire District Council,203173,Quartix Ltd,91273,19/12/2023,781542,ops rental from 191223,12/01/2024,4.77,23.85,28.62,Grounds Maintenance,Land Line Rental,64077
http://statistics.data.gov.uk/id/local-authority/12UE,Huntingdonshire District Council,203173,Quartix Ltd,91273,19/12/2023,781542,ops rental from 191223,12/01/2024,4.77,23.85,28.62,Grounds Maintenance,Land Line Rental,64077
http://statistics.data.gov.uk/id/local-authority/12UE,Huntingdonshire District Council,202362,R S AIR LTD,91039,07/12/2023,"A406, A410, A412, A411",OPS MULTIPLE,02/01/2024,37.5,187.5,225,Recycling Collections,Vehicle Maintenance - External,60921
http://statistics.data.gov.uk/id/local-authority/12UE,Huntingdonshire District Council,200079,BANDVULC TRUCK TYRES BANDVULC TRUCK TYRES,94286,28/02/2024,197348,Tyres P:2 W:0,22/03/2024,10.18,50.88,61.06,Recycling Collections,Tyres,62926
http://statistics.data.gov.uk/id/local-authority/12UE,Huntingdonshire District Council,200079,BANDVULC TRUCK TYRES BANDVULC TRUCK TYRES,91223,28/12/2023,195034,ops period 12,19/01/2024,68.63,343.16,411.79,Recycling Collections,Tyres,62926
http://statistics.data.gov.uk/id/local-authority/12UE,Huntingdonshire District Council,200236,DENNIS EAGLE LTD DENNIS EAGLE LTD,91663,04/10/2023,485473,DE EcoTrak/Waste Operator,12/01/2024,86.4,432,518.4,Recycling Collections,Land Line Rental,64077
http://statistics.data.gov.uk/id/local-authority/12UE,Huntingdonshire District Council,202362,R S AIR LTD,91039,07/12/2023,"A406, A410, A412, A411",OPS MULTIPLE,02/01/2024,37.5,187.5,225,Recycling Collections,Vehicle Maintenance - External,60921
http://statistics.data.gov.uk/id/local-authority/12UE,Huntingdonshire District Council,200308,FRANK RATCLIFFE & SON FRANK RATCLIFFE & SON,93553,24/01/2024,110875,VA21ZGO Pull Vehicle To Hard Standing,20/02/2024,105.5,527.5,633,Recycling Collections,Vehicle Maintenance - External,60921
http://statistics.data.gov.uk/id/local-authority/12UE,Huntingdonshire District Council,200079,BANDVULC TRUCK TYRES BANDVULC TRUCK TYRES,94286,28/02/2024,197348,Tyres P:2 W:0,22/03/2024,68.63,343.16,411.79,Recycling Collections,Tyres,62926
http://statistics.data.gov.uk/id/local-authority/12UE,Huntingdonshire District Council,200079,BANDVULC TRUCK TYRES BANDVULC TRUCK TYRES,91223,28/12/2023,195034,ops period 12,19/01/2024,13.63,68.16,81.79,Recycling Collections,Tyres,62926
http://statistics.data.gov.uk/id/local-authority/12UE,Huntingdonshire District Council,200236,DENNIS EAGLE LTD DENNIS EAGLE LTD,91663,04/10/2023,485473,DE EcoTrak/Waste Operator,12/01/2024,86.4,432,518.4,Recycling Collections,Land Line Rental,64077
http://statistics.data.gov.uk/id/local-authority/12UE,Huntingdonshire District Council,200236,DENNIS EAGLE LTD DENNIS EAGLE LTD,91284,21/12/2023,DE11639883,ops seat belt guide,12/01/2024,254.47,1272.36,1526.83,Domestic Waste Collection,Vehicle Repairs And Maintenance,60904
http://statistics.data.gov.uk/id/local-authority/12UE,Huntingdonshire District Council,200236,DENNIS EAGLE LTD DENNIS EAGLE LTD,95297,29/02/2024,DE11657873,VA21ZGO Latch/Bush,22/03/2024,74.17,370.87,445.04,Domestic Waste Collection,Vehicle Repairs And Maintenance,60904
http://statistics.data.gov.uk/id/local-authority/12UE,Huntingdonshire District Council,202362,R S AIR LTD,91038,07/12/2023,"A409,A407, A405, A404",OPS MULTIPLE,02/01/2024,37.5,187.5,225,Domestic Waste Collection,Vehicle Maintenance - External,60921
http://statistics.data.gov.uk/id/local-authority/12UE,Huntingdonshire District Council,200079,BANDVULC TRUCK TYRES BANDVULC TRUCK TYRES,91223,28/12/2023,195034,ops period 12,19/01/2024,69.88,349.42,419.3,Domestic Waste Collection,Tyres,62926
http://statistics.data.gov.uk/id/local-authority/12UE,Huntingdonshire District Council,200236,DENNIS EAGLE LTD DENNIS EAGLE LTD,91663,04/10/2023,485473,DE EcoTrak/Waste Operator,12/01/2024,86.4,432,518.4,Domestic Waste Collection,Land Line Rental,64077
http://statistics.data.gov.uk/id/local-authority/12UE,Huntingdonshire District Council,200221,D B TRANSPORT SERVICES D B TRANSPORT SERVICES,91051,29/11/2023,15362,OPS HOSE,02/01/2024,52.9,264.49,317.39,Domestic Waste Collection,Vehicle Repairs And Maintenance,60904
http://statistics.data.gov.uk/id/local-authority/12UE,Huntingdonshire District Council,202362,R S AIR LTD,91038,07/12/2023,"A409,A407, A405, A404",OPS MULTIPLE,02/01/2024,37.5,187.5,225,Domestic Waste Collection,Vehicle Maintenance - External,60921
http://statistics.data.gov.uk/id/local-authority/12UE,Huntingdonshire District Council,200308,FRANK RATCLIFFE & SON FRANK RATCLIFFE & SON,91018,11/12/2023,110453,OPS STUCK VEHICLE,04/01/2024,109.92,549.62,659.54,Domestic Waste Collection,Vehicle Maintenance - External,60921
http://statistics.data.gov.uk/id/local-authority/12UE,Huntingdonshire District Council,200236,DENNIS EAGLE LTD DENNIS EAGLE LTD,91663,04/10/2023,485473,DE EcoTrak/Waste Operator,12/01/2024,86.4,432,518.4,Domestic Waste Collection,Land Line Rental,64077
http://statistics.data.gov.uk/id/local-authority/12UE,Huntingdonshire District Council,200236,DENNIS EAGLE LTD DENNIS EAGLE LTD,93763,12/02/2024,DE11652709,VE18JNX MOT Parts,08/03/2024,330.82,1654.09,1984.91,Recycling Collections,Vehicle Repairs And Maintenance,60904
http://statistics.data.gov.uk/id/local-authority/12UE,Huntingdonshire District Council,200774,TERBERG MATEC UK LTD TERBERG MATEC UK LTD,93764,16/02/2024,96453785,VE18JNX Strip/Plate/Screw,08/03/2024,89.4,446.98,536.38,Recycling Collections,Vehicle Repairs And Maintenance,60904
http://statistics.data.gov.uk/id/local-authority/12UE,Huntingdonshire District Council,200721,SILVER SHIELD WINDSCREENS SILVER SHIELD WINDSCREENS,93766,12/02/2024,SSA82116,VE18JNX Front Screen,08/03/2024,58,290,348,Recycling Collections,Vehicle Repairs And Maintenance,60904
http://statistics.data.gov.uk/id/local-authority/12UE,Huntingdonshire District Council,202487,GARNER COMMERCIALS LTD,94022,09/02/2024,14110,VE18JWX Steam Clean,29/02/2024,56,280,336,Recycling Collections,Vehicle Repairs And Maintenance,60904
http://statistics.data.gov.uk/id/local-authority/12UE,Huntingdonshire District Council,202450,MANCHETTS PB LTD,94081,16/02/2024,24.21.004288,VE18JNX MOT/Tacho Calibration/Lane Fees,08/03/2024,32.95,164.75,197.7,Recycling Collections,Vehicle Repairs And Maintenance,60904
http://statistics.data.gov.uk/id/local-authority/12UE,Huntingdonshire District Council,200236,DENNIS EAGLE LTD DENNIS EAGLE LTD,93544,22/01/2024,DE11646813,VE18JNX Arm/Mount/Bolt,20/02/2024,55.52,277.58,333.1,Recycling Collections,Vehicle Repairs And Maintenance,60904
http://statistics.data.gov.uk/id/local-authority/12UE,Huntingdonshire District Council,202362,R S AIR LTD,91035,07/12/2023,"A401, A408, A402",OPS SERVICES,02/01/2024,37.5,187.5,225,Recycling Collections,Vehicle Maintenance - External,60921
http://statistics.data.gov.uk/id/local-authority/12UE,Huntingdonshire District Council,200308,FRANK RATCLIFFE & SON FRANK RATCLIFFE & SON,95309,01/03/2024,111233,VE18JNX Stukeley To EFH Recover,22/03/2024,80.25,401.25,481.5,Recycling Collections,Vehicle Maintenance - External,60921
http://statistics.data.gov.uk/id/local-authority/12UE,Huntingdonshire District Council,202450,MANCHETTS PB LTD,94081,16/02/2024,24.21.004288,VE18JNX MOT/Tacho Calibration/Lane Fees,08/03/2024,0,113,113,Recycling Collections,Vehicle MOT,60924
http://statistics.data.gov.uk/id/local-authority/12UE,Huntingdonshire District Council,200236,DENNIS EAGLE LTD DENNIS EAGLE LTD,90908,11/12/2023,DE11637126,VE18JNX Mirrors,04/01/2024,55.8,278.99,334.79,Recycling Collections,Vehicle Accident Damage,60925
http://statistics.data.gov.uk/id/local-authority/12UE,Huntingdonshire District Council,200079,BANDVULC TRUCK TYRES BANDVULC TRUCK TYRES,94286,28/02/2024,197348,Tyres P:2 W:0,22/03/2024,431.9,2159.47,2591.37,Recycling Collections,Tyres,62926
http://statistics.data.gov.uk/id/local-authority/12UE,Huntingdonshire District Council,200236,DENNIS EAGLE LTD DENNIS EAGLE LTD,91663,04/10/2023,485473,DE EcoTrak/Waste Operator,12/01/2024,86.4,432,518.4,Recycling Collections,Land Line Rental,64077
http://statistics.data.gov.uk/id/local-authority/12UE,Huntingdonshire District Council,200236,DENNIS EAGLE LTD DENNIS EAGLE LTD,93516,24/01/2024,DE11647651,VE18JWD Spring Kit/Brake Chamber/T Piece,20/02/2024,365.93,1829.65,2195.58,Domestic Waste Collection,Vehicle Repairs And Maintenance,60904
http://statistics.data.gov.uk/id/local-authority/12UE,Huntingdonshire District Council,200236,DENNIS EAGLE LTD DENNIS EAGLE LTD,92595,11/01/2024,DE11644111,VE18JED Window Motor/Guide/Corner/Buzzer,01/02/2024,127.34,636.72,764.06,Domestic Waste Collection,Vehicle Repairs And Maintenance,60904
http://statistics.data.gov.uk/id/local-authority/12UE,Huntingdonshire District Council,200236,DENNIS EAGLE LTD DENNIS EAGLE LTD,95294,01/03/2024,DE11658231,VE18JWD MOT Parts,22/03/2024,100.21,501.03,601.24,Domestic Waste Collection,Vehicle Repairs And Maintenance,60904
http://statistics.data.gov.uk/id/local-authority/12UE,Huntingdonshire District Council,200774,TERBERG MATEC UK LTD TERBERG MATEC UK LTD,94032,06/02/2024,96453199,VE18JWD Screw/Strip/Sensor/Lead,29/02/2024,98.38,491.91,590.29,Domestic Waste Collection,Vehicle Repairs And Maintenance,60904
http://statistics.data.gov.uk/id/local-authority/12UE,Huntingdonshire District Council,200236,DENNIS EAGLE LTD DENNIS EAGLE LTD,95295,05/03/2024,DE11658950,VE18JWD MOT Parts,27/03/2024,79.87,399.34,479.21,Domestic Waste Collection,Vehicle Repairs And Maintenance,60904
http://statistics.data.gov.uk/id/local-authority/12UE,Huntingdonshire District Council,200236,DENNIS EAGLE LTD DENNIS EAGLE LTD,95293,28/02/2024,DE11657451,VE18JWD MOT Parts,22/03/2024,65.11,325.54,390.65,Domestic Waste Collection,Vehicle Repairs And Maintenance,60904
http://statistics.data.gov.uk/id/local-authority/12UE,Huntingdonshire District Council,200221,D B TRANSPORT SERVICES D B TRANSPORT SERVICES,92585,07/12/2023,15324,VE18JWD Replace Sweeper Ram Hose,01/02/2024,52.9,264.49,317.39,Domestic Waste Collection,Vehicle Repairs And Maintenance,60904
http://statistics.data.gov.uk/id/local-authority/12UE,Huntingdonshire District Council,202362,R S AIR LTD,91038,07/12/2023,"A409,A407, A405, A404",OPS MULTIPLE,02/01/2024,37.5,187.5,225,Domestic Waste Collection,Vehicle Maintenance - External,60921
http://statistics.data.gov.uk/id/local-authority/12UE,Huntingdonshire District Council,200308,FRANK RATCLIFFE & SON FRANK RATCLIFFE & SON,93554,23/01/2024,110882,VE18JWD Recover Vehicle Tip To EFH,20/02/2024,80.25,401.25,481.5,Domestic Waste Collection,Vehicle Maintenance - External,60921
http://statistics.data.gov.uk/id/local-authority/12UE,Huntingdonshire District Council,200079,BANDVULC TRUCK TYRES BANDVULC TRUCK TYRES,93387,30/01/2024,19660,Tyres P:1 W:0,22/02/2024,18.13,90.66,108.79,Domestic Waste Collection,Tyres,62926
http://statistics.data.gov.uk/id/local-authority/12UE,Huntingdonshire District Council,200236,DENNIS EAGLE LTD DENNIS EAGLE LTD,91663,04/10/2023,485473,DE EcoTrak/Waste Operator,12/01/2024,86.4,432,518.4,Domestic Waste Collection,Land Line Rental,64077
http://statistics.data.gov.uk/id/local-authority/12UE,Huntingdonshire District Council,200774,TERBERG MATEC UK LTD TERBERG MATEC UK LTD,90410,04/12/2023,96449997,VE18JWF Buffer/Strip/Screw,02/01/2024,90.34,451.71,542.05,Green Waste Collection,Vehicle Repairs And Maintenance,60904
http://statistics.data.gov.uk/id/local-authority/12UE,Huntingdonshire District Council,200000,A C COMMERCIALS A C COMMERCIALS,91021,14/12/2023,INV0025702,OPS BATTERY,04/01/2024,77.14,385.7,462.84,Green Waste Collection,Vehicle Repairs And Maintenance,60904
http://statistics.data.gov.uk/id/local-authority/12UE,Huntingdonshire District Council,202362,R S AIR LTD,91039,07/12/2023,"A406, A410, A412, A411",OPS MULTIPLE,02/01/2024,37.5,187.5,225,Green Waste Collection,Vehicle Maintenance - External,60921
http://statistics.data.gov.uk/id/local-authority/12UE,Huntingdonshire District Council,200236,DENNIS EAGLE LTD DENNIS EAGLE LTD,91663,04/10/2023,485473,DE EcoTrak/Waste Operator,12/01/2024,86.4,432,518.4,Green Waste Collection,Land Line Rental,64077
http://statistics.data.gov.uk/id/local-authority/12UE,Huntingdonshire District Council,202362,R S AIR LTD,91035,07/12/2023,"A401, A408, A402",OPS SERVICES,02/01/2024,37.5,187.5,225,Domestic Waste Collection,Vehicle Maintenance - External,60921
http://statistics.data.gov.uk/id/local-authority/12UE,Huntingdonshire District Council,200079,BANDVULC TRUCK TYRES BANDVULC TRUCK TYRES,91223,28/12/2023,195034,ops period 12,19/01/2024,28.31,141.53,169.84,Domestic Waste Collection,Tyres,62926
http://statistics.data.gov.uk/id/local-authority/12UE,Huntingdonshire District Council,200079,BANDVULC TRUCK TYRES BANDVULC TRUCK TYRES,93387,30/01/2024,19660,Tyres P:1 W:0,22/02/2024,135.06,675.29,810.35,Domestic Waste Collection,Tyres,62926
http://statistics.data.gov.uk/id/local-authority/12UE,Huntingdonshire District Council,200236,DENNIS EAGLE LTD DENNIS EAGLE LTD,91663,04/10/2023,485473,DE EcoTrak/Waste Operator,12/01/2024,86.4,432,518.4,Domestic Waste Collection,Land Line Rental,64077
http://statistics.data.gov.uk/id/local-authority/12UE,Huntingdonshire District Council,202362,R S AIR LTD,91035,07/12/2023,"A401, A408, A402",OPS SERVICES,02/01/2024,37.5,187.5,225,Domestic Waste Collection,Vehicle Maintenance - External,60921
http://statistics.data.gov.uk/id/local-authority/12UE,Huntingdonshire District Council,200236,DENNIS EAGLE LTD DENNIS EAGLE LTD,91663,04/10/2023,485473,DE EcoTrak/Waste Operator,12/01/2024,80,400,480,Domestic Waste Collection,Land Line Rental,64077
http://statistics.data.gov.uk/id/local-authority/12UE,Huntingdonshire District Council,200774,TERBERG MATEC UK LTD TERBERG MATEC UK LTD,95232,01/03/2024,96454532,VK20NTO Rubbers/Lead/Sensors,22/03/2024,205.3,1026.51,1231.81,Weekly Bags,Vehicle Repairs And Maintenance,60904
http://statistics.data.gov.uk/id/local-authority/12UE,Huntingdonshire District Council,200236,DENNIS EAGLE LTD DENNIS EAGLE LTD,95243,27/02/2024,DE11657068,VK20NTO MOT Parts,22/03/2024,155.79,778.97,934.76,Weekly Bags,Vehicle Repairs And Maintenance,60904
http://statistics.data.gov.uk/id/local-authority/12UE,Huntingdonshire District Council,200815,VEHICLE WEIGHTING SOLUTIONS LTD VEHICLE WEIGHTING SOLUTIONS LTD,91185,15/12/2023,INV52781,OPS CALL OUTS,04/01/2024,143.06,715.31,858.37,Weekly Bags,Vehicle Repairs And Maintenance,60904
http://statistics.data.gov.uk/id/local-authority/12UE,Huntingdonshire District Council,200721,SILVER SHIELD WINDSCREENS SILVER SHIELD WINDSCREENS,95241,28/02/2024,SSA82663,VK20NTO Front Windscreen,22/03/2024,58,290,348,Weekly Bags,Vehicle Repairs And Maintenance,60904
http://statistics.data.gov.uk/id/local-authority/12UE,Huntingdonshire District Council,202450,MANCHETTS PB LTD,95298,01/03/2024,24.21.004761,VK20NTO Vehicle MOT/Lane Fees,22/03/2024,32.95,164.75,197.7,Weekly Bags,Vehicle Repairs And Maintenance,60904
http://statistics.data.gov.uk/id/local-authority/12UE,Huntingdonshire District Council,202362,R S AIR LTD,91038,07/12/2023,"A409,A407, A405, A404",OPS MULTIPLE,02/01/2024,37.5,187.5,225,Weekly Bags,Vehicle Maintenance - External,60921
http://statistics.data.gov.uk/id/local-authority/12UE,Huntingdonshire District Council,202450,MANCHETTS PB LTD,95298,01/03/2024,24.21.004761,VK20NTO Vehicle MOT/Lane Fees,22/03/2024,0,113,113,Weekly Bags,Vehicle MOT,60924
http://statistics.data.gov.uk/id/local-authority/12UE,Huntingdonshire District Council,200079,BANDVULC TRUCK TYRES BANDVULC TRUCK TYRES,91223,28/12/2023,195034,ops period 12,19/01/2024,68.63,343.17,411.8,Weekly Bags,Tyres,62926
http://statistics.data.gov.uk/id/local-authority/12UE,Huntingdonshire District Council,200236,DENNIS EAGLE LTD DENNIS EAGLE LTD,91663,04/10/2023,485473,DE EcoTrak/Waste Operator,12/01/2024,80,400,480,Weekly Bags,Land Line Rental,64077
http://statistics.data.gov.uk/id/local-authority/12UE,Huntingdonshire District Council,202362,R S AIR LTD,91039,07/12/2023,"A406, A410, A412, A411",OPS MULTIPLE,02/01/2024,37.5,187.5,225,Domestic Waste Collection,Vehicle Maintenance - External,60921
http://statistics.data.gov.uk/id/local-authority/12UE,Huntingdonshire District Council,200236,DENNIS EAGLE LTD DENNIS EAGLE LTD,91663,04/10/2023,485473,DE EcoTrak/Waste Operator,12/01/2024,80,400,480,Domestic Waste Collection,Land Line Rental,64077
http://statistics.data.gov.uk/id/local-authority/12UE,Huntingdonshire District Council,200079,BANDVULC TRUCK TYRES BANDVULC TRUCK TYRES,94286,28/02/2024,197348,Tyres P:2 W:0,22/03/2024,30.51,152.57,183.08,Recycling Collections,Tyres,62926
http://statistics.data.gov.uk/id/local-authority/12UE,Huntingdonshire District Council,200236,DENNIS EAGLE LTD DENNIS EAGLE LTD,91663,04/10/2023,485473,DE EcoTrak/Waste Operator,12/01/2024,80,400,480,Recycling Collections,Land Line Rental,64077
http://statistics.data.gov.uk/id/local-authority/12UE,Huntingdonshire District Council,200236,DENNIS EAGLE LTD DENNIS EAGLE LTD,91663,04/10/2023,485473,DE EcoTrak/Waste Operator,12/01/2024,80,400,480,Green Waste Collection,Land Line Rental,64077
http://statistics.data.gov.uk/id/local-authority/12UE,Huntingdonshire District Council,200236,DENNIS EAGLE LTD DENNIS EAGLE LTD,94028,05/02/2024,DE11650812,VK22BXY Front Windscreen,29/02/2024,223.76,1118.82,1342.58,Green Waste Collection,Vehicle Repairs And Maintenance,60904
http://statistics.data.gov.uk/id/local-authority/12UE,Huntingdonshire District Council,200236,DENNIS EAGLE LTD DENNIS EAGLE LTD,93518,17/01/2024,DE11645609,VK22BXY MOT Parts,20/02/2024,143.81,719.07,862.88,Green Waste Collection,Vehicle Repairs And Maintenance,60904
http://statistics.data.gov.uk/id/local-authority/12UE,Huntingdonshire District Council,200774,TERBERG MATEC UK LTD TERBERG MATEC UK LTD,92572,18/01/2024,96452116,VK22BXY Curtains/Sensors,08/02/2024,98.63,493.14,591.77,Green Waste Collection,Vehicle Repairs And Maintenance,60904
http://statistics.data.gov.uk/id/local-authority/12UE,Huntingdonshire District Council,202450,MANCHETTS PB LTD,93514,25/01/2024,24.21.003484,VK22BXY Vehicle MOT/Lane Fee,20/02/2024,73,365,438,Green Waste Collection,Vehicle Repairs And Maintenance,60904
http://statistics.data.gov.uk/id/local-authority/12UE,Huntingdonshire District Council,202487,GARNER COMMERCIALS LTD,92609,12/01/2024,13793,OPS STEAM CLEAN,01/02/2024,57.8,289,346.8,Green Waste Collection,Vehicle Repairs And Maintenance,60904
http://statistics.data.gov.uk/id/local-authority/12UE,Huntingdonshire District Council,202450,MANCHETTS PB LTD,93514,25/01/2024,24.21.003484,VK22BXY Vehicle MOT/Lane Fee,20/02/2024,0,91,91,Green Waste Collection,Vehicle MOT,60924
http://statistics.data.gov.uk/id/local-authority/12UE,Huntingdonshire District Council,200079,BANDVULC TRUCK TYRES BANDVULC TRUCK TYRES,94286,28/02/2024,197348,Tyres P:2 W:0,22/03/2024,135.06,675.29,810.35,Green Waste Collection,Tyres,62926
http://statistics.data.gov.uk/id/local-authority/12UE,Huntingdonshire District Council,200079,BANDVULC TRUCK TYRES BANDVULC TRUCK TYRES,91223,28/12/2023,195034,ops period 12,19/01/2024,11.13,55.67,66.8,Green Waste Collection,Tyres,62926
http://statistics.data.gov.uk/id/local-authority/12UE,Huntingdonshire District Council,200236,DENNIS EAGLE LTD DENNIS EAGLE LTD,91663,04/10/2023,485473,DE EcoTrak/Waste Operator,12/01/2024,80,400,480,Green Waste Collection,Land Line Rental,64077
http://statistics.data.gov.uk/id/local-authority/12UE,Huntingdonshire District Council,200774,TERBERG MATEC UK LTD TERBERG MATEC UK LTD,91831,28/12/2023,96451179,VK22BXZ Sensor,19/01/2024,107.79,538.97,646.76,Green Waste Collection,Vehicle Repairs And Maintenance,60904
http://statistics.data.gov.uk/id/local-authority/12UE,Huntingdonshire District Council,200236,DENNIS EAGLE LTD DENNIS EAGLE LTD,92894,24/01/2024,DE11647650,VK22BXZ Bumper/Filter/Flap,15/02/2024,101.97,509.86,611.83,Green Waste Collection,Vehicle Repairs And Maintenance,60904
http://statistics.data.gov.uk/id/local-authority/12UE,Huntingdonshire District Council,200079,BANDVULC TRUCK TYRES BANDVULC TRUCK TYRES,94286,28/02/2024,197348,Tyres P:2 W:0,22/03/2024,8.93,44.62,53.55,Green Waste Collection,Tyres,62926
http://statistics.data.gov.uk/id/local-authority/12UE,Huntingdonshire District Council,200236,DENNIS EAGLE LTD DENNIS EAGLE LTD,91663,04/10/2023,485473,DE EcoTrak/Waste Operator,12/01/2024,80,400,480,Green Waste Collection,Land Line Rental,64077
http://statistics.data.gov.uk/id/local-authority/12UE,Huntingdonshire District Council,200774,TERBERG MATEC UK LTD TERBERG MATEC UK LTD,93765,15/02/2024,96453679,VK22BYA Sensor/Lead/Curtain/Rubber,08/03/2024,179.81,899.05,1078.86,Green Waste Collection,Vehicle Repairs And Maintenance,60904
http://statistics.data.gov.uk/id/local-authority/12UE,Huntingdonshire District Council,200236,DENNIS EAGLE LTD DENNIS EAGLE LTD,91663,04/10/2023,485473,DE EcoTrak/Waste Operator,12/01/2024,80,400,480,Green Waste Collection,Land Line Rental,64077
http://statistics.data.gov.uk/id/local-authority/12UE,Huntingdonshire District Council,200774,TERBERG MATEC UK LTD TERBERG MATEC UK LTD,94045,29/01/2024,96452736,VN23CCZ Cover/Decal/Lamp,27/02/2024,120.54,602.71,723.25,Domestic Waste Collection,Vehicle Repairs And Maintenance,60904
http://statistics.data.gov.uk/id/local-authority/12UE,Huntingdonshire District Council,200079,BANDVULC TRUCK TYRES BANDVULC TRUCK TYRES,94286,28/02/2024,197348,Tyres P:2 W:0,22/03/2024,14.68,73.38,88.06,Domestic Waste Collection,Tyres,62926
http://statistics.data.gov.uk/id/local-authority/12UE,Huntingdonshire District Council,200079,BANDVULC TRUCK TYRES BANDVULC TRUCK TYRES,91223,28/12/2023,195034,ops period 12,19/01/2024,8.93,44.62,53.55,Domestic Waste Collection,Tyres,62926
http://statistics.data.gov.uk/id/local-authority/12UE,Huntingdonshire District Council,200079,BANDVULC TRUCK TYRES BANDVULC TRUCK TYRES,93387,30/01/2024,19660,Tyres P:1 W:0,22/02/2024,113.81,569.04,682.85,Recycling Collections,Tyres,62926
http://statistics.data.gov.uk/id/local-authority/12UE,Huntingdonshire District Council,200236,DENNIS EAGLE LTD DENNIS EAGLE LTD,91663,04/10/2023,485473,DE EcoTrak/Waste Operator,12/01/2024,21.6,108,129.6,Recycling Collections,Land Line Rental,64077
http://statistics.data.gov.uk/id/local-authority/12UE,Huntingdonshire District Council,200236,DENNIS EAGLE LTD DENNIS EAGLE LTD,91019,11/12/2023,DE1163712,OPS CAR PARTS,04/01/2024,79.72,398.6,478.32,Recycling Collections,Vehicle Repairs And Maintenance,60904
http://statistics.data.gov.uk/id/local-authority/12UE,Huntingdonshire District Council,200079,BANDVULC TRUCK TYRES BANDVULC TRUCK TYRES,91223,28/12/2023,195034,ops period 12,19/01/2024,8.93,44.63,53.56,Recycling Collections,Tyres,62926
http://statistics.data.gov.uk/id/local-authority/12UE,Huntingdonshire District Council,200236,DENNIS EAGLE LTD DENNIS EAGLE LTD,91663,04/10/2023,485473,DE EcoTrak/Waste Operator,12/01/2024,21.6,108,129.6,Recycling Collections,Land Line Rental,64077
http://statistics.data.gov.uk/id/local-authority/12UE,Huntingdonshire District Council,200236,DENNIS EAGLE LTD DENNIS EAGLE LTD,90909,11/12/2023,DE11637125,VN23UDU Mirrors,04/01/2024,59.59,297.96,357.55,Domestic Waste Collection,Vehicle Accident Damage,60925
http://statistics.data.gov.uk/id/local-authority/12UE,Huntingdonshire District Council,200079,BANDVULC TRUCK TYRES BANDVULC TRUCK TYRES,94286,28/02/2024,197348,Tyres P:2 W:0,22/03/2024,113.81,569.04,682.85,Domestic Waste Collection,Tyres,62926
http://statistics.data.gov.uk/id/local-authority/12UE,Huntingdonshire District Council,200236,DENNIS EAGLE LTD DENNIS EAGLE LTD,91663,04/10/2023,485473,DE EcoTrak/Waste Operator,12/01/2024,21.6,108,129.6,Domestic Waste Collection,Land Line Rental,64077
http://statistics.data.gov.uk/id/local-authority/12UE,Huntingdonshire District Council,200236,DENNIS EAGLE LTD DENNIS EAGLE LTD,91663,04/10/2023,485473,DE EcoTrak/Waste Operator,12/01/2024,80,400,480,Green Waste Collection,Land Line Rental,64077
http://statistics.data.gov.uk/id/local-authority/12UE,Huntingdonshire District Council,200236,DENNIS EAGLE LTD DENNIS EAGLE LTD,91046,14/12/2023,491270,ops vehicle on site,04/01/2024,106.62,533.08,639.7,Green Waste Collection,Vehicle Repairs And Maintenance,60904
http://statistics.data.gov.uk/id/local-authority/12UE,Huntingdonshire District Council,200721,SILVER SHIELD WINDSCREENS SILVER SHIELD WINDSCREENS,91020,12/12/2023,SSA80296,OPS WINDSCREEN,04/01/2024,58,290,348,Trade Refuse,Vehicle Repairs And Maintenance,60904
http://statistics.data.gov.uk/id/local-authority/12UE,Huntingdonshire District Council,200236,DENNIS EAGLE LTD DENNIS EAGLE LTD,91663,04/10/2023,485473,DE EcoTrak/Waste Operator,12/01/2024,86.4,432,518.4,Trade Refuse,Land Line Rental,64077
http://statistics.data.gov.uk/id/local-authority/12UE,Huntingdonshire District Council,202450,MANCHETTS PB LTD,93515,25/01/2024,24.21.003483,VU67HXY Supply & Fit Tacho,20/02/2024,180,900,1080,Domestic Waste Collection,Vehicle Repairs And Maintenance,60904
http://statistics.data.gov.uk/id/local-authority/12UE,Huntingdonshire District Council,200774,TERBERG MATEC UK LTD TERBERG MATEC UK LTD,90411,04/12/2023,96449996,VU67HXY Sensor/Bracket,02/01/2024,175.97,879.84,1055.81,Domestic Waste Collection,Vehicle Repairs And Maintenance,60904
http://statistics.data.gov.uk/id/local-authority/12UE,Huntingdonshire District Council,200236,DENNIS EAGLE LTD DENNIS EAGLE LTD,91049,20/12/2023,DE11639551,OPS MATERIALS,12/01/2024,96.08,480.41,576.49,Domestic Waste Collection,Vehicle Repairs And Maintenance,60904
http://statistics.data.gov.uk/id/local-authority/12UE,Huntingdonshire District Council,200774,TERBERG MATEC UK LTD TERBERG MATEC UK LTD,91048,21/12/2023,96451010,OS MATERIALS,12/01/2024,93.61,468.05,561.66,Domestic Waste Collection,Vehicle Repairs And Maintenance,60904
http://statistics.data.gov.uk/id/local-authority/12UE,Huntingdonshire District Council,200236,DENNIS EAGLE LTD DENNIS EAGLE LTD,94042,06/02/2024,DE11651205,Bumper/Rivert,29/02/2024,90.37,451.85,542.22,Domestic Waste Collection,Vehicle Repairs And Maintenance,60904
http://statistics.data.gov.uk/id/local-authority/12UE,Huntingdonshire District Council,200308,FRANK RATCLIFFE & SON FRANK RATCLIFFE & SON,93521,18/01/2024,110826,VU67HXY Recover EFH To Manchetts,20/02/2024,108.9,544.5,653.4,Domestic Waste Collection,Vehicle Maintenance - External,60921
http://statistics.data.gov.uk/id/local-authority/12UE,Huntingdonshire District Council,200236,DENNIS EAGLE LTD DENNIS EAGLE LTD,91663,04/10/2023,485473,DE EcoTrak/Waste Operator,12/01/2024,86.4,432,518.4,Domestic Waste Collection,Land Line Rental,64077
http://statistics.data.gov.uk/id/local-authority/12UE,Huntingdonshire District Council,200236,DENNIS EAGLE LTD DENNIS EAGLE LTD,90695,04/12/2023,DE11635454,VU67HXZ MOT Parts,02/01/2024,339.99,1699.94,2039.93,Recycling Collections,Vehicle Repairs And Maintenance,60904
http://statistics.data.gov.uk/id/local-authority/12UE,Huntingdonshire District Council,200236,DENNIS EAGLE LTD DENNIS EAGLE LTD,90703,07/12/2023,DE11636529,VU67HXZ MOT Parts,02/01/2024,232.51,1162.57,1395.08,Recycling Collections,Vehicle Repairs And Maintenance,60904
http://statistics.data.gov.uk/id/local-authority/12UE,Huntingdonshire District Council,200236,DENNIS EAGLE LTD DENNIS EAGLE LTD,93524,05/01/2024,492947,VU67HXZ Steer Axle Wiring Repairs,20/02/2024,95.28,476.4,571.68,Recycling Collections,Vehicle Repairs And Maintenance,60904
http://statistics.data.gov.uk/id/local-authority/12UE,Huntingdonshire District Council,200774,TERBERG MATEC UK LTD TERBERG MATEC UK LTD,91551,18/12/2023,96450764,VU67HXZ Sensor/Rubber/Arm/Lead,12/01/2024,81.95,409.76,491.71,Recycling Collections,Vehicle Repairs And Maintenance,60904
http://statistics.data.gov.uk/id/local-authority/12UE,Huntingdonshire District Council,200221,D B TRANSPORT SERVICES D B TRANSPORT SERVICES,95311,26/02/2024,15497,VU67HXZ Hose,22/03/2024,72.82,364.08,436.9,Recycling Collections,Vehicle Repairs And Maintenance,60904
http://statistics.data.gov.uk/id/local-authority/12UE,Huntingdonshire District Council,200079,BANDVULC TRUCK TYRES BANDVULC TRUCK TYRES,91223,28/12/2023,195034,ops period 12,19/01/2024,187.12,935.57,1122.69,Recycling Collections,Tyres,62926
http://statistics.data.gov.uk/id/local-authority/12UE,Huntingdonshire District Council,200236,DENNIS EAGLE LTD DENNIS EAGLE LTD,91663,04/10/2023,485473,DE EcoTrak/Waste Operator,12/01/2024,86.4,432,518.4,Recycling Collections,Land Line Rental,64077
http://statistics.data.gov.uk/id/local-authority/12UE,Huntingdonshire District Council,200236,DENNIS EAGLE LTD DENNIS EAGLE LTD,91211,18/12/2023,491487,ops brakes,12/01/2024,367.25,1836.24,2203.49,Domestic Waste Collection,Vehicle Repairs And Maintenance,60904
http://statistics.data.gov.uk/id/local-authority/12UE,Huntingdonshire District Council,200236,DENNIS EAGLE LTD DENNIS EAGLE LTD,94044,01/02/2024,DE11650117,VX70ZMO Filter/Lock/Guide/Cover,27/02/2024,268.54,1342.71,1611.25,Domestic Waste Collection,Vehicle Repairs And Maintenance,60904
http://statistics.data.gov.uk/id/local-authority/12UE,Huntingdonshire District Council,200774,TERBERG MATEC UK LTD TERBERG MATEC UK LTD,90697,08/12/2023,96450341,VX70ZMO Sensors/Cable,02/01/2024,93.71,468.54,562.25,Domestic Waste Collection,Vehicle Repairs And Maintenance,60904
http://statistics.data.gov.uk/id/local-authority/12UE,Huntingdonshire District Council,202487,GARNER COMMERCIALS LTD,92883,26/01/2024,14017,VX70ZMO Steam Clean,15/02/2024,57.8,289,346.8,Domestic Waste Collection,Vehicle Repairs And Maintenance,60904
http://statistics.data.gov.uk/id/local-authority/12UE,Huntingdonshire District Council,200236,DENNIS EAGLE LTD DENNIS EAGLE LTD,91522,20/12/2023,491913,OPS PARTS,12/01/2024,789.82,3949.1,4738.92,Domestic Waste Collection,Vehicle Accident Damage,60925
http://statistics.data.gov.uk/id/local-authority/12UE,Huntingdonshire District Council,200079,BANDVULC TRUCK TYRES BANDVULC TRUCK TYRES,94286,28/02/2024,197348,Tyres P:2 W:0,22/03/2024,363.26,1816.31,2179.57,Domestic Waste Collection,Tyres,62926
http://statistics.data.gov.uk/id/local-authority/12UE,Huntingdonshire District Council,200079,BANDVULC TRUCK TYRES BANDVULC TRUCK TYRES,91223,28/12/2023,195034,ops period 12,19/01/2024,135.06,675.28,810.34,Domestic Waste Collection,Tyres,62926
http://statistics.data.gov.uk/id/local-authority/12UE,Huntingdonshire District Council,200236,DENNIS EAGLE LTD DENNIS EAGLE LTD,91663,04/10/2023,485473,DE EcoTrak/Waste Operator,12/01/2024,80,400,480,Domestic Waste Collection,Land Line Rental,64077
http://statistics.data.gov.uk/id/local-authority/12UE,Huntingdonshire District Council,200515,M & N VEHICLE SERVICES M & N VEHICLE SERVICES,95239,26/02/2024,58021,VX70ZMU Service/Parts/MOT Test,22/03/2024,267.78,1338.92,1606.7,Recycling Collections,Vehicle Repairs And Maintenance,60904
http://statistics.data.gov.uk/id/local-authority/12UE,Huntingdonshire District Council,200515,M & N VEHICLE SERVICES M & N VEHICLE SERVICES,95239,26/02/2024,58021,VX70ZMU Service/Parts/MOT Test,22/03/2024,0,113,113,Recycling Collections,Vehicle Repairs And Maintenance,60904
http://statistics.data.gov.uk/id/local-authority/12UE,Huntingdonshire District Council,200236,DENNIS EAGLE LTD DENNIS EAGLE LTD,95195,08/01/2024,DE11642595,VX70ZMU Pump/Vent/Reflector/Seat Belt,19/03/2024,148.06,740.3,888.36,Recycling Collections,Vehicle Repairs And Maintenance,60904
http://statistics.data.gov.uk/id/local-authority/12UE,Huntingdonshire District Council,200236,DENNIS EAGLE LTD DENNIS EAGLE LTD,94082,16/02/2024,DE11654184,VX70ZMU MOT Parts,08/03/2024,78.98,394.89,473.87,Recycling Collections,Vehicle Repairs And Maintenance,60904
http://statistics.data.gov.uk/id/local-authority/12UE,Huntingdonshire District Council,200774,TERBERG MATEC UK LTD TERBERG MATEC UK LTD,94010,09/01/2024,96451629,VX70ZMU Strip/Screw/Hose/Sensor/Cable,27/02/2024,75.56,377.79,453.35,Recycling Collections,Vehicle Repairs And Maintenance,60904
http://statistics.data.gov.uk/id/local-authority/12UE,Huntingdonshire District Council,200774,TERBERG MATEC UK LTD TERBERG MATEC UK LTD,92860,05/01/2024,96451496,VX70ZMU Parts,05/02/2024,123.37,616.84,740.21,Recycling Collections,Vehicle Accident Damage,60925
http://statistics.data.gov.uk/id/local-authority/12UE,Huntingdonshire District Council,200079,BANDVULC TRUCK TYRES BANDVULC TRUCK TYRES,94286,28/02/2024,197348,Tyres P:2 W:0,22/03/2024,523.32,2616.6,3139.92,Recycling Collections,Tyres,62926
http://statistics.data.gov.uk/id/local-authority/12UE,Huntingdonshire District Council,200236,DENNIS EAGLE LTD DENNIS EAGLE LTD,91663,04/10/2023,485473,DE EcoTrak/Waste Operator,12/01/2024,80,400,480,Recycling Collections,Land Line Rental,64077
http://statistics.data.gov.uk/id/local-authority/12UE,Huntingdonshire District Council,203173,Quartix Ltd,91273,19/12/2023,781542,ops rental from 191223,12/01/2024,4.77,23.85,28.62,Street Cleansing,Land Line Rental,64077
http://statistics.data.gov.uk/id/local-authority/12UE,Huntingdonshire District Council,201988,Ford Motor Company T/A Parts Plus,91579,13/12/2023,25299520,WV67WHM Front Axle Shaft,08/01/2024,104.01,520.04,624.05,Bin Deliveries,Vehicle Repairs And Maintenance,60904
http://statistics.data.gov.uk/id/local-authority/12UE,Huntingdonshire District Council,201660,TOTAL ENVIRONMENTAL COMPLIANCE LTD,93874,14/02/2024,54972,The Hub Cyclical/Planned Maintenance,08/03/2024,82,410,492,Community Centres,Maintenance - Building,60201
http://statistics.data.gov.uk/id/local-authority/12UE,Huntingdonshire District Council,203322,Right Directions (Management) Ltd,90993,15/12/2023,10038,OLSTI TRAINING COURSE,02/01/2024,598,2990,3588,One Leisure Support Team,Staff Development And Training,60115
http://statistics.data.gov.uk/id/local-authority/12UE,Huntingdonshire District Council,203223,Key Lime PR and Marketing Ltd,91532,28/12/2023,INV-6295,OLSTI SOCIAL MEDIA 2024,19/01/2024,340,1700,2040,One Leisure Support Team,"Advertising, Publicity And Marketing",62005
http://statistics.data.gov.uk/id/local-authority/12UE,Huntingdonshire District Council,203223,Key Lime PR and Marketing Ltd,92882,01/02/2024,INV-6345,OL Advertising Feb24,22/02/2024,340,1700,2040,One Leisure Support Team,"Advertising, Publicity And Marketing",62005
http://statistics.data.gov.uk/id/local-authority/12UE,Huntingdonshire District Council,203223,Key Lime PR and Marketing Ltd,94439,01/03/2024,INV-6406,OL Advertising Mar24,22/03/2024,340,1700,2040,One Leisure Support Team,"Advertising, Publicity And Marketing",62005
http://statistics.data.gov.uk/id/local-authority/12UE,Huntingdonshire District Council,203223,Key Lime PR and Marketing Ltd,92304,16/01/2024,INV-6330,OL Ad Panels/Swim Timetables,08/02/2024,198,990,1188,One Leisure Support Team,"Advertising, Publicity And Marketing",62005
http://statistics.data.gov.uk/id/local-authority/12UE,Huntingdonshire District Council,203223,Key Lime PR and Marketing Ltd,91310,19/12/2023,INV-6304,olsti timetables,12/01/2024,183.5,917.5,1101,One Leisure Support Team,"Advertising, Publicity And Marketing",62005
http://statistics.data.gov.uk/id/local-authority/12UE,Huntingdonshire District Council,203223,Key Lime PR and Marketing Ltd,91214,28/12/2023,INV-6313,OLSI Key Lime site visit Nov 23,19/01/2024,130,650,780,One Leisure Support Team,"Advertising, Publicity And Marketing",62005
http://statistics.data.gov.uk/id/local-authority/12UE,Huntingdonshire District Council,203223,Key Lime PR and Marketing Ltd,94698,06/03/2024,INV-6433,OL Welcome Banners,27/03/2024,95,475,570,One Leisure Support Team,"Advertising, Publicity And Marketing",62005
http://statistics.data.gov.uk/id/local-authority/12UE,Huntingdonshire District Council,203395,First Point Management & Consultancy Limited,94928,08/03/2024,FP2404,Operating Model - One Leisure,27/03/2024,1272,6360,7632,One Leisure Support Team,Consultancy Fees,62400
http://statistics.data.gov.uk/id/local-authority/12UE,Huntingdonshire District Council,203395,First Point Management & Consultancy Limited,93466,14/02/2024,FP2402,Consultancy Fees,08/03/2024,432,2160,2592,One Leisure Support Team,Consultancy Fees,62400
http://statistics.data.gov.uk/id/local-authority/12UE,Huntingdonshire District Council,200117,BRAMBLE HUB LTD BRAMBLE HUB LTD,93221,30/01/2024,INV-14045,OL JAN 24-DEC 24,29/02/2024,1333.34,6666.68,8000.02,One Leisure Support Team,Ict Software,64071
http://statistics.data.gov.uk/id/local-authority/12UE,Huntingdonshire District Council,200117,BRAMBLE HUB LTD BRAMBLE HUB LTD,93245,03/02/2024,INV-14062,GLADESTONE WC 181223,29/02/2024,887.78,4438.89,5326.67,One Leisure Support Team,Ict Software,64071
http://statistics.data.gov.uk/id/local-authority/12UE,Huntingdonshire District Council,200117,BRAMBLE HUB LTD BRAMBLE HUB LTD,93244,30/01/2024,INV-14047,GLADESTONE ACTIVATION FEE,29/02/2024,444.45,2222.24,2666.69,One Leisure Support Team,Ict Software,64071
http://statistics.data.gov.uk/id/local-authority/12UE,Huntingdonshire District Council,201123,SELECTA UK LTD,90692,11/12/2023,230172763,OLH Vending Maintenance 01.01-31.03.24,19/03/2024,96.52,482.58,579.1,OLH - Hospitality,Hire - Equipment Furniture And Materials,61700
http://statistics.data.gov.uk/id/local-authority/12UE,Huntingdonshire District Council,202688,NUTRIVEND LTD,93581,15/02/2024,2047093,OLH Bottled Drinks,08/03/2024,173.78,868.92,1042.7,OLH - Hospitality,Vending Materials,61907
http://statistics.data.gov.uk/id/local-authority/12UE,Huntingdonshire District Council,202688,NUTRIVEND LTD,93581,15/02/2024,2047093,OLH Bottled Drinks,08/03/2024,0,167.52,167.52,OLH - Hospitality,Vending Materials,61907
http://statistics.data.gov.uk/id/local-authority/12UE,Huntingdonshire District Council,200726,SNACKLINE DIRECT LTD SNACKLINE DIRECT LTD,91251,07/11/2023,145003,OLSTI CATERING,04/01/2024,79.95,399.76,479.71,OLH - Hospitality,Vending Materials,61907
http://statistics.data.gov.uk/id/local-authority/12UE,Huntingdonshire District Council,200726,SNACKLINE DIRECT LTD SNACKLINE DIRECT LTD,91251,07/11/2023,145003,OLSTI CATERING,04/01/2024,0,47.27,47.27,OLH - Hospitality,Vending Materials,61907
http://statistics.data.gov.uk/id/local-authority/12UE,Huntingdonshire District Council,200726,SNACKLINE DIRECT LTD SNACKLINE DIRECT LTD,93642,16/01/2024,146533,OLH Vending Materials,20/02/2024,69.36,346.79,416.15,OLH - Hospitality,Vending Materials,61907
http://statistics.data.gov.uk/id/local-authority/12UE,Huntingdonshire District Council,200726,SNACKLINE DIRECT LTD SNACKLINE DIRECT LTD,93642,16/01/2024,146533,OLH Vending Materials,20/02/2024,0,47.27,47.27,OLH - Hospitality,Vending Materials,61907
http://statistics.data.gov.uk/id/local-authority/12UE,Huntingdonshire District Council,201386,THAMES LABORATORIES,91757,29/12/2023,INV-98964,Reinspection Surveys - Various Sites,19/01/2024,23,115,138,OLH - Site & Centre Management,Maintenance - Mechanical And Electrical,60203
http://statistics.data.gov.uk/id/local-authority/12UE,Huntingdonshire District Council,200535,METRO ROD LTD METRO ROD LTD,94608,04/03/2024,811811,OLSI Wetside Toilet Drain Repairs,27/03/2024,173.93,869.65,1043.58,OLH - Site & Centre Management,Maintenance - Building,60201
http://statistics.data.gov.uk/id/local-authority/12UE,Huntingdonshire District Council,200427,J A K  SYSTEMS LTD J A K SYSTEMS LTD,91946,21/12/2023,17606,OLH Pool Dosing Unit Repairs Dec23,19/01/2024,141,705,846,OLH - Site & Centre Management,Maintenance - Building,60201
http://statistics.data.gov.uk/id/local-authority/12UE,Huntingdonshire District Council,201404,EVACU8,92438,19/01/2024,4348,Evacuation Chair Servicing,08/02/2024,8,40,48,OLH - Site & Centre Management,Maintenance - Building,60201
http://statistics.data.gov.uk/id/local-authority/12UE,Huntingdonshire District Council,200542,MIRAMAR ENGINEERING LTD MIRAMAR ENGINEERING LTD,94821,06/03/2024,13345,OLH Sports Hall Tap Dripping,27/03/2024,77.22,386.1,463.32,OLH - Site & Centre Management,Maintenance - Building,60201
http://statistics.data.gov.uk/id/local-authority/12UE,Huntingdonshire District Council,200542,MIRAMAR ENGINEERING LTD MIRAMAR ENGINEERING LTD,94822,06/03/2024,13344,OLH Pool Temp Issues,27/03/2024,69.2,346.01,415.21,OLH - Site & Centre Management,Maintenance - Building,60201
http://statistics.data.gov.uk/id/local-authority/12UE,Huntingdonshire District Council,200694,ROGER WILSON ELECTRONICS ROGER WILSON ELECTRONICS,95486,11/02/2024,11136,OLH Electrical Repairs,22/03/2024,14,70,84,OLH - Site & Centre Management,Maintenance - Building,60201
http://statistics.data.gov.uk/id/local-authority/12UE,Huntingdonshire District Council,200694,ROGER WILSON ELECTRONICS ROGER WILSON ELECTRONICS,95486,11/02/2024,11136,OLH Electrical Repairs,22/03/2024,37.76,188.8,226.56,OLH - Site & Centre Management,Maintenance - Building,60201
http://statistics.data.gov.uk/id/local-authority/12UE,Huntingdonshire District Council,200542,MIRAMAR ENGINEERING LTD MIRAMAR ENGINEERING LTD,92233,18/01/2024,12933,OLH Indoor AC Unit Issues,08/02/2024,50.8,254,304.8,OLH - Site & Centre Management,Maintenance - Building,60201
http://statistics.data.gov.uk/id/local-authority/12UE,Huntingdonshire District Council,202135,TOTAL GAS AND POWER LTD,93658,14/02/2024,331042090/24,OLH Dry Jan24,20/02/2024,1406.49,7032.45,8438.94,OLH - Site & Centre Management,Electricity,60303
http://statistics.data.gov.uk/id/local-authority/12UE,Huntingdonshire District Council,202135,TOTAL GAS AND POWER LTD,91966,10/01/2024,326695891/24,OLH Dry Dec23,19/01/2024,1257.07,6285.33,7542.4,OLH - Site & Centre Management,Electricity,60303
http://statistics.data.gov.uk/id/local-authority/12UE,Huntingdonshire District Council,202135,TOTAL GAS AND POWER LTD,95100,10/03/2024,333557295/24,OLH Dry Feb24,14/03/2024,1130.46,5652.28,6782.74,OLH - Site & Centre Management,Electricity,60303
http://statistics.data.gov.uk/id/local-authority/12UE,Huntingdonshire District Council,202135,TOTAL GAS AND POWER LTD,94479,21/02/2024,331474808/24,OLH Dry Dec23-Jan24,05/03/2024,735.2,3675.98,4411.18,OLH - Site & Centre Management,Electricity,60303
http://statistics.data.gov.uk/id/local-authority/12UE,Huntingdonshire District Council,202699,SMS ENERGY SERVICES LTD,92336,19/01/2024,ESL-SINV057001,MOP Contract Year3,08/02/2024,42.8,214,256.8,OLH - Site & Centre Management,Electricity,60303
http://statistics.data.gov.uk/id/local-authority/12UE,Huntingdonshire District Council,202135,TOTAL GAS AND POWER LTD,95102,09/03/2024,333100157/24,OLH Dry Jan-Feb24,14/03/2024,265.64,1328.19,1593.83,OLH - Site & Centre Management,Gas,60305
http://statistics.data.gov.uk/id/local-authority/12UE,Huntingdonshire District Council,200913,WAVE  ANGLIAN WATER BUSINESS,94737,05/03/2024,13238830,OLH Dec23-Mar24,08/03/2024,0,917.77,917.77,OLH - Site & Centre Management,Water And Sewerage,60302
http://statistics.data.gov.uk/id/local-authority/12UE,Huntingdonshire District Council,200689,RLSS UK Enterprise Ltd,94559,01/03/2024,ESI000690,Licences ATC Fees Mar24,14/03/2024,0,125,125,OLH - Site & Centre Management,Licences,60410
http://statistics.data.gov.uk/id/local-authority/12UE,Huntingdonshire District Council,202728,ESCOREFRESH,94741,17/08/2023,43819,OLH Cleaning Supplies,08/03/2024,141.08,705.4,846.48,OLH - Site & Centre Management,Cleaning Materials,61300
http://statistics.data.gov.uk/id/local-authority/12UE,Huntingdonshire District Council,202728,ESCOREFRESH,93962,22/02/2024,44335,OLH Cleaning Supplies,14/03/2024,139.57,697.84,837.41,OLH - Site & Centre Management,Cleaning Materials,61300
http://statistics.data.gov.uk/id/local-authority/12UE,Huntingdonshire District Council,202728,ESCOREFRESH,91300,21/12/2023,44166,OLH CLEANING,12/01/2024,122.67,613.37,736.04,OLH - Site & Centre Management,Cleaning Materials,61300
http://statistics.data.gov.uk/id/local-authority/12UE,Huntingdonshire District Council,202728,ESCOREFRESH,94630,13/07/2023,43739,OLH Cleaning Materials,08/03/2024,95.38,476.92,572.3,OLH - Site & Centre Management,Cleaning Materials,61300
http://statistics.data.gov.uk/id/local-authority/12UE,Huntingdonshire District Council,202728,ESCOREFRESH,92659,26/01/2024,44262,OLH Cleaning Materials,15/02/2024,80.34,401.71,482.05,OLH - Site & Centre Management,Cleaning Materials,61300
http://statistics.data.gov.uk/id/local-authority/12UE,Huntingdonshire District Council,200737,SPORTMAX SPORTMAX,94015,20/02/2024,130805,OLH Items For Sale,14/03/2024,105.82,529.1,634.92,OLH - Site & Centre Management,Goods For Resale,61400
http://statistics.data.gov.uk/id/local-authority/12UE,Huntingdonshire District Council,200737,SPORTMAX SPORTMAX,94015,20/02/2024,130805,OLH Items For Sale,14/03/2024,0,61.2,61.2,OLH - Site & Centre Management,Goods For Resale,61400
http://statistics.data.gov.uk/id/local-authority/12UE,Huntingdonshire District Council,200737,SPORTMAX SPORTMAX,90863,20/12/2023,129827,OLR Items For Sale,12/01/2024,0,124.4,124.4,OLH - Site & Centre Management,Goods For Resale,61400
http://statistics.data.gov.uk/id/local-authority/12UE,Huntingdonshire District Council,200737,SPORTMAX SPORTMAX,90863,20/12/2023,129827,OLR Items For Sale,12/01/2024,91.68,458.4,550.08,OLH - Site & Centre Management,Goods For Resale,61400
http://statistics.data.gov.uk/id/local-authority/12UE,Huntingdonshire District Council,200737,SPORTMAX SPORTMAX,92240,18/01/2024,130210,OLH Items For Sale,08/02/2024,0,49.2,49.2,OLH - Site & Centre Management,Goods For Resale,61400
http://statistics.data.gov.uk/id/local-authority/12UE,Huntingdonshire District Council,200737,SPORTMAX SPORTMAX,92240,18/01/2024,130210,OLH Items For Sale,08/02/2024,75.63,378.15,453.78,OLH - Site & Centre Management,Goods For Resale,61400
http://statistics.data.gov.uk/id/local-authority/12UE,Huntingdonshire District Council,200411,INITIAL WASHROOM SOLUTIONS INITIAL WASHROOM SOLUTIONS,91821,10/01/2024,34953993,Hire Equipment - All OL's Jan-Feb24,01/02/2024,40.68,203.41,244.09,OLH - Site & Centre Management,Hire - Equipment Furniture And Materials,61700
http://statistics.data.gov.uk/id/local-authority/12UE,Huntingdonshire District Council,200411,INITIAL WASHROOM SOLUTIONS INITIAL WASHROOM SOLUTIONS,93299,07/02/2024,34985321,Equipment Hire All Sites 29.02-29.03.24,29/02/2024,40.68,203.41,244.09,OLH - Site & Centre Management,Hire - Equipment Furniture And Materials,61700
http://statistics.data.gov.uk/id/local-authority/12UE,Huntingdonshire District Council,200411,INITIAL WASHROOM SOLUTIONS INITIAL WASHROOM SOLUTIONS,90691,04/12/2023,34919816,Equipment Hire All Sites Dec23-Jan24,02/01/2024,36.12,180.59,216.71,OLH - Site & Centre Management,Hire - Equipment Furniture And Materials,61700
http://statistics.data.gov.uk/id/local-authority/12UE,Huntingdonshire District Council,200212,COOLER AID LTD COOLER AID LTD,93224,22/11/2023,490126,olhun gym floor,12/02/2024,107.8,539,646.8,OLH - Site & Centre Management,"Maintenance - Equipment, Furniture And Materials",61702
http://statistics.data.gov.uk/id/local-authority/12UE,Huntingdonshire District Council,200447,JOHNSON HEALTH TECH UK LTD JOHNSON HEALTH TECH UK LTD,94061,06/02/2024,9502901234,OLH Equipment Maintenance,29/02/2024,60.53,302.63,363.16,OLH - Site & Centre Management,"Maintenance - Equipment, Furniture And Materials",61702
http://statistics.data.gov.uk/id/local-authority/12UE,Huntingdonshire District Council,200447,JOHNSON HEALTH TECH UK LTD JOHNSON HEALTH TECH UK LTD,94058,06/02/2024,9502901232,OLH Equipment Maintenance,29/02/2024,52.91,264.54,317.45,OLH - Site & Centre Management,"Maintenance - Equipment, Furniture And Materials",61702
http://statistics.data.gov.uk/id/local-authority/12UE,Huntingdonshire District Council,200447,JOHNSON HEALTH TECH UK LTD JOHNSON HEALTH TECH UK LTD,94060,06/02/2024,9502901233,OLH Equipment Maintenance,29/02/2024,52.91,264.54,317.45,OLH - Site & Centre Management,"Maintenance - Equipment, Furniture And Materials",61702
http://statistics.data.gov.uk/id/local-authority/12UE,Huntingdonshire District Council,200430,J P LENNARD LTD J P LENNARD LTD,92180,16/11/2023,198743,OLH Equipment,23/01/2024,58.99,294.97,353.96,OLH - Site & Centre Management,Equipment,61713
http://statistics.data.gov.uk/id/local-authority/12UE,Huntingdonshire District Council,200434,JADE SECURITY SERVICES LTD JADE SECURITY SERVICES LTD,94694,29/02/2024,7100,Cash Collections Feb24,22/03/2024,10.8,54,64.8,OLH - Site & Centre Management,Contract Charges ,61800
http://statistics.data.gov.uk/id/local-authority/12UE,Huntingdonshire District Council,200434,JADE SECURITY SERVICES LTD JADE SECURITY SERVICES LTD,93380,31/01/2024,6959,Cash Collections Jan24,22/02/2024,10.8,54,64.8,OLH - Site & Centre Management,Contract Charges ,61800
http://statistics.data.gov.uk/id/local-authority/12UE,Huntingdonshire District Council,200434,JADE SECURITY SERVICES LTD JADE SECURITY SERVICES LTD,92898,31/12/2023,6761,Cash Collections Dec23,08/02/2024,5.4,27,32.4,OLH - Site & Centre Management,Contract Charges ,61800
http://statistics.data.gov.uk/id/local-authority/12UE,Huntingdonshire District Council,200117,BRAMBLE HUB LTD BRAMBLE HUB LTD,90296,04/12/2023,INV-13885,OL All Sites Chip&Pin Integration,02/01/2024,199.84,999.22,1199.06,OLH - Site & Centre Management,Ict Hardware,64070
http://statistics.data.gov.uk/id/local-authority/12UE,Huntingdonshire District Council,202135,TOTAL GAS AND POWER LTD,95246,21/02/2024,331474764/24,OLH Wet Dec23-Jan24,19/03/2024,6018.28,30091.41,36109.69,OLH - Swimming,Electricity,60303
http://statistics.data.gov.uk/id/local-authority/12UE,Huntingdonshire District Council,202135,TOTAL GAS AND POWER LTD,95103,09/03/2024,333100124/24,OLH Wet Jan-Feb24,14/03/2024,1394.89,6974.44,8369.33,OLH - Swimming,Gas,60305
http://statistics.data.gov.uk/id/local-authority/12UE,Huntingdonshire District Council,202135,TOTAL GAS AND POWER LTD,93659,14/02/2024,331069018/24,OLH Wet Jan24,20/02/2024,418.65,2093.23,2511.88,OLH - Swimming,Electricity,60303
http://statistics.data.gov.uk/id/local-authority/12UE,Huntingdonshire District Council,202135,TOTAL GAS AND POWER LTD,91975,10/01/2024,326711380/24,OLH Wet Dec23,19/01/2024,314.89,1574.43,1889.32,OLH - Swimming,Electricity,60303
http://statistics.data.gov.uk/id/local-authority/12UE,Huntingdonshire District Council,202699,SMS ENERGY SERVICES LTD,92336,19/01/2024,ESL-SINV057001,MOP Contract Year3,08/02/2024,33.4,167,200.4,OLH - Swimming,Electricity,60303
http://statistics.data.gov.uk/id/local-authority/12UE,Huntingdonshire District Council,202135,TOTAL GAS AND POWER LTD,95101,10/03/2024,333576017/24,OLH Wet Feb24,14/03/2024,255.21,1276.04,1531.25,OLH - Swimming,Electricity,60303
http://statistics.data.gov.uk/id/local-authority/12UE,Huntingdonshire District Council,200913,WAVE  ANGLIAN WATER BUSINESS,94077,26/02/2024,13199715,OLH Nov23-Feb24,29/02/2024,0,547.83,547.83,OLH - Swimming,Water And Sewerage,60302
http://statistics.data.gov.uk/id/local-authority/12UE,Huntingdonshire District Council,200417,Swim England Trading Limited,94008,23/02/2024,SWINV101390,OLH Badges & Certificates,14/03/2024,166.06,830.3,996.36,OLH - Swimming,Badges and Certificates,61712
http://statistics.data.gov.uk/id/local-authority/12UE,Huntingdonshire District Council,200417,Swim England Trading Limited,94008,23/02/2024,SWINV101390,OLH Badges & Certificates,14/03/2024,0,13.5,13.5,OLH - Swimming,Badges and Certificates,61712
http://statistics.data.gov.uk/id/local-authority/12UE,Huntingdonshire District Council,202749,COMPLETE POOL CONTROLS LTD,93041,30/01/2024,INV096215,OLH Pool Chemicals,22/02/2024,129.53,647.65,777.18,OLH - Swimming,Chemicals,64000
http://statistics.data.gov.uk/id/local-authority/12UE,Huntingdonshire District Council,202749,COMPLETE POOL CONTROLS LTD,90363,04/12/2023,INV094697,OLH Pool Chemicals,02/01/2024,104.64,523.21,627.85,OLH - Swimming,Chemicals,64000
http://statistics.data.gov.uk/id/local-authority/12UE,Huntingdonshire District Council,202749,COMPLETE POOL CONTROLS LTD,94700,05/03/2024,INV097257,OLH Pool Chemicals,27/03/2024,83.17,415.87,499.04,OLH - Swimming,Chemicals,64000
http://statistics.data.gov.uk/id/local-authority/12UE,Huntingdonshire District Council,200489,LES MILLS UK LES MILLS UK,91635,08/01/2024,LMUK-SIV-191704,OLH Licences May23-Mar24,01/02/2024,54.21,271.07,325.28,OLH - Fitness Activities,Licences,60410
http://statistics.data.gov.uk/id/local-authority/12UE,Huntingdonshire District Council,200489,LES MILLS UK LES MILLS UK,94422,07/02/2024,LMUK-SIV-193666,OLH Licences May23-Mar24,05/03/2024,54.21,271.07,325.28,OLH - Fitness Activities,Licences,60410
http://statistics.data.gov.uk/id/local-authority/12UE,Huntingdonshire District Council,200489,LES MILLS UK LES MILLS UK,94673,05/03/2024,LMUK-SIV-195849,OLH Licences Mar24,27/03/2024,54.21,271.07,325.28,OLH - Fitness Activities,Licences,60410
http://statistics.data.gov.uk/id/local-authority/12UE,Huntingdonshire District Council,200489,LES MILLS UK LES MILLS UK,90276,05/12/2023,LMUK-SIV-184587,OLH Licences May23-Mar24,02/01/2024,51.63,258.17,309.8,OLH - Fitness Activities,Licences,60410
http://statistics.data.gov.uk/id/local-authority/12UE,Huntingdonshire District Council,202688,NUTRIVEND LTD,92228,18/01/2024,2044496,OLR Bottled Drinks,08/02/2024,60.2,300.98,361.18,OLR - Hospitality,Vending Materials,61907
http://statistics.data.gov.uk/id/local-authority/12UE,Huntingdonshire District Council,202688,NUTRIVEND LTD,94839,06/03/2024,2048917,OLR Bottled Drinks,27/03/2024,54.49,272.47,326.96,OLR - Hospitality,Vending Materials,61907
http://statistics.data.gov.uk/id/local-authority/12UE,Huntingdonshire District Council,201989,Primal Strength Limited,93078,31/10/2023,10005183,OLR Rest Of Order,08/02/2024,111.32,556.6,667.92,OLR - Impressions,Sports Equipment,61708
http://statistics.data.gov.uk/id/local-authority/12UE,Huntingdonshire District Council,203391,Arriba Technologies Ltd,90793,05/12/2023,11635,OLR Heat Pump Maintenance,02/01/2024,314,1570,1884,OLR - Site & Centre Management,Maintenance - Mechanical And Electrical,60203
http://statistics.data.gov.uk/id/local-authority/12UE,Huntingdonshire District Council,201386,THAMES LABORATORIES,91757,29/12/2023,INV-98964,Reinspection Surveys - Various Sites,19/01/2024,23,115,138,OLR - Site & Centre Management,Maintenance - Mechanical And Electrical,60203
http://statistics.data.gov.uk/id/local-authority/12UE,Huntingdonshire District Council,200542,MIRAMAR ENGINEERING LTD MIRAMAR ENGINEERING LTD,93684,02/02/2024,13069,OLR Leaking Megaflo Tank Plantroom,22/02/2024,176.95,884.76,1061.71,OLR - Site & Centre Management,Maintenance - Building,60201
http://statistics.data.gov.uk/id/local-authority/12UE,Huntingdonshire District Council,200226,DAL-ROD (CAMRIDGESHIRE) DAL-ROD (CAMRIDGESHIRE),94434,20/02/2024,30004401,OLR Unblocked Drains Poolside,14/03/2024,87,435,522,OLR - Site & Centre Management,Maintenance - Building,60201
http://statistics.data.gov.uk/id/local-authority/12UE,Huntingdonshire District Council,200427,J A K  SYSTEMS LTD J A K SYSTEMS LTD,93987,16/02/2024,17834,OLR Pump Fix,08/03/2024,66.95,334.75,401.7,OLR - Site & Centre Management,Maintenance - Fixed Plant,60202
http://statistics.data.gov.uk/id/local-authority/12UE,Huntingdonshire District Council,200226,DAL-ROD (CAMRIDGESHIRE) DAL-ROD (CAMRIDGESHIRE),94432,20/02/2024,30004406,OLR Drain Cleared Urinals & Poolside,14/03/2024,58,290,348,OLR - Site & Centre Management,Maintenance - Building,60201
http://statistics.data.gov.uk/id/local-authority/12UE,Huntingdonshire District Council,202135,TOTAL GAS AND POWER LTD,91964,10/01/2024,326695726/24,OLR Dec23,19/01/2024,3804.79,19023.97,22828.76,OLR - Site & Centre Management,Electricity,60303
http://statistics.data.gov.uk/id/local-authority/12UE,Huntingdonshire District Council,202135,TOTAL GAS AND POWER LTD,93655,14/02/2024,331041892/24,OLR Jan24,20/02/2024,3580.93,17904.65,21485.58,OLR - Site & Centre Management,Electricity,60303
http://statistics.data.gov.uk/id/local-authority/12UE,Huntingdonshire District Council,202135,TOTAL GAS AND POWER LTD,95097,10/03/2024,333557202/24,OLR Feb24,14/03/2024,2917.68,14588.38,17506.06,OLR - Site & Centre Management,Electricity,60303
http://statistics.data.gov.uk/id/local-authority/12UE,Huntingdonshire District Council,202699,SMS ENERGY SERVICES LTD,92336,19/01/2024,ESL-SINV057001,MOP Contract Year3,08/02/2024,63,315,378,OLR - Site & Centre Management,Electricity,60303
http://statistics.data.gov.uk/id/local-authority/12UE,Huntingdonshire District Council,200913,WAVE  ANGLIAN WATER BUSINESS,93671,05/01/2024,12994764,OLR Water,29/02/2024,0,667.79,667.79,OLR - Site & Centre Management,Water And Sewerage,60302
http://statistics.data.gov.uk/id/local-authority/12UE,Huntingdonshire District Council,200913,WAVE  ANGLIAN WATER BUSINESS,93288,05/02/2024,13111142,OLR Water,29/02/2024,0,522.91,522.91,OLR - Site & Centre Management,Water And Sewerage,60302
http://statistics.data.gov.uk/id/local-authority/12UE,Huntingdonshire District Council,200913,WAVE  ANGLIAN WATER BUSINESS,90834,13/12/2023,12910374,OLR Credit 9345541,29/02/2024,0,-383.3,-383.3,OLR - Site & Centre Management,Water And Sewerage,60302
http://statistics.data.gov.uk/id/local-authority/12UE,Huntingdonshire District Council,200913,WAVE  ANGLIAN WATER BUSINESS,90833,13/12/2023,12910377,OLR Credit 8554170,29/02/2024,-39.6,-791.97,-831.57,OLR - Site & Centre Management,Water And Sewerage,60302
http://statistics.data.gov.uk/id/local-authority/12UE,Huntingdonshire District Council,200913,WAVE  ANGLIAN WATER BUSINESS,90830,13/12/2023,12910378,OLR Credit 6256889,29/02/2024,0,-835.03,-835.03,OLR - Site & Centre Management,Water And Sewerage,60302
http://statistics.data.gov.uk/id/local-authority/12UE,Huntingdonshire District Council,200913,WAVE  ANGLIAN WATER BUSINESS,90832,13/12/2023,12910375,OLR Credit 8554183,29/02/2024,0,-1290.81,-1290.81,OLR - Site & Centre Management,Water And Sewerage,60302
http://statistics.data.gov.uk/id/local-authority/12UE,Huntingdonshire District Council,200913,WAVE  ANGLIAN WATER BUSINESS,90831,13/12/2023,12910372,OLR Credit 10186318,29/02/2024,0,-1936.36,-1936.36,OLR - Site & Centre Management,Water And Sewerage,60302
http://statistics.data.gov.uk/id/local-authority/12UE,Huntingdonshire District Council,200689,RLSS UK Enterprise Ltd,94559,01/03/2024,ESI000690,Licences ATC Fees Mar24,14/03/2024,0,125,125,OLR - Site & Centre Management,Licences,60410
http://statistics.data.gov.uk/id/local-authority/12UE,Huntingdonshire District Council,200737,SPORTMAX SPORTMAX,93641,16/02/2024,130762,OLR Items For Sale,08/03/2024,50.18,250.9,301.08,OLR - Site & Centre Management,Goods For Resale,61400
http://statistics.data.gov.uk/id/local-authority/12UE,Huntingdonshire District Council,200411,INITIAL WASHROOM SOLUTIONS INITIAL WASHROOM SOLUTIONS,91821,10/01/2024,34953993,Hire Equipment - All OL's Jan-Feb24,01/02/2024,10.42,52.07,62.49,OLR - Site & Centre Management,Hire - Equipment Furniture And Materials,61700
http://statistics.data.gov.uk/id/local-authority/12UE,Huntingdonshire District Council,200411,INITIAL WASHROOM SOLUTIONS INITIAL WASHROOM SOLUTIONS,93299,07/02/2024,34985321,Equipment Hire All Sites 29.02-29.03.24,29/02/2024,10.42,52.07,62.49,OLR - Site & Centre Management,Hire - Equipment Furniture And Materials,61700
http://statistics.data.gov.uk/id/local-authority/12UE,Huntingdonshire District Council,200411,INITIAL WASHROOM SOLUTIONS INITIAL WASHROOM SOLUTIONS,90691,04/12/2023,34919816,Equipment Hire All Sites Dec23-Jan24,02/01/2024,9.11,45.54,54.65,OLR - Site & Centre Management,Hire - Equipment Furniture And Materials,61700
http://statistics.data.gov.uk/id/local-authority/12UE,Huntingdonshire District Council,201879,J & J SERVICES GB LTD,92326,09/05/2023,42145,OLR Service & Batteries,26/01/2024,111,555,666,OLR - Site & Centre Management,"Maintenance - Equipment, Furniture And Materials",61702
http://statistics.data.gov.uk/id/local-authority/12UE,Huntingdonshire District Council,200096,BEN BURGESS & COMPANY BEN BURGESS & COMPANY,94173,14/12/2023,964637,OLR Tractor Visit & Services,29/02/2024,52.74,263.72,316.46,OLR - Site & Centre Management,"Maintenance - Equipment, Furniture And Materials",61702
http://statistics.data.gov.uk/id/local-authority/12UE,Huntingdonshire District Council,200694,ROGER WILSON ELECTRONICS ROGER WILSON ELECTRONICS,93425,11/12/2023,11102,OLR Replace Sports Hall TV,15/02/2024,91.1,455.5,546.6,OLR - Site & Centre Management,Equipment,61713
http://statistics.data.gov.uk/id/local-authority/12UE,Huntingdonshire District Council,200434,JADE SECURITY SERVICES LTD JADE SECURITY SERVICES LTD,94694,29/02/2024,7100,Cash Collections Feb24,22/03/2024,16.2,81,97.2,OLR - Site & Centre Management,Contract Charges ,61800
http://statistics.data.gov.uk/id/local-authority/12UE,Huntingdonshire District Council,200434,JADE SECURITY SERVICES LTD JADE SECURITY SERVICES LTD,93380,31/01/2024,6959,Cash Collections Jan24,22/02/2024,10.8,54,64.8,OLR - Site & Centre Management,Contract Charges ,61800
http://statistics.data.gov.uk/id/local-authority/12UE,Huntingdonshire District Council,200434,JADE SECURITY SERVICES LTD JADE SECURITY SERVICES LTD,92898,31/12/2023,6761,Cash Collections Dec23,08/02/2024,5.4,27,32.4,OLR - Site & Centre Management,Contract Charges ,61800
http://statistics.data.gov.uk/id/local-authority/12UE,Huntingdonshire District Council,203309,Swift Stitch,94747,22/01/2024,7960,OLR Uniforms,08/03/2024,81.98,409.89,491.87,OLR - Site & Centre Management,"Clothes, Uniform And Laundry",62000
http://statistics.data.gov.uk/id/local-authority/12UE,Huntingdonshire District Council,200117,BRAMBLE HUB LTD BRAMBLE HUB LTD,90296,04/12/2023,INV-13885,OL All Sites Chip&Pin Integration,02/01/2024,123.43,617.16,740.59,OLR - Site & Centre Management,Ict Hardware,64070
http://statistics.data.gov.uk/id/local-authority/12UE,Huntingdonshire District Council,200117,BRAMBLE HUB LTD BRAMBLE HUB LTD,93243,30/01/2024,INV-14049,REDACTED,29/02/2024,13.75,68.75,82.5,OLR - Site & Centre Management,Ict Hardware,64070
http://statistics.data.gov.uk/id/local-authority/12UE,Huntingdonshire District Council,202749,COMPLETE POOL CONTROLS LTD,94815,05/03/2024,INV097259,OLR Pool Chemicals,27/03/2024,60.62,303.1,363.72,OLR - Swimming,Chemicals,64000
http://statistics.data.gov.uk/id/local-authority/12UE,Huntingdonshire District Council,202749,COMPLETE POOL CONTROLS LTD,92781,30/01/2024,INV096216,OLSTI SUGAR,22/02/2024,59.12,295.57,354.69,OLR - Swimming,Chemicals,64000
http://statistics.data.gov.uk/id/local-authority/12UE,Huntingdonshire District Council,200113,BOOKER CASH AND CARRY BOOKER CASH AND CARRY,95625,20/03/2024,3585751,BH Catering/Bar/Confectionery/Materials,22/03/2024,3.2,15.98,19.18,OLSI - Burgess Bar,Cleaning Materials,61300
http://statistics.data.gov.uk/id/local-authority/12UE,Huntingdonshire District Council,203100,Booker Wholesale Cambridge,91801,07/01/2024,3552625,BH Confectionery/Materials/Bar Provision,12/01/2024,16.4,81.98,98.38,OLSI - Burgess Bar,Materials,61709
http://statistics.data.gov.uk/id/local-authority/12UE,Huntingdonshire District Council,203100,Booker Wholesale Cambridge,91219,21/12/2023,3552251,OLSI Alcoholic bevs,04/01/2024,42.59,212.95,255.54,OLSI - Burgess Bar,Materials,61709
http://statistics.data.gov.uk/id/local-authority/12UE,Huntingdonshire District Council,200113,BOOKER CASH AND CARRY BOOKER CASH AND CARRY,95625,20/03/2024,3585751,BH Catering/Bar/Confectionery/Materials,22/03/2024,8,39.99,47.99,OLSI - Burgess Bar,Materials,61709
http://statistics.data.gov.uk/id/local-authority/12UE,Huntingdonshire District Council,200113,BOOKER CASH AND CARRY BOOKER CASH AND CARRY,93389,07/02/2024,3582164,BH/ZESST Bar/Cleaning/Materials/Confect,15/02/2024,16.99,84.96,101.95,OLSI - Burgess Bar,Materials,61709
http://statistics.data.gov.uk/id/local-authority/12UE,Huntingdonshire District Council,200113,BOOKER CASH AND CARRY BOOKER CASH AND CARRY,93218,25/01/2024,3581096,BH Catering/Bar/Confectionery/Materials,08/02/2024,27.69,138.47,166.16,OLSI - Burgess Bar,Materials,61709
http://statistics.data.gov.uk/id/local-authority/12UE,Huntingdonshire District Council,200113,BOOKER CASH AND CARRY BOOKER CASH AND CARRY,95170,23/02/2024,3583755,BH Catering/Bar/Confectionery/Materials,19/03/2024,27.69,138.47,166.16,OLSI - Burgess Bar,Materials,61709
http://statistics.data.gov.uk/id/local-authority/12UE,Huntingdonshire District Council,200734,SOUTH LINCS FOOD SERVICE SOUTH LINCS FOOD SERVICE,92147,11/01/2024,35503,BH Catering/Confectionery/Bar/Materials,19/01/2024,9.19,45.95,55.14,OLSI - Burgess Bar,Materials,61709
http://statistics.data.gov.uk/id/local-authority/12UE,Huntingdonshire District Council,200734,SOUTH LINCS FOOD SERVICE SOUTH LINCS FOOD SERVICE,93100,03/02/2024,360617,BH Catering & Vending Supplies/Materials,08/02/2024,2.4,11.98,14.38,OLSI - Burgess Bar,Materials,61709
http://statistics.data.gov.uk/id/local-authority/12UE,Huntingdonshire District Council,200471,LACONS LACONS,93039,30/01/2024,950018,BH Bar Provisions/Gas Cylinders,22/02/2024,5.33,26.63,31.96,OLSI - Burgess Bar,Gas Cylinders,61711
http://statistics.data.gov.uk/id/local-authority/12UE,Huntingdonshire District Council,200471,LACONS LACONS,91045,19/12/2023,946510,olsti drinks,12/01/2024,1.19,5.94,7.13,OLSI - Burgess Bar,Gas Cylinders,61711
http://statistics.data.gov.uk/id/local-authority/12UE,Huntingdonshire District Council,200471,LACONS LACONS,91633,04/01/2024,947806,BH Bar Provisions/Gas Cylinders,26/01/2024,26.99,134.93,161.92,OLSI - Burgess Bar,Gas Cylinders,61711
http://statistics.data.gov.uk/id/local-authority/12UE,Huntingdonshire District Council,200471,LACONS LACONS,93401,06/02/2024,950801,BH Bar Provisions/Gas Cylinders,29/02/2024,9.61,48.06,57.67,OLSI - Burgess Bar,Gas Cylinders,61711
http://statistics.data.gov.uk/id/local-authority/12UE,Huntingdonshire District Council,203100,Booker Wholesale Cambridge,91801,07/01/2024,3552625,BH Confectionery/Materials/Bar Provision,12/01/2024,259.6,1298,1557.6,OLSI - Burgess Bar,Bar Provisions,61905
http://statistics.data.gov.uk/id/local-authority/12UE,Huntingdonshire District Council,203100,Booker Wholesale Cambridge,91801,07/01/2024,3552625,BH Confectionery/Materials/Bar Provision,12/01/2024,47.75,238.73,286.48,OLSI - Burgess Bar,Confectionery,61906
http://statistics.data.gov.uk/id/local-authority/12UE,Huntingdonshire District Council,203100,Booker Wholesale Cambridge,91219,21/12/2023,3552251,OLSI Alcoholic bevs,04/01/2024,257.27,1286.33,1543.6,OLSI - Burgess Bar,Bar Provisions,61905
http://statistics.data.gov.uk/id/local-authority/12UE,Huntingdonshire District Council,200113,BOOKER CASH AND CARRY BOOKER CASH AND CARRY,95625,20/03/2024,3585751,BH Catering/Bar/Confectionery/Materials,22/03/2024,202.42,1012.12,1214.54,OLSI - Burgess Bar,Bar Provisions,61905
http://statistics.data.gov.uk/id/local-authority/12UE,Huntingdonshire District Council,200113,BOOKER CASH AND CARRY BOOKER CASH AND CARRY,95625,20/03/2024,3585751,BH Catering/Bar/Confectionery/Materials,22/03/2024,0,56.52,56.52,OLSI - Burgess Bar,Catering Supplies,61900
http://statistics.data.gov.uk/id/local-authority/12UE,Huntingdonshire District Council,200113,BOOKER CASH AND CARRY BOOKER CASH AND CARRY,95625,20/03/2024,3585751,BH Catering/Bar/Confectionery/Materials,22/03/2024,12.29,61.43,73.72,OLSI - Burgess Bar,Confectionery,61906
http://statistics.data.gov.uk/id/local-authority/12UE,Huntingdonshire District Council,200471,LACONS LACONS,90996,12/12/2023,945565,OLSTI DRINKS,04/01/2024,228.65,1143.24,1371.89,OLSI - Burgess Bar,Bar Provisions,61905
http://statistics.data.gov.uk/id/local-authority/12UE,Huntingdonshire District Council,200471,LACONS LACONS,93039,30/01/2024,950018,BH Bar Provisions/Gas Cylinders,22/02/2024,199.72,998.62,1198.34,OLSI - Burgess Bar,Bar Provisions,61905
http://statistics.data.gov.uk/id/local-authority/12UE,Huntingdonshire District Council,200113,BOOKER CASH AND CARRY BOOKER CASH AND CARRY,93389,07/02/2024,3582164,BH/ZESST Bar/Cleaning/Materials/Confect,15/02/2024,142.51,712.53,855.04,OLSI - Burgess Bar,Bar Provisions,61905
http://statistics.data.gov.uk/id/local-authority/12UE,Huntingdonshire District Council,200113,BOOKER CASH AND CARRY BOOKER CASH AND CARRY,93389,07/02/2024,3582164,BH/ZESST Bar/Cleaning/Materials/Confect,15/02/2024,0,63.98,63.98,OLSI - Burgess Bar,Confectionery,61906
http://statistics.data.gov.uk/id/local-authority/12UE,Huntingdonshire District Council,200471,LACONS LACONS,91045,19/12/2023,946510,olsti drinks,12/01/2024,174.63,873.14,1047.77,OLSI - Burgess Bar,Bar Provisions,61905
http://statistics.data.gov.uk/id/local-authority/12UE,Huntingdonshire District Council,200734,SOUTH LINCS FOOD SERVICE SOUTH LINCS FOOD SERVICE,94137,13/01/2024,355616,BH Catering/Confectionery/Bar Provisions,29/02/2024,0,145.05,145.05,OLSI - Burgess Bar,Catering Supplies,61900
http://statistics.data.gov.uk/id/local-authority/12UE,Huntingdonshire District Council,200734,SOUTH LINCS FOOD SERVICE SOUTH LINCS FOOD SERVICE,94137,13/01/2024,355616,BH Catering/Confectionery/Bar Provisions,29/02/2024,69.15,345.76,414.91,OLSI - Burgess Bar,Confectionery,61906
http://statistics.data.gov.uk/id/local-authority/12UE,Huntingdonshire District Council,200734,SOUTH LINCS FOOD SERVICE SOUTH LINCS FOOD SERVICE,94137,13/01/2024,355616,BH Catering/Confectionery/Bar Provisions,29/02/2024,74.05,370.24,444.29,OLSI - Burgess Bar,Bar Provisions,61905
http://statistics.data.gov.uk/id/local-authority/12UE,Huntingdonshire District Council,200113,BOOKER CASH AND CARRY BOOKER CASH AND CARRY,93218,25/01/2024,3581096,BH Catering/Bar/Confectionery/Materials,08/02/2024,132.47,662.37,794.84,OLSI - Burgess Bar,Bar Provisions,61905
http://statistics.data.gov.uk/id/local-authority/12UE,Huntingdonshire District Council,200113,BOOKER CASH AND CARRY BOOKER CASH AND CARRY,93218,25/01/2024,3581096,BH Catering/Bar/Confectionery/Materials,08/02/2024,0,21.75,21.75,OLSI - Burgess Bar,Confectionery,61906
http://statistics.data.gov.uk/id/local-authority/12UE,Huntingdonshire District Council,200113,BOOKER CASH AND CARRY BOOKER CASH AND CARRY,93218,25/01/2024,3581096,BH Catering/Bar/Confectionery/Materials,08/02/2024,0,24.37,24.37,OLSI - Burgess Bar,Catering Supplies,61900
http://statistics.data.gov.uk/id/local-authority/12UE,Huntingdonshire District Council,200471,LACONS LACONS,91633,04/01/2024,947806,BH Bar Provisions/Gas Cylinders,26/01/2024,132.77,663.83,796.6,OLSI - Burgess Bar,Bar Provisions,61905
http://statistics.data.gov.uk/id/local-authority/12UE,Huntingdonshire District Council,200471,LACONS LACONS,91237,29/12/2023,947262,Burgess Hall Beverages,19/01/2024,155.92,779.59,935.51,OLSI - Burgess Bar,Bar Provisions,61905
http://statistics.data.gov.uk/id/local-authority/12UE,Huntingdonshire District Council,200583,OAKHAM ALES OAKHAM ALES,95723,22/03/2024,3061,BH Bar Provisions,27/03/2024,151.36,756.78,908.14,OLSI - Burgess Bar,Bar Provisions,61905
http://statistics.data.gov.uk/id/local-authority/12UE,Huntingdonshire District Council,200471,LACONS LACONS,91224,29/12/2023,947290,Burgess Hall Beverages,19/01/2024,148.12,740.6,888.72,OLSI - Burgess Bar,Bar Provisions,61905
http://statistics.data.gov.uk/id/local-authority/12UE,Huntingdonshire District Council,200113,BOOKER CASH AND CARRY BOOKER CASH AND CARRY,95170,23/02/2024,3583755,BH Catering/Bar/Confectionery/Materials,19/03/2024,39.74,198.68,238.42,OLSI - Burgess Bar,Bar Provisions,61905
http://statistics.data.gov.uk/id/local-authority/12UE,Huntingdonshire District Council,200113,BOOKER CASH AND CARRY BOOKER CASH AND CARRY,95170,23/02/2024,3583755,BH Catering/Bar/Confectionery/Materials,19/03/2024,10.14,50.7,60.84,OLSI - Burgess Bar,Confectionery,61906
http://statistics.data.gov.uk/id/local-authority/12UE,Huntingdonshire District Council,200113,BOOKER CASH AND CARRY BOOKER CASH AND CARRY,95170,23/02/2024,3583755,BH Catering/Bar/Confectionery/Materials,19/03/2024,0,127.69,127.69,OLSI - Burgess Bar,Catering Supplies,61900
http://statistics.data.gov.uk/id/local-authority/12UE,Huntingdonshire District Council,200734,SOUTH LINCS FOOD SERVICE SOUTH LINCS FOOD SERVICE,92769,27/01/2024,358839,olsti catering,05/02/2024,0,44.84,44.84,OLSI - Burgess Bar,Catering Supplies,61900
http://statistics.data.gov.uk/id/local-authority/12UE,Huntingdonshire District Council,200734,SOUTH LINCS FOOD SERVICE SOUTH LINCS FOOD SERVICE,92147,11/01/2024,35503,BH Catering/Confectionery/Bar/Materials,19/01/2024,0,350.04,350.04,OLSI - Burgess Bar,Catering Supplies,61900
http://statistics.data.gov.uk/id/local-authority/12UE,Huntingdonshire District Council,200734,SOUTH LINCS FOOD SERVICE SOUTH LINCS FOOD SERVICE,92147,11/01/2024,35503,BH Catering/Confectionery/Bar/Materials,19/01/2024,0,19.79,19.79,OLSI - Burgess Bar,Confectionery,61906
http://statistics.data.gov.uk/id/local-authority/12UE,Huntingdonshire District Council,200734,SOUTH LINCS FOOD SERVICE SOUTH LINCS FOOD SERVICE,92147,11/01/2024,35503,BH Catering/Confectionery/Bar/Materials,19/01/2024,13.37,66.86,80.23,OLSI - Burgess Bar,Bar Provisions,61905
http://statistics.data.gov.uk/id/local-authority/12UE,Huntingdonshire District Council,200471,LACONS LACONS,93401,06/02/2024,950801,BH Bar Provisions/Gas Cylinders,29/02/2024,80.88,404.41,485.29,OLSI - Burgess Bar,Bar Provisions,61905
http://statistics.data.gov.uk/id/local-authority/12UE,Huntingdonshire District Council,200583,OAKHAM ALES OAKHAM ALES,91586,05/01/2024,I287826,BH Bar Provisions,08/01/2024,75.5,377.52,453.02,OLSI - Burgess Bar,Bar Provisions,61905
http://statistics.data.gov.uk/id/local-authority/12UE,Huntingdonshire District Council,200471,LACONS LACONS,94484,28/02/2024,953253,BH Bar Provisions,22/03/2024,71.01,355.03,426.04,OLSI - Burgess Bar,Bar Provisions,61905
http://statistics.data.gov.uk/id/local-authority/12UE,Huntingdonshire District Council,200113,BOOKER CASH AND CARRY BOOKER CASH AND CARRY,94837,13/02/2024,3476658,BH Catering Supplies/Confectionery,08/03/2024,0,241.6,241.6,OLSI - Burgess Bar,Catering Supplies,61900
http://statistics.data.gov.uk/id/local-authority/12UE,Huntingdonshire District Council,200113,BOOKER CASH AND CARRY BOOKER CASH AND CARRY,94837,13/02/2024,3476658,BH Catering Supplies/Confectionery,08/03/2024,18.64,93.2,111.84,OLSI - Burgess Bar,Confectionery,61906
http://statistics.data.gov.uk/id/local-authority/12UE,Huntingdonshire District Council,200845,WESTMINSTER FOODSERVICE WESTMINSTER FOODSERVICE,92768,24/01/2024,42139,olsti catering,15/02/2024,0,15.57,15.57,OLSI - Burgess Bar,Catering Supplies,61900
http://statistics.data.gov.uk/id/local-authority/12UE,Huntingdonshire District Council,200583,OAKHAM ALES OAKHAM ALES,94018,09/02/2024,INV-1397,BH Bar Provisions,27/02/2024,62.08,310.39,372.47,OLSI - Burgess Bar,Bar Provisions,61905
http://statistics.data.gov.uk/id/local-authority/12UE,Huntingdonshire District Council,200734,SOUTH LINCS FOOD SERVICE SOUTH LINCS FOOD SERVICE,93100,03/02/2024,360617,BH Catering & Vending Supplies/Materials,08/02/2024,0,282.92,282.92,OLSI - Burgess Bar,Catering Supplies,61900
http://statistics.data.gov.uk/id/local-authority/12UE,Huntingdonshire District Council,200734,SOUTH LINCS FOOD SERVICE SOUTH LINCS FOOD SERVICE,91253,18/11/2023,341821,OLSTI CATERING,04/01/2024,0,240.37,240.37,OLSI - Burgess Bar,Catering Supplies,61900
http://statistics.data.gov.uk/id/local-authority/12UE,Huntingdonshire District Council,200734,SOUTH LINCS FOOD SERVICE SOUTH LINCS FOOD SERVICE,91253,18/11/2023,341821,OLSTI CATERING,04/01/2024,10,50,60,OLSI - Burgess Bar,Confectionery,61906
http://statistics.data.gov.uk/id/local-authority/12UE,Huntingdonshire District Council,200734,SOUTH LINCS FOOD SERVICE SOUTH LINCS FOOD SERVICE,92411,20/01/2024,357256,ZEST Catering Supplies,26/01/2024,0,7.42,7.42,OLSI - Burgess Bar,Catering Supplies,61900
http://statistics.data.gov.uk/id/local-authority/12UE,Huntingdonshire District Council,203175,SRS Security,92881,29/01/2024,INV-000381,BH Security Staff 26.01.24,08/02/2024,0,420,420,OLSI - Burgess Hall,Agency Staff,60011
http://statistics.data.gov.uk/id/local-authority/12UE,Huntingdonshire District Council,203175,SRS Security,94676,06/03/2024,INV-000395,BH Security Staff 02.03.24,08/03/2024,0,367.5,367.5,OLSI - Burgess Hall,Agency Staff,60011
http://statistics.data.gov.uk/id/local-authority/12UE,Huntingdonshire District Council,200611,PPL PRS LTD PERFORMING RIGHT SOCIETY,93259,07/02/2024,SIN2634066,OLSI Music Licence Recharge Sep-Dec23,29/02/2024,204.76,1023.79,1228.55,OLSI - Burgess Hall,Licences,60410
http://statistics.data.gov.uk/id/local-authority/12UE,Huntingdonshire District Council,202376,CATERING HYGIENE SPECIALISTS,91302,07/12/2023,211480,olsti cleaning,08/01/2024,459.8,2299,2758.8,OLSI - Burgess Hall,"Maintenance - Equipment, Furniture And Materials",61702
http://statistics.data.gov.uk/id/local-authority/12UE,Huntingdonshire District Council,203451,A10 Printing/Tamsin Shipp,92895,31/01/2024,6009,BH Uniform,22/02/2024,128.8,644,772.8,OLSI - Burgess Hall,"Clothes, Uniform And Laundry",62000
http://statistics.data.gov.uk/id/local-authority/12UE,Huntingdonshire District Council,200178,CENTRE THEATRE PLAYERS CENTRE THEATRE PLAYERS,94717,03/03/2024,104,BH Panto Entertainments 2024,08/03/2024,0,576.05,576.05,OLSI - Burgess Hall,Entertainments,64079
http://statistics.data.gov.uk/id/local-authority/12UE,Huntingdonshire District Council,200360,HARLEQUIN COSTUME HIRE HARLEQUIN COSTUME HIRE,93061,15/01/2024,INVOI150124CENTRE PLA,BH Panto Materials Jan24,08/02/2024,0,1983.15,1983.15,OLSI - Burgess Hall,Materials,61709
http://statistics.data.gov.uk/id/local-authority/12UE,Huntingdonshire District Council,200694,ROGER WILSON ELECTRONICS ROGER WILSON ELECTRONICS,92333,20/01/2024,11113,OLSI Panto Electrical Hire,26/01/2024,351.94,1759.7,2111.64,OLSI - Burgess Hall,Materials,61709
http://statistics.data.gov.uk/id/local-authority/12UE,Huntingdonshire District Council,200608,PEARCE SOUND & LIGHTING LTD PEARCE SOUND & LIGHTING LTD,92335,09/01/2024,H27576,BH Panto Light Hire,01/02/2024,344.2,1721,2065.2,OLSI - Burgess Hall,Materials,61709
http://statistics.data.gov.uk/id/local-authority/12UE,Huntingdonshire District Council,201504,REDACTED,92159,08/01/2024,HDC 003,BH Panto Expenses,19/01/2024,0,1318.96,1318.96,OLSI - Burgess Hall,Materials,61709
http://statistics.data.gov.uk/id/local-authority/12UE,Huntingdonshire District Council,200178,CENTRE THEATRE PLAYERS CENTRE THEATRE PLAYERS,92400,25/01/2024,PANTO MATERIALS JAN24,Panto Materials Jan24,26/01/2024,0,1000.81,1000.81,OLSI - Burgess Hall,Materials,61709
http://statistics.data.gov.uk/id/local-authority/12UE,Huntingdonshire District Council,200178,CENTRE THEATRE PLAYERS CENTRE THEATRE PLAYERS,93512,10/02/2024,103,BH Panto Script Writing,20/02/2024,0,900,900,OLSI - Burgess Hall,Materials,61709
http://statistics.data.gov.uk/id/local-authority/12UE,Huntingdonshire District Council,200746,STARLITE ROADSHOW STARLITE ROADSHOW,92332,20/01/2024,1117,OLSI Panto Equipment Hire,26/01/2024,0,650.8,650.8,OLSI - Burgess Hall,Materials,61709
http://statistics.data.gov.uk/id/local-authority/12UE,Huntingdonshire District Council,201515,REDACTED,92401,25/01/2024,PANTO MATERIALS JAN24,Panto Materials Jan24,26/01/2024,0,452.1,452.1,OLSI - Burgess Hall,Materials,61709
http://statistics.data.gov.uk/id/local-authority/12UE,Huntingdonshire District Council,201506,JOSH GREENE GREENE RHYTHM SERVICES,92160,15/01/2024,102,BH Panto Expenses,19/01/2024,0,450,450,OLSI - Burgess Hall,Materials,61709
http://statistics.data.gov.uk/id/local-authority/12UE,Huntingdonshire District Council,200178,CENTRE THEATRE PLAYERS CENTRE THEATRE PLAYERS,93513,20/02/2024,102,BH Panto Materials Jan24,20/02/2024,0,404.44,404.44,OLSI - Burgess Hall,Materials,61709
http://statistics.data.gov.uk/id/local-authority/12UE,Huntingdonshire District Council,201540,REDACTED,92291,16/01/2024,GUITAR PERFORMANCE 08-14.01.2,BH Guitar Performance 08-14.01.24,26/01/2024,0,400,400,OLSI - Burgess Hall,Materials,61709
http://statistics.data.gov.uk/id/local-authority/12UE,Huntingdonshire District Council,200557,REDACTED,92083,17/01/2024,PANTO MATERIALS JAN24,Panto Materials Jan24,19/01/2024,0,353.32,353.32,OLSI - Burgess Hall,Materials,61709
http://statistics.data.gov.uk/id/local-authority/12UE,Huntingdonshire District Council,203463,Stage Electrics Partnership Ltd,92357,10/01/2024,401669,Hire Panto Pyro Flash Cart Jan24,01/02/2024,56.1,280.5,336.6,OLSI - Burgess Hall,Materials,61709
http://statistics.data.gov.uk/id/local-authority/12UE,Huntingdonshire District Council,200694,ROGER WILSON ELECTRONICS ROGER WILSON ELECTRONICS,92506,24/01/2024,11121,OLSI Credit Over-Charge Panto Invoice,08/02/2024,-90.4,-452,-542.4,OLSI - Burgess Hall,Materials,61709
http://statistics.data.gov.uk/id/local-authority/12UE,Huntingdonshire District Council,200113,BOOKER CASH AND CARRY BOOKER CASH AND CARRY,93389,07/02/2024,3582164,BH/ZESST Bar/Cleaning/Materials/Confect,15/02/2024,5.4,26.98,32.38,OLSI - Hospitality,Cleaning Materials,61300
http://statistics.data.gov.uk/id/local-authority/12UE,Huntingdonshire District Council,200734,SOUTH LINCS FOOD SERVICE SOUTH LINCS FOOD SERVICE,92769,27/01/2024,358839,olsti catering,05/02/2024,2,10,12,OLSI - Hospitality,Materials,61709
http://statistics.data.gov.uk/id/local-authority/12UE,Huntingdonshire District Council,200734,SOUTH LINCS FOOD SERVICE SOUTH LINCS FOOD SERVICE,92413,16/01/2024,356042,ZEST Catering/Confectionery/Materials,26/01/2024,10.18,50.9,61.08,OLSI - Hospitality,Materials,61709
http://statistics.data.gov.uk/id/local-authority/12UE,Huntingdonshire District Council,200734,SOUTH LINCS FOOD SERVICE SOUTH LINCS FOOD SERVICE,92175,11/01/2024,355002,ZEST Catering/Bar Provisions/Materials,19/01/2024,16.16,80.82,96.98,OLSI - Hospitality,Materials,61709
http://statistics.data.gov.uk/id/local-authority/12UE,Huntingdonshire District Council,200734,SOUTH LINCS FOOD SERVICE SOUTH LINCS FOOD SERVICE,95366,12/03/2024,370040,ZEST Catering/Bar Provisions/Materials,22/03/2024,19.73,98.64,118.37,OLSI - Hospitality,Materials,61709
http://statistics.data.gov.uk/id/local-authority/12UE,Huntingdonshire District Council,200734,SOUTH LINCS FOOD SERVICE SOUTH LINCS FOOD SERVICE,94275,24/02/2024,365819,ZEST Catering Supplies/Materials,05/03/2024,12.18,60.91,73.09,OLSI - Hospitality,Materials,61709
http://statistics.data.gov.uk/id/local-authority/12UE,Huntingdonshire District Council,200726,SNACKLINE DIRECT LTD SNACKLINE DIRECT LTD,94148,13/02/2024,147348,ZEST Catering/Confectionery/Bar,08/03/2024,42.17,210.86,253.03,OLSI - Hospitality,Confectionery,61906
http://statistics.data.gov.uk/id/local-authority/12UE,Huntingdonshire District Council,200726,SNACKLINE DIRECT LTD SNACKLINE DIRECT LTD,94148,13/02/2024,147348,ZEST Catering/Confectionery/Bar,08/03/2024,0,55.03,55.03,OLSI - Hospitality,Confectionery,61906
http://statistics.data.gov.uk/id/local-authority/12UE,Huntingdonshire District Council,200726,SNACKLINE DIRECT LTD SNACKLINE DIRECT LTD,94148,13/02/2024,147348,ZEST Catering/Confectionery/Bar,08/03/2024,31.98,159.9,191.88,OLSI - Hospitality,Bar Provisions,61905
http://statistics.data.gov.uk/id/local-authority/12UE,Huntingdonshire District Council,200726,SNACKLINE DIRECT LTD SNACKLINE DIRECT LTD,94148,13/02/2024,147348,ZEST Catering/Confectionery/Bar,08/03/2024,0,52.97,52.97,OLSI - Hospitality,Catering Supplies,61900
http://statistics.data.gov.uk/id/local-authority/12UE,Huntingdonshire District Council,200726,SNACKLINE DIRECT LTD SNACKLINE DIRECT LTD,94148,13/02/2024,147348,ZEST Catering/Confectionery/Bar,08/03/2024,20.68,103.4,124.08,OLSI - Hospitality,Catering Supplies,61900
http://statistics.data.gov.uk/id/local-authority/12UE,Huntingdonshire District Council,200734,SOUTH LINCS FOOD SERVICE SOUTH LINCS FOOD SERVICE,92769,27/01/2024,358839,olsti catering,05/02/2024,0,371.16,371.16,OLSI - Hospitality,Catering Supplies,61900
http://statistics.data.gov.uk/id/local-authority/12UE,Huntingdonshire District Council,200734,SOUTH LINCS FOOD SERVICE SOUTH LINCS FOOD SERVICE,92769,27/01/2024,358839,olsti catering,05/02/2024,0,41.77,41.77,OLSI - Hospitality,Confectionery,61906
http://statistics.data.gov.uk/id/local-authority/12UE,Huntingdonshire District Council,200734,SOUTH LINCS FOOD SERVICE SOUTH LINCS FOOD SERVICE,92769,27/01/2024,358839,olsti catering,05/02/2024,6.48,32.4,38.88,OLSI - Hospitality,Bar Provisions,61905
http://statistics.data.gov.uk/id/local-authority/12UE,Huntingdonshire District Council,200726,SNACKLINE DIRECT LTD SNACKLINE DIRECT LTD,92176,09/01/2024,146381,ZEST Catering/Confectionery/Bar Provs,01/02/2024,34.38,171.88,206.26,OLSI - Hospitality,Confectionery,61906
http://statistics.data.gov.uk/id/local-authority/12UE,Huntingdonshire District Council,200726,SNACKLINE DIRECT LTD SNACKLINE DIRECT LTD,92176,09/01/2024,146381,ZEST Catering/Confectionery/Bar Provs,01/02/2024,0,59.96,59.96,OLSI - Hospitality,Confectionery,61906
http://statistics.data.gov.uk/id/local-authority/12UE,Huntingdonshire District Council,200726,SNACKLINE DIRECT LTD SNACKLINE DIRECT LTD,92176,09/01/2024,146381,ZEST Catering/Confectionery/Bar Provs,01/02/2024,28.17,140.87,169.04,OLSI - Hospitality,Bar Provisions,61905
http://statistics.data.gov.uk/id/local-authority/12UE,Huntingdonshire District Council,200726,SNACKLINE DIRECT LTD SNACKLINE DIRECT LTD,92176,09/01/2024,146381,ZEST Catering/Confectionery/Bar Provs,01/02/2024,0,15.99,15.99,OLSI - Hospitality,Bar Provisions,61905
http://statistics.data.gov.uk/id/local-authority/12UE,Huntingdonshire District Council,200726,SNACKLINE DIRECT LTD SNACKLINE DIRECT LTD,92176,09/01/2024,146381,ZEST Catering/Confectionery/Bar Provs,01/02/2024,8.99,44.94,53.93,OLSI - Hospitality,Catering Supplies,61900
http://statistics.data.gov.uk/id/local-authority/12UE,Huntingdonshire District Council,200734,SOUTH LINCS FOOD SERVICE SOUTH LINCS FOOD SERVICE,92413,16/01/2024,356042,ZEST Catering/Confectionery/Materials,26/01/2024,0,292.34,292.34,OLSI - Hospitality,Catering Supplies,61900
http://statistics.data.gov.uk/id/local-authority/12UE,Huntingdonshire District Council,200734,SOUTH LINCS FOOD SERVICE SOUTH LINCS FOOD SERVICE,92413,16/01/2024,356042,ZEST Catering/Confectionery/Materials,26/01/2024,0,24.74,24.74,OLSI - Hospitality,Confectionery,61906
http://statistics.data.gov.uk/id/local-authority/12UE,Huntingdonshire District Council,200726,SNACKLINE DIRECT LTD SNACKLINE DIRECT LTD,92772,23/01/2024,146758,olsti catering,15/02/2024,0,82.72,82.72,OLSI - Hospitality,Confectionery,61906
http://statistics.data.gov.uk/id/local-authority/12UE,Huntingdonshire District Council,200726,SNACKLINE DIRECT LTD SNACKLINE DIRECT LTD,92772,23/01/2024,146758,olsti catering,15/02/2024,0,15.99,15.99,OLSI - Hospitality,Bar Provisions,61905
http://statistics.data.gov.uk/id/local-authority/12UE,Huntingdonshire District Council,200726,SNACKLINE DIRECT LTD SNACKLINE DIRECT LTD,92772,23/01/2024,146758,olsti catering,15/02/2024,32.88,164.4,197.28,OLSI - Hospitality,Confectionery,61906
http://statistics.data.gov.uk/id/local-authority/12UE,Huntingdonshire District Council,200726,SNACKLINE DIRECT LTD SNACKLINE DIRECT LTD,92772,23/01/2024,146758,olsti catering,15/02/2024,17.69,88.43,106.12,OLSI - Hospitality,Bar Provisions,61905
http://statistics.data.gov.uk/id/local-authority/12UE,Huntingdonshire District Council,200726,SNACKLINE DIRECT LTD SNACKLINE DIRECT LTD,92772,23/01/2024,146758,olsti catering,15/02/2024,3,14.98,17.98,OLSI - Hospitality,Catering Supplies,61900
http://statistics.data.gov.uk/id/local-authority/12UE,Huntingdonshire District Council,200723,SLUSH PUPPIE LTD SLUSH PUPPIE LTD,94935,16/02/2024,INVGB316101,ZEST Slushie Refills,13/03/2024,71.56,357.8,429.36,OLSI - Hospitality,Catering Supplies,61900
http://statistics.data.gov.uk/id/local-authority/12UE,Huntingdonshire District Council,200845,WESTMINSTER FOODSERVICE WESTMINSTER FOODSERVICE,91083,20/12/2023,41490,OLSTI DRINKS,12/01/2024,40.97,204.83,245.8,OLSI - Hospitality,Bar Provisions,61905
http://statistics.data.gov.uk/id/local-authority/12UE,Huntingdonshire District Council,200845,WESTMINSTER FOODSERVICE WESTMINSTER FOODSERVICE,91083,20/12/2023,41490,OLSTI DRINKS,12/01/2024,2.2,10.99,13.19,OLSI - Hospitality,Confectionery,61906
http://statistics.data.gov.uk/id/local-authority/12UE,Huntingdonshire District Council,200845,WESTMINSTER FOODSERVICE WESTMINSTER FOODSERVICE,91083,20/12/2023,41490,OLSTI DRINKS,12/01/2024,0,132.76,132.76,OLSI - Hospitality,Catering Supplies,61900
http://statistics.data.gov.uk/id/local-authority/12UE,Huntingdonshire District Council,200845,WESTMINSTER FOODSERVICE WESTMINSTER FOODSERVICE,94120,14/02/2024,42680,OLSI Catering/Confectionery/Bar,08/03/2024,31.26,156.3,187.56,OLSI - Hospitality,Bar Provisions,61905
http://statistics.data.gov.uk/id/local-authority/12UE,Huntingdonshire District Council,200845,WESTMINSTER FOODSERVICE WESTMINSTER FOODSERVICE,94120,14/02/2024,42680,OLSI Catering/Confectionery/Bar,08/03/2024,14.3,71.5,85.8,OLSI - Hospitality,Confectionery,61906
http://statistics.data.gov.uk/id/local-authority/12UE,Huntingdonshire District Council,200845,WESTMINSTER FOODSERVICE WESTMINSTER FOODSERVICE,94120,14/02/2024,42680,OLSI Catering/Confectionery/Bar,08/03/2024,0,110.31,110.31,OLSI - Hospitality,Catering Supplies,61900
http://statistics.data.gov.uk/id/local-authority/12UE,Huntingdonshire District Council,200726,SNACKLINE DIRECT LTD SNACKLINE DIRECT LTD,90602,05/12/2023,145766,ZEST Confectionery/Bar Provisions,02/01/2024,0,84.95,84.95,OLSI - Hospitality,Confectionery,61906
http://statistics.data.gov.uk/id/local-authority/12UE,Huntingdonshire District Council,200726,SNACKLINE DIRECT LTD SNACKLINE DIRECT LTD,90602,05/12/2023,145766,ZEST Confectionery/Bar Provisions,02/01/2024,34.68,173.39,208.07,OLSI - Hospitality,Confectionery,61906
http://statistics.data.gov.uk/id/local-authority/12UE,Huntingdonshire District Council,200726,SNACKLINE DIRECT LTD SNACKLINE DIRECT LTD,90602,05/12/2023,145766,ZEST Confectionery/Bar Provisions,02/01/2024,14.29,71.46,85.75,OLSI - Hospitality,Bar Provisions,61905
http://statistics.data.gov.uk/id/local-authority/12UE,Huntingdonshire District Council,200734,SOUTH LINCS FOOD SERVICE SOUTH LINCS FOOD SERVICE,92175,11/01/2024,355002,ZEST Catering/Bar Provisions/Materials,19/01/2024,0,227.21,227.21,OLSI - Hospitality,Catering Supplies,61900
http://statistics.data.gov.uk/id/local-authority/12UE,Huntingdonshire District Council,200734,SOUTH LINCS FOOD SERVICE SOUTH LINCS FOOD SERVICE,92175,11/01/2024,355002,ZEST Catering/Bar Provisions/Materials,19/01/2024,4.1,20.52,24.62,OLSI - Hospitality,Bar Provisions,61905
http://statistics.data.gov.uk/id/local-authority/12UE,Huntingdonshire District Council,200845,WESTMINSTER FOODSERVICE WESTMINSTER FOODSERVICE,92173,10/01/2024,41778,OLSI Catering/Bar/Confectionery,01/02/2024,0,154.83,154.83,OLSI - Hospitality,Catering Supplies,61900
http://statistics.data.gov.uk/id/local-authority/12UE,Huntingdonshire District Council,200845,WESTMINSTER FOODSERVICE WESTMINSTER FOODSERVICE,92173,10/01/2024,41778,OLSI Catering/Bar/Confectionery,01/02/2024,31.93,159.66,191.59,OLSI - Hospitality,Bar Provisions,61905
http://statistics.data.gov.uk/id/local-authority/12UE,Huntingdonshire District Council,200845,WESTMINSTER FOODSERVICE WESTMINSTER FOODSERVICE,92173,10/01/2024,41778,OLSI Catering/Bar/Confectionery,01/02/2024,2.6,12.99,15.59,OLSI - Hospitality,Confectionery,61906
http://statistics.data.gov.uk/id/local-authority/12UE,Huntingdonshire District Council,200845,WESTMINSTER FOODSERVICE WESTMINSTER FOODSERVICE,94724,28/02/2024,43012,ZEST Catering/Confectionery/Bar,22/03/2024,45.41,227.05,272.46,OLSI - Hospitality,Bar Provisions,61905
http://statistics.data.gov.uk/id/local-authority/12UE,Huntingdonshire District Council,200845,WESTMINSTER FOODSERVICE WESTMINSTER FOODSERVICE,94724,28/02/2024,43012,ZEST Catering/Confectionery/Bar,22/03/2024,0,69.53,69.53,OLSI - Hospitality,Catering Supplies,61900
http://statistics.data.gov.uk/id/local-authority/12UE,Huntingdonshire District Council,200845,WESTMINSTER FOODSERVICE WESTMINSTER FOODSERVICE,94724,28/02/2024,43012,ZEST Catering/Confectionery/Bar,22/03/2024,4.6,23,27.6,OLSI - Hospitality,Confectionery,61906
http://statistics.data.gov.uk/id/local-authority/12UE,Huntingdonshire District Council,200845,WESTMINSTER FOODSERVICE WESTMINSTER FOODSERVICE,92768,24/01/2024,42139,olsti catering,15/02/2024,36.68,183.39,220.07,OLSI - Hospitality,Bar Provisions,61905
http://statistics.data.gov.uk/id/local-authority/12UE,Huntingdonshire District Council,200845,WESTMINSTER FOODSERVICE WESTMINSTER FOODSERVICE,92768,24/01/2024,42139,olsti catering,15/02/2024,4.75,23.75,28.5,OLSI - Hospitality,Confectionery,61906
http://statistics.data.gov.uk/id/local-authority/12UE,Huntingdonshire District Council,200845,WESTMINSTER FOODSERVICE WESTMINSTER FOODSERVICE,92768,24/01/2024,42139,olsti catering,15/02/2024,0,95.77,95.77,OLSI - Hospitality,Catering Supplies,61900
http://statistics.data.gov.uk/id/local-authority/12UE,Huntingdonshire District Council,200845,WESTMINSTER FOODSERVICE WESTMINSTER FOODSERVICE,90601,06/12/2023,41146,ZEST Catering/Confectionery/Bar,02/01/2024,20.46,102.3,122.76,OLSI - Hospitality,Bar Provisions,61905
http://statistics.data.gov.uk/id/local-authority/12UE,Huntingdonshire District Council,200845,WESTMINSTER FOODSERVICE WESTMINSTER FOODSERVICE,90601,06/12/2023,41146,ZEST Catering/Confectionery/Bar,02/01/2024,0,18.2,18.2,OLSI - Hospitality,Confectionery,61906
http://statistics.data.gov.uk/id/local-authority/12UE,Huntingdonshire District Council,200845,WESTMINSTER FOODSERVICE WESTMINSTER FOODSERVICE,90601,06/12/2023,41146,ZEST Catering/Confectionery/Bar,02/01/2024,0,138.72,138.72,OLSI - Hospitality,Catering Supplies,61900
http://statistics.data.gov.uk/id/local-authority/12UE,Huntingdonshire District Council,200845,WESTMINSTER FOODSERVICE WESTMINSTER FOODSERVICE,90601,06/12/2023,41146,ZEST Catering/Confectionery/Bar,02/01/2024,11.75,58.74,70.49,OLSI - Hospitality,Confectionery,61906
http://statistics.data.gov.uk/id/local-authority/12UE,Huntingdonshire District Council,200845,WESTMINSTER FOODSERVICE WESTMINSTER FOODSERVICE,90845,13/12/2023,41320,ZEST Catering/Confectionery/Bar,04/01/2024,27.85,139.23,167.08,OLSI - Hospitality,Bar Provisions,61905
http://statistics.data.gov.uk/id/local-authority/12UE,Huntingdonshire District Council,200845,WESTMINSTER FOODSERVICE WESTMINSTER FOODSERVICE,90845,13/12/2023,41320,ZEST Catering/Confectionery/Bar,04/01/2024,12.15,60.74,72.89,OLSI - Hospitality,Confectionery,61906
http://statistics.data.gov.uk/id/local-authority/12UE,Huntingdonshire District Council,200845,WESTMINSTER FOODSERVICE WESTMINSTER FOODSERVICE,90845,13/12/2023,41320,ZEST Catering/Confectionery/Bar,04/01/2024,0,97.73,97.73,OLSI - Hospitality,Catering Supplies,61900
http://statistics.data.gov.uk/id/local-authority/12UE,Huntingdonshire District Council,200845,WESTMINSTER FOODSERVICE WESTMINSTER FOODSERVICE,90845,13/12/2023,41320,ZEST Catering/Confectionery/Bar,04/01/2024,0,18.2,18.2,OLSI - Hospitality,Confectionery,61906
http://statistics.data.gov.uk/id/local-authority/12UE,Huntingdonshire District Council,200734,SOUTH LINCS FOOD SERVICE SOUTH LINCS FOOD SERVICE,93464,06/02/2024,361047,ZEST Catering & Vending Supplies,15/02/2024,0,313.89,313.89,OLSI - Hospitality,Catering Supplies,61900
http://statistics.data.gov.uk/id/local-authority/12UE,Huntingdonshire District Council,200845,WESTMINSTER FOODSERVICE WESTMINSTER FOODSERVICE,93467,07/02/2024,42515,OLSI Catering/Bar/Confectionery,29/02/2024,0,119.56,119.56,OLSI - Hospitality,Catering Supplies,61900
http://statistics.data.gov.uk/id/local-authority/12UE,Huntingdonshire District Council,200845,WESTMINSTER FOODSERVICE WESTMINSTER FOODSERVICE,93467,07/02/2024,42515,OLSI Catering/Bar/Confectionery,29/02/2024,32.88,164.38,197.26,OLSI - Hospitality,Bar Provisions,61905
http://statistics.data.gov.uk/id/local-authority/12UE,Huntingdonshire District Council,200845,WESTMINSTER FOODSERVICE WESTMINSTER FOODSERVICE,93467,07/02/2024,42515,OLSI Catering/Bar/Confectionery,29/02/2024,2.3,11.5,13.8,OLSI - Hospitality,Confectionery,61906
http://statistics.data.gov.uk/id/local-authority/12UE,Huntingdonshire District Council,200845,WESTMINSTER FOODSERVICE WESTMINSTER FOODSERVICE,93467,07/02/2024,42515,OLSI Catering/Bar/Confectionery,29/02/2024,0,18.2,18.2,OLSI - Hospitality,Confectionery,61906
http://statistics.data.gov.uk/id/local-authority/12UE,Huntingdonshire District Council,200734,SOUTH LINCS FOOD SERVICE SOUTH LINCS FOOD SERVICE,95366,12/03/2024,370040,ZEST Catering/Bar Provisions/Materials,22/03/2024,0,190.04,190.04,OLSI - Hospitality,Catering Supplies,61900
http://statistics.data.gov.uk/id/local-authority/12UE,Huntingdonshire District Council,200734,SOUTH LINCS FOOD SERVICE SOUTH LINCS FOOD SERVICE,95366,12/03/2024,370040,ZEST Catering/Bar Provisions/Materials,22/03/2024,4.71,23.54,28.25,OLSI - Hospitality,Bar Provisions,61905
http://statistics.data.gov.uk/id/local-authority/12UE,Huntingdonshire District Council,200726,SNACKLINE DIRECT LTD SNACKLINE DIRECT LTD,94943,05/03/2024,147940,ZEST Catering/Confectionery/Bar,27/03/2024,0,17.99,17.99,OLSI - Hospitality,Catering Supplies,61900
http://statistics.data.gov.uk/id/local-authority/12UE,Huntingdonshire District Council,200726,SNACKLINE DIRECT LTD SNACKLINE DIRECT LTD,94943,05/03/2024,147940,ZEST Catering/Confectionery/Bar,27/03/2024,32.68,163.38,196.06,OLSI - Hospitality,Bar Provisions,61905
http://statistics.data.gov.uk/id/local-authority/12UE,Huntingdonshire District Council,200726,SNACKLINE DIRECT LTD SNACKLINE DIRECT LTD,94943,05/03/2024,147940,ZEST Catering/Confectionery/Bar,27/03/2024,8.09,40.46,48.55,OLSI - Hospitality,Catering Supplies,61900
http://statistics.data.gov.uk/id/local-authority/12UE,Huntingdonshire District Council,200726,SNACKLINE DIRECT LTD SNACKLINE DIRECT LTD,94943,05/03/2024,147940,ZEST Catering/Confectionery/Bar,27/03/2024,0,11.29,11.29,OLSI - Hospitality,Confectionery,61906
http://statistics.data.gov.uk/id/local-authority/12UE,Huntingdonshire District Council,200726,SNACKLINE DIRECT LTD SNACKLINE DIRECT LTD,94943,05/03/2024,147940,ZEST Catering/Confectionery/Bar,27/03/2024,15.79,78.94,94.73,OLSI - Hospitality,Confectionery,61906
http://statistics.data.gov.uk/id/local-authority/12UE,Huntingdonshire District Council,200726,SNACKLINE DIRECT LTD SNACKLINE DIRECT LTD,93468,07/02/2024,147198,OLSI Catering/Bar/Confectionery,29/02/2024,3,14.98,17.98,OLSI - Hospitality,Catering Supplies,61900
http://statistics.data.gov.uk/id/local-authority/12UE,Huntingdonshire District Council,200726,SNACKLINE DIRECT LTD SNACKLINE DIRECT LTD,93468,07/02/2024,147198,OLSI Catering/Bar/Confectionery,29/02/2024,16.88,84.41,101.29,OLSI - Hospitality,Bar Provisions,61905
http://statistics.data.gov.uk/id/local-authority/12UE,Huntingdonshire District Council,200726,SNACKLINE DIRECT LTD SNACKLINE DIRECT LTD,93468,07/02/2024,147198,OLSI Catering/Bar/Confectionery,29/02/2024,31.68,158.39,190.07,OLSI - Hospitality,Confectionery,61906
http://statistics.data.gov.uk/id/local-authority/12UE,Huntingdonshire District Council,200726,SNACKLINE DIRECT LTD SNACKLINE DIRECT LTD,93468,07/02/2024,147198,OLSI Catering/Bar/Confectionery,29/02/2024,0,36.86,36.86,OLSI - Hospitality,Confectionery,61906
http://statistics.data.gov.uk/id/local-authority/12UE,Huntingdonshire District Council,200734,SOUTH LINCS FOOD SERVICE SOUTH LINCS FOOD SERVICE,92411,20/01/2024,357256,ZEST Catering Supplies,26/01/2024,0,269.96,269.96,OLSI - Hospitality,Catering Supplies,61900
http://statistics.data.gov.uk/id/local-authority/12UE,Huntingdonshire District Council,200726,SNACKLINE DIRECT LTD SNACKLINE DIRECT LTD,91084,20/12/2023,146135,OLSTI CATERING,12/01/2024,0,14.58,14.58,OLSI - Hospitality,Confectionery,61906
http://statistics.data.gov.uk/id/local-authority/12UE,Huntingdonshire District Council,200726,SNACKLINE DIRECT LTD SNACKLINE DIRECT LTD,91084,20/12/2023,146135,OLSTI CATERING,12/01/2024,16.79,83.94,100.73,OLSI - Hospitality,Confectionery,61906
http://statistics.data.gov.uk/id/local-authority/12UE,Huntingdonshire District Council,200726,SNACKLINE DIRECT LTD SNACKLINE DIRECT LTD,91084,20/12/2023,146135,OLSTI CATERING,12/01/2024,27.28,136.42,163.7,OLSI - Hospitality,Bar Provisions,61905
http://statistics.data.gov.uk/id/local-authority/12UE,Huntingdonshire District Council,200726,SNACKLINE DIRECT LTD SNACKLINE DIRECT LTD,91084,20/12/2023,146135,OLSTI CATERING,12/01/2024,5.99,29.96,35.95,OLSI - Hospitality,Catering Supplies,61900
http://statistics.data.gov.uk/id/local-authority/12UE,Huntingdonshire District Council,200734,SOUTH LINCS FOOD SERVICE SOUTH LINCS FOOD SERVICE,94275,24/02/2024,365819,ZEST Catering Supplies/Materials,05/03/2024,0,195.1,195.1,OLSI - Hospitality,Catering Supplies,61900
http://statistics.data.gov.uk/id/local-authority/12UE,Huntingdonshire District Council,200786,National Pool Company National Pool Company,92226,21/12/2023,9783,OLSI Salt Room Timer,23/01/2024,74.28,371.4,445.68,OLSI - Site & Centre Management,Pure Spa,55009
http://statistics.data.gov.uk/id/local-authority/12UE,Huntingdonshire District Council,201994,Pulse Fitness Ltd,93215,09/01/2024,7060,Staff Training & Development,08/02/2024,59.8,299,358.8,OLSI - Site & Centre Management,Staff Development And Training,60115
http://statistics.data.gov.uk/id/local-authority/12UE,Huntingdonshire District Council,200207,COMPLETE BOWLING SERVICES LTD COMPLETE BOWLING SERVICES LTD,92845,08/01/2024,7-08 1701,BH Bowling Remedial Works,05/02/2024,440.8,2204,2644.8,OLSI - Site & Centre Management,Maintenance - Mechanical And Electrical,60203
http://statistics.data.gov.uk/id/local-authority/12UE,Huntingdonshire District Council,201386,THAMES LABORATORIES,91757,29/12/2023,INV-98964,Reinspection Surveys - Various Sites,19/01/2024,85,425,510,OLSI - Site & Centre Management,Maintenance - Mechanical And Electrical,60203
http://statistics.data.gov.uk/id/local-authority/12UE,Huntingdonshire District Council,200694,ROGER WILSON ELECTRONICS ROGER WILSON ELECTRONICS,93635,10/02/2024,11131,OLSI Various Electrical Jobs,20/02/2024,257.52,1287.6,1545.12,OLSI - Site & Centre Management,Maintenance - Building,60201
http://statistics.data.gov.uk/id/local-authority/12UE,Huntingdonshire District Council,200786,National Pool Company National Pool Company,94437,28/02/2024,23284,OLSI Replace Steam Cylinder Pure,22/03/2024,158.08,790.4,948.48,OLSI - Site & Centre Management,Maintenance - Building,60201
http://statistics.data.gov.uk/id/local-authority/12UE,Huntingdonshire District Council,200301,FLEXEREFRIGERATION LTD FLEXEREFRIGERATION LTD,93627,05/02/2024,SI-3691,BH Freezer Repair,29/02/2024,146.1,730.5,876.6,OLSI - Site & Centre Management,Maintenance - Building,60201
http://statistics.data.gov.uk/id/local-authority/12UE,Huntingdonshire District Council,200694,ROGER WILSON ELECTRONICS ROGER WILSON ELECTRONICS,91718,10/12/2023,11095,OLSI Maintenance,12/01/2024,136.99,684.97,821.96,OLSI - Site & Centre Management,Maintenance - Building,60201
http://statistics.data.gov.uk/id/local-authority/12UE,Huntingdonshire District Council,201876,PROSPEC LTD,90753,13/12/2023,CIP-00018247,OLSI Locker Repairs & Full Service,04/01/2024,113.1,565.5,678.6,OLSI - Site & Centre Management,Maintenance - Building,60201
http://statistics.data.gov.uk/id/local-authority/12UE,Huntingdonshire District Council,200542,MIRAMAR ENGINEERING LTD MIRAMAR ENGINEERING LTD,91307,27/12/2023,12548,olh foot bath removal,19/01/2024,60,300,360,OLSI - Site & Centre Management,Maintenance - Building,60201
http://statistics.data.gov.uk/id/local-authority/12UE,Huntingdonshire District Council,200542,MIRAMAR ENGINEERING LTD MIRAMAR ENGINEERING LTD,91307,27/12/2023,12548,olh foot bath removal,19/01/2024,50,250,300,OLSI - Site & Centre Management,Maintenance - Building,60201
http://statistics.data.gov.uk/id/local-authority/12UE,Huntingdonshire District Council,200542,MIRAMAR ENGINEERING LTD MIRAMAR ENGINEERING LTD,93619,15/02/2024,13153,OLSI Mechanical Seal & O Ring Kit,08/03/2024,94.44,472.2,566.64,OLSI - Site & Centre Management,Maintenance - Mechanical And Electrical,60203
http://statistics.data.gov.uk/id/local-authority/12UE,Huntingdonshire District Council,203494,Jason White Plumbing & Heating,93785,17/02/2024,1132,General Building Maintenance,22/02/2024,90.23,451.17,541.4,OLSI - Site & Centre Management,Maintenance - Building,60201
http://statistics.data.gov.uk/id/local-authority/12UE,Huntingdonshire District Council,201404,EVACU8,92438,19/01/2024,4348,Evacuation Chair Servicing,08/02/2024,8,40,48,OLSI - Site & Centre Management,Maintenance - Building,60201
http://statistics.data.gov.uk/id/local-authority/12UE,Huntingdonshire District Council,203494,Jason White Plumbing & Heating,95145,08/03/2024,1146,OL Changing Room Maint & Plumbing,19/03/2024,77,384.99,461.99,OLSI - Site & Centre Management,Maintenance - Building,60201
http://statistics.data.gov.uk/id/local-authority/12UE,Huntingdonshire District Council,202742,NFC Property Maintenance Ltd,90238,04/12/2023,1179,BH Fix Toilets/Install Mirrors,02/01/2024,68,340,408,OLSI - Site & Centre Management,Maintenance - Building,60201
http://statistics.data.gov.uk/id/local-authority/12UE,Huntingdonshire District Council,200580,NOVUS COMPLIANCE SERVICES LTD NOVUS COMPLIANCE SERVICES LTD,91950,12/01/2024,28305,OLSI Fixed Wire Testing Apr23,01/02/2024,67.6,338,405.6,OLSI - Site & Centre Management,Maintenance - Building,60201
http://statistics.data.gov.uk/id/local-authority/12UE,Huntingdonshire District Council,200694,ROGER WILSON ELECTRONICS ROGER WILSON ELECTRONICS,92320,21/01/2024,11116,OLSI Pure/Spin/Pool Fault Repairs,26/01/2024,66.26,331.32,397.58,OLSI - Site & Centre Management,Maintenance - Building,60201
http://statistics.data.gov.uk/id/local-authority/12UE,Huntingdonshire District Council,200542,MIRAMAR ENGINEERING LTD MIRAMAR ENGINEERING LTD,93638,15/02/2024,13150,ZEST Aircon Repairs,08/03/2024,56.93,284.63,341.56,OLSI - Site & Centre Management,Maintenance - Building,60201
http://statistics.data.gov.uk/id/local-authority/12UE,Huntingdonshire District Council,200542,MIRAMAR ENGINEERING LTD MIRAMAR ENGINEERING LTD,92231,18/01/2024,12937,BH Cellar Cooler Cool Out,08/02/2024,5.42,27.11,32.53,OLSI - Site & Centre Management,Maintenance - Building,60201
http://statistics.data.gov.uk/id/local-authority/12UE,Huntingdonshire District Council,200542,MIRAMAR ENGINEERING LTD MIRAMAR ENGINEERING LTD,92231,18/01/2024,12937,BH Cellar Cooler Cool Out,08/02/2024,50.92,254.57,305.49,OLSI - Site & Centre Management,Maintenance - Building,60201
http://statistics.data.gov.uk/id/local-authority/12UE,Huntingdonshire District Council,200786,National Pool Company National Pool Company,92184,16/01/2024,23058,OLSN Tiled Bench Repair,08/02/2024,55.2,276,331.2,OLSI - Site & Centre Management,Maintenance - Building,60201
http://statistics.data.gov.uk/id/local-authority/12UE,Huntingdonshire District Council,200664,RAPID RESPONSE LOCKSMITHS RAPID RESPONSE LOCKSMITHS,92293,11/01/2024,3230,BH Fire Exit Call Out,01/02/2024,124,620,744,OLSI - Site & Centre Management,Security Of Premises,60248
http://statistics.data.gov.uk/id/local-authority/12UE,Huntingdonshire District Council,202135,TOTAL GAS AND POWER LTD,94419,14/02/2024,331041936/24,OLSI Jan24,05/03/2024,6246.18,31230.92,37477.1,OLSI - Site & Centre Management,Electricity,60303
http://statistics.data.gov.uk/id/local-authority/12UE,Huntingdonshire District Council,202135,TOTAL GAS AND POWER LTD,94419,14/02/2024,331041936/24,OLSI Jan24,05/03/2024,0,294,294,OLSI - Site & Centre Management,Electricity,60303
http://statistics.data.gov.uk/id/local-authority/12UE,Huntingdonshire District Council,202135,TOTAL GAS AND POWER LTD,95245,10/03/2024,333557229/24,OLSI Jan-Feb24,19/03/2024,5509.91,27549.54,33059.45,OLSI - Site & Centre Management,Electricity,60303
http://statistics.data.gov.uk/id/local-authority/12UE,Huntingdonshire District Council,202135,TOTAL GAS AND POWER LTD,94244,21/02/2024,331474775/24,OLSI Gas Jan24,05/03/2024,4328.11,21640.53,25968.64,OLSI - Site & Centre Management,Gas,60305
http://statistics.data.gov.uk/id/local-authority/12UE,Huntingdonshire District Council,202135,TOTAL GAS AND POWER LTD,91963,10/01/2024,326695759/24,OLSI Dec23,19/01/2024,4327.17,21635.86,25963.03,OLSI - Site & Centre Management,Electricity,60303
http://statistics.data.gov.uk/id/local-authority/12UE,Huntingdonshire District Council,202135,TOTAL GAS AND POWER LTD,93809,05/12/2023,321870609/23,OLSI Jul23,22/02/2024,2793.96,13969.79,16763.75,OLSI - Site & Centre Management,Electricity,60303
http://statistics.data.gov.uk/id/local-authority/12UE,Huntingdonshire District Council,202135,TOTAL GAS AND POWER LTD,95086,09/03/2024,333100135/24,OLSI Gas Jan-Feb24,14/03/2024,1799.7,8998.49,10798.19,OLSI - Site & Centre Management,Gas,60305
http://statistics.data.gov.uk/id/local-authority/12UE,Huntingdonshire District Council,200126,BRITISH GAS BUSINESS BRITISH GAS BUSINESS,91004,22/12/2023,806491588,olsti nov 23,01/02/2024,1020.18,5100.92,6121.1,OLSI - Site & Centre Management,Gas,60305
http://statistics.data.gov.uk/id/local-authority/12UE,Huntingdonshire District Council,200742,ASTREA ACADEMY TRUST - ST IVO ACADEMY ST IVO SCHOOL,91086,19/12/2023,379106,OLSTI WATER CHARGES,12/01/2024,0,2875.94,2875.94,OLSI - Site & Centre Management,Water And Sewerage,60302
http://statistics.data.gov.uk/id/local-authority/12UE,Huntingdonshire District Council,200913,WAVE  ANGLIAN WATER BUSINESS,93563,13/02/2024,13145830,OLSI Jan-Feb24,29/02/2024,0,400.94,400.94,OLSI - Site & Centre Management,Water And Sewerage,60302
http://statistics.data.gov.uk/id/local-authority/12UE,Huntingdonshire District Council,200913,WAVE  ANGLIAN WATER BUSINESS,92149,13/01/2024,13025340,OLSI Dec23-Jan24,01/02/2024,0,395.88,395.88,OLSI - Site & Centre Management,Water And Sewerage,60302
http://statistics.data.gov.uk/id/local-authority/12UE,Huntingdonshire District Council,200913,WAVE  ANGLIAN WATER BUSINESS,95067,13/03/2024,13283100,OLSI Feb-Mar24,22/03/2024,0,363.97,363.97,OLSI - Site & Centre Management,Water And Sewerage,60302
http://statistics.data.gov.uk/id/local-authority/12UE,Huntingdonshire District Council,200689,RLSS UK Enterprise Ltd,94559,01/03/2024,ESI000690,Licences ATC Fees Mar24,14/03/2024,0,125,125,OLSI - Site & Centre Management,Licences,60410
http://statistics.data.gov.uk/id/local-authority/12UE,Huntingdonshire District Council,202728,ESCOREFRESH,92616,26/01/2024,44244,olsti cleaning,15/02/2024,150.16,750.8,900.96,OLSI - Site & Centre Management,Cleaning Materials,61300
http://statistics.data.gov.uk/id/local-authority/12UE,Huntingdonshire District Council,202728,ESCOREFRESH,95464,07/03/2024,44370,OLSI Cleaning Materials,27/03/2024,86.32,431.6,517.92,OLSI - Site & Centre Management,Cleaning Materials,61300
http://statistics.data.gov.uk/id/local-authority/12UE,Huntingdonshire District Council,200488,LEISURETEQ LEISURETEQ,93344,23/01/2024,109567,OLSI Essences,15/02/2024,77,385,462,OLSI - Site & Centre Management,Cleaning Materials,61300
http://statistics.data.gov.uk/id/local-authority/12UE,Huntingdonshire District Council,202728,ESCOREFRESH,95437,22/02/2024,44342,OLSI Cleaning Materials,22/03/2024,71.9,359.49,431.39,OLSI - Site & Centre Management,Cleaning Materials,61300
http://statistics.data.gov.uk/id/local-authority/12UE,Huntingdonshire District Council,202728,ESCOREFRESH,91215,15/12/2023,44159,olsti stock,04/01/2024,40.58,202.9,243.48,OLSI - Site & Centre Management,Cleaning Materials,61300
http://statistics.data.gov.uk/id/local-authority/12UE,Huntingdonshire District Council,202728,ESCOREFRESH,91215,15/12/2023,44159,olsti stock,04/01/2024,15.73,78.65,94.38,OLSI - Site & Centre Management,Cleaning Materials,61300
http://statistics.data.gov.uk/id/local-authority/12UE,Huntingdonshire District Council,202728,ESCOREFRESH,91215,15/12/2023,44159,olsti stock,04/01/2024,5.99,29.94,35.93,OLSI - Site & Centre Management,Cleaning Materials,61300
http://statistics.data.gov.uk/id/local-authority/12UE,Huntingdonshire District Council,202728,ESCOREFRESH,91215,15/12/2023,44159,olsti stock,04/01/2024,3.83,19.14,22.97,OLSI - Site & Centre Management,Cleaning Materials,61300
http://statistics.data.gov.uk/id/local-authority/12UE,Huntingdonshire District Council,200737,SPORTMAX SPORTMAX,94893,15/02/2024,130719,OLSI Goods For Sale,13/03/2024,64.94,324.7,389.64,OLSI - Site & Centre Management,Goods For Resale,61400
http://statistics.data.gov.uk/id/local-authority/12UE,Huntingdonshire District Council,200737,SPORTMAX SPORTMAX,94893,15/02/2024,130719,OLSI Goods For Sale,13/03/2024,0,94.65,94.65,OLSI - Site & Centre Management,Goods For Resale,61400
http://statistics.data.gov.uk/id/local-authority/12UE,Huntingdonshire District Council,200737,SPORTMAX SPORTMAX,90995,14/12/2023,129743,olsti swim equipment,04/01/2024,0.29,1.45,1.74,OLSI - Site & Centre Management,Goods For Resale,61400
http://statistics.data.gov.uk/id/local-authority/12UE,Huntingdonshire District Council,200737,SPORTMAX SPORTMAX,90995,14/12/2023,129743,olsti swim equipment,04/01/2024,0,98.75,98.75,OLSI - Site & Centre Management,Goods For Resale,61400
http://statistics.data.gov.uk/id/local-authority/12UE,Huntingdonshire District Council,200737,SPORTMAX SPORTMAX,90995,14/12/2023,129743,olsti swim equipment,04/01/2024,42.52,212.59,255.11,OLSI - Site & Centre Management,Goods For Resale,61400
http://statistics.data.gov.uk/id/local-authority/12UE,Huntingdonshire District Council,200737,SPORTMAX SPORTMAX,92177,15/01/2024,130091,OLSI Items For Sale,08/02/2024,0,58.15,58.15,OLSI - Site & Centre Management,Goods For Resale,61400
http://statistics.data.gov.uk/id/local-authority/12UE,Huntingdonshire District Council,200737,SPORTMAX SPORTMAX,92177,15/01/2024,130091,OLSI Items For Sale,08/02/2024,42.24,211.2,253.44,OLSI - Site & Centre Management,Goods For Resale,61400
http://statistics.data.gov.uk/id/local-authority/12UE,Huntingdonshire District Council,200207,COMPLETE BOWLING SERVICES LTD COMPLETE BOWLING SERVICES LTD,93242,09/01/2024,7-08 1689,olsti  call outs,12/02/2024,229.6,1148,1377.6,OLSI - Site & Centre Management,"Maintenance - Equipment, Furniture And Materials",61702
http://statistics.data.gov.uk/id/local-authority/12UE,Huntingdonshire District Council,200411,INITIAL WASHROOM SOLUTIONS INITIAL WASHROOM SOLUTIONS,91821,10/01/2024,34953993,Hire Equipment - All OL's Jan-Feb24,01/02/2024,56.3,281.47,337.77,OLSI - Site & Centre Management,Hire - Equipment Furniture And Materials,61700
http://statistics.data.gov.uk/id/local-authority/12UE,Huntingdonshire District Council,200411,INITIAL WASHROOM SOLUTIONS INITIAL WASHROOM SOLUTIONS,93299,07/02/2024,34985321,Equipment Hire All Sites 29.02-29.03.24,29/02/2024,56.3,281.47,337.77,OLSI - Site & Centre Management,Hire - Equipment Furniture And Materials,61700
http://statistics.data.gov.uk/id/local-authority/12UE,Huntingdonshire District Council,200411,INITIAL WASHROOM SOLUTIONS INITIAL WASHROOM SOLUTIONS,90691,04/12/2023,34919816,Equipment Hire All Sites Dec23-Jan24,02/01/2024,49.77,248.87,298.64,OLSI - Site & Centre Management,Hire - Equipment Furniture And Materials,61700
http://statistics.data.gov.uk/id/local-authority/12UE,Huntingdonshire District Council,200689,RLSS UK Enterprise Ltd,95459,27/02/2024,TI002629,OLSI Course Materials,22/03/2024,0,732,732,OLSI - Site & Centre Management,Materials,61709
http://statistics.data.gov.uk/id/local-authority/12UE,Huntingdonshire District Council,200282,ESPO ESPO,93580,05/02/2024,7227160,OLSI Stationery/Materials,29/02/2024,12.52,62.6,75.12,OLSI - Site & Centre Management,Materials,61709
http://statistics.data.gov.uk/id/local-authority/12UE,Huntingdonshire District Council,200207,COMPLETE BOWLING SERVICES LTD COMPLETE BOWLING SERVICES LTD,93241,05/02/2024,7-08 1704,call out 230124,29/02/2024,70.4,352,422.4,OLSI - Site & Centre Management,"Maintenance - Equipment, Furniture And Materials",61702
http://statistics.data.gov.uk/id/local-authority/12UE,Huntingdonshire District Council,200427,J A K  SYSTEMS LTD J A K SYSTEMS LTD,90876,11/12/2023,17532,OLSI Granudos Call Out,04/01/2024,51.5,257.5,309,OLSI - Site & Centre Management,"Maintenance - Equipment, Furniture And Materials",61702
http://statistics.data.gov.uk/id/local-authority/12UE,Huntingdonshire District Council,200430,J P LENNARD LTD J P LENNARD LTD,91520,02/01/2024,201864,olsti wristbands,26/01/2024,50.14,250.7,300.84,OLSI - Site & Centre Management,Equipment,61713
http://statistics.data.gov.uk/id/local-authority/12UE,Huntingdonshire District Council,200434,JADE SECURITY SERVICES LTD JADE SECURITY SERVICES LTD,94694,29/02/2024,7100,Cash Collections Feb24,22/03/2024,10.8,54,64.8,OLSI - Site & Centre Management,Contract Charges ,61800
http://statistics.data.gov.uk/id/local-authority/12UE,Huntingdonshire District Council,200434,JADE SECURITY SERVICES LTD JADE SECURITY SERVICES LTD,93380,31/01/2024,6959,Cash Collections Jan24,22/02/2024,10.8,54,64.8,OLSI - Site & Centre Management,Contract Charges ,61800
http://statistics.data.gov.uk/id/local-authority/12UE,Huntingdonshire District Council,200434,JADE SECURITY SERVICES LTD JADE SECURITY SERVICES LTD,92898,31/12/2023,6761,Cash Collections Dec23,08/02/2024,10.8,54,64.8,OLSI - Site & Centre Management,Contract Charges ,61800
http://statistics.data.gov.uk/id/local-authority/12UE,Huntingdonshire District Council,203309,Swift Stitch,94747,22/01/2024,7960,OLR Uniforms,08/03/2024,110.74,553.72,664.46,OLSI - Site & Centre Management,"Clothes, Uniform And Laundry",62000
http://statistics.data.gov.uk/id/local-authority/12UE,Huntingdonshire District Council,200117,BRAMBLE HUB LTD BRAMBLE HUB LTD,90296,04/12/2023,INV-13885,OL All Sites Chip&Pin Integration,02/01/2024,481.98,2409.88,2891.86,OLSI - Site & Centre Management,Ict Hardware,64070
http://statistics.data.gov.uk/id/local-authority/12UE,Huntingdonshire District Council,200117,BRAMBLE HUB LTD BRAMBLE HUB LTD,93243,30/01/2024,INV-14049,REDACTED,29/02/2024,27.5,137.5,165,OLSI - Site & Centre Management,Ict Hardware,64070
http://statistics.data.gov.uk/id/local-authority/12UE,Huntingdonshire District Council,200048,Culligan (UK) Limited,94894,15/12/2023,CD-224025513,OLSI Water Fountain Rental & Service,13/03/2024,54.75,273.75,328.5,OLSI - Site & Centre Management,Other Services,69150
http://statistics.data.gov.uk/id/local-authority/12UE,Huntingdonshire District Council,200427,J A K  SYSTEMS LTD J A K SYSTEMS LTD,91907,12/01/2024,17679,OLSI Pump Replacement,01/02/2024,119.8,599,718.8,OLSI - Swimming,"Maintenance - Equipment, Furniture And Materials",61702
http://statistics.data.gov.uk/id/local-authority/12UE,Huntingdonshire District Council,200689,RLSS UK Enterprise Ltd,93398,26/01/2024,SSI001105,OLSI CPR Dolls,15/02/2024,43,215,258,OLSI - Swimming,Equipment,61713
http://statistics.data.gov.uk/id/local-authority/12UE,Huntingdonshire District Council,200689,RLSS UK Enterprise Ltd,93398,26/01/2024,SSI001105,OLSI CPR Dolls,15/02/2024,8.66,43.3,51.96,OLSI - Swimming,Equipment,61713
http://statistics.data.gov.uk/id/local-authority/12UE,Huntingdonshire District Council,200689,RLSS UK Enterprise Ltd,93398,26/01/2024,SSI001105,OLSI CPR Dolls,15/02/2024,45.77,228.85,274.62,OLSI - Swimming,Equipment,61713
http://statistics.data.gov.uk/id/local-authority/12UE,Huntingdonshire District Council,202749,COMPLETE POOL CONTROLS LTD,91825,08/01/2024,INV095498,OLSI Pool Chemicals,01/02/2024,229.82,1149.12,1378.94,OLSI - Swimming,Chemicals,64000
http://statistics.data.gov.uk/id/local-authority/12UE,Huntingdonshire District Council,202749,COMPLETE POOL CONTROLS LTD,93060,30/01/2024,INV096214,OLSI Pool Chemicals,22/02/2024,158.45,792.23,950.68,OLSI - Swimming,Chemicals,64000
http://statistics.data.gov.uk/id/local-authority/12UE,Huntingdonshire District Council,202749,COMPLETE POOL CONTROLS LTD,93294,08/12/2023,INV094878,OLSI Chemicals,12/02/2024,158.45,792.23,950.68,OLSI - Swimming,Chemicals,64000
http://statistics.data.gov.uk/id/local-authority/12UE,Huntingdonshire District Council,202749,COMPLETE POOL CONTROLS LTD,94825,05/03/2024,INV097256,OLSI Pool Chemicals,27/03/2024,153.48,767.4,920.88,OLSI - Swimming,Chemicals,64000
http://statistics.data.gov.uk/id/local-authority/12UE,Huntingdonshire District Council,200734,SOUTH LINCS FOOD SERVICE SOUTH LINCS FOOD SERVICE,95080,07/03/2024,368785,OLSI Catering/Bar Provisions/Materials,14/03/2024,15.63,78.14,93.77,OLSIO - Hospitality,Materials,61709
http://statistics.data.gov.uk/id/local-authority/12UE,Huntingdonshire District Council,200734,SOUTH LINCS FOOD SERVICE SOUTH LINCS FOOD SERVICE,92650,25/01/2024,358182,OLSIO Catering&Vending/Materials,01/02/2024,0.4,1.99,2.39,OLSIO - Hospitality,Materials,61709
http://statistics.data.gov.uk/id/local-authority/12UE,Huntingdonshire District Council,200734,SOUTH LINCS FOOD SERVICE SOUTH LINCS FOOD SERVICE,94282,22/02/2024,365228,OLSIO Catering Supplies/Bar/Materials,05/03/2024,2.06,10.3,12.36,OLSIO - Hospitality,Materials,61709
http://statistics.data.gov.uk/id/local-authority/12UE,Huntingdonshire District Council,200471,LACONS LACONS,93651,12/02/2024,951479,OLSIO Bar Provisions/Gas Cylinders,08/03/2024,5.33,26.63,31.96,OLSIO - Hospitality,Gas Cylinders,61711
http://statistics.data.gov.uk/id/local-authority/12UE,Huntingdonshire District Council,200471,LACONS LACONS,93402,05/02/2024,950741,OLSIO Bar Provisions/Gas Cylinders,29/02/2024,6.02,30.12,36.14,OLSIO - Hospitality,Gas Cylinders,61711
http://statistics.data.gov.uk/id/local-authority/12UE,Huntingdonshire District Council,200471,LACONS LACONS,90754,11/12/2023,945450,OLSIO Bar Provisions,04/01/2024,4.81,24.03,28.84,OLSIO - Hospitality,Gas Cylinders,61711
http://statistics.data.gov.uk/id/local-authority/12UE,Huntingdonshire District Council,200471,LACONS LACONS,91587,03/01/2024,947722,OLSIO Bar Provisions,26/01/2024,140.33,701.65,841.98,OLSIO - Hospitality,Bar Provisions,61905
http://statistics.data.gov.uk/id/local-authority/12UE,Huntingdonshire District Council,200734,SOUTH LINCS FOOD SERVICE SOUTH LINCS FOOD SERVICE,95080,07/03/2024,368785,OLSI Catering/Bar Provisions/Materials,14/03/2024,0,485.77,485.77,OLSIO - Hospitality,Catering Supplies,61900
http://statistics.data.gov.uk/id/local-authority/12UE,Huntingdonshire District Council,200734,SOUTH LINCS FOOD SERVICE SOUTH LINCS FOOD SERVICE,95080,07/03/2024,368785,OLSI Catering/Bar Provisions/Materials,14/03/2024,1.52,7.6,9.12,OLSIO - Hospitality,Bar Provisions,61905
http://statistics.data.gov.uk/id/local-authority/12UE,Huntingdonshire District Council,200471,LACONS LACONS,94884,04/03/2024,953672,OLSIO Bar Provisions,27/03/2024,110.59,552.94,663.53,OLSIO - Hospitality,Bar Provisions,61905
http://statistics.data.gov.uk/id/local-authority/12UE,Huntingdonshire District Council,200471,LACONS LACONS,90744,05/12/2023,944676,OLSIO Bar Provisions,02/01/2024,105.83,529.15,634.98,OLSIO - Hospitality,Bar Provisions,61905
http://statistics.data.gov.uk/id/local-authority/12UE,Huntingdonshire District Council,200734,SOUTH LINCS FOOD SERVICE SOUTH LINCS FOOD SERVICE,95734,14/03/2024,370637,OLSIO Catering Supplies/Bar Provisions,27/03/2024,0,493.51,493.51,OLSIO - Hospitality,Catering Supplies,61900
http://statistics.data.gov.uk/id/local-authority/12UE,Huntingdonshire District Council,200734,SOUTH LINCS FOOD SERVICE SOUTH LINCS FOOD SERVICE,95734,14/03/2024,370637,OLSIO Catering Supplies/Bar Provisions,27/03/2024,0.59,2.94,3.53,OLSIO - Hospitality,Bar Provisions,61905
http://statistics.data.gov.uk/id/local-authority/12UE,Huntingdonshire District Council,200734,SOUTH LINCS FOOD SERVICE SOUTH LINCS FOOD SERVICE,91823,11/01/2024,355005,OLSIO Catering & Vending/Bar Provisions,19/01/2024,0,483.1,483.1,OLSIO - Hospitality,Catering Supplies,61900
http://statistics.data.gov.uk/id/local-authority/12UE,Huntingdonshire District Council,200734,SOUTH LINCS FOOD SERVICE SOUTH LINCS FOOD SERVICE,91823,11/01/2024,355005,OLSIO Catering & Vending/Bar Provisions,19/01/2024,0.87,4.34,5.21,OLSIO - Hospitality,Bar Provisions,61905
http://statistics.data.gov.uk/id/local-authority/12UE,Huntingdonshire District Council,200471,LACONS LACONS,94703,26/02/2024,952764,OLSIO Bar Provisions,22/03/2024,93.85,469.24,563.09,OLSIO - Hospitality,Bar Provisions,61905
http://statistics.data.gov.uk/id/local-authority/12UE,Huntingdonshire District Council,200471,LACONS LACONS,92303,15/01/2024,948454,OLSIO Bar Provisions,08/02/2024,90.85,454.24,545.09,OLSIO - Hospitality,Bar Provisions,61905
http://statistics.data.gov.uk/id/local-authority/12UE,Huntingdonshire District Council,200471,LACONS LACONS,93651,12/02/2024,951479,OLSIO Bar Provisions/Gas Cylinders,08/03/2024,84.45,422.25,506.7,OLSIO - Hospitality,Bar Provisions,61905
http://statistics.data.gov.uk/id/local-authority/12UE,Huntingdonshire District Council,200471,LACONS LACONS,93402,05/02/2024,950741,OLSIO Bar Provisions/Gas Cylinders,29/02/2024,75.78,378.92,454.7,OLSIO - Hospitality,Bar Provisions,61905
http://statistics.data.gov.uk/id/local-authority/12UE,Huntingdonshire District Council,202688,NUTRIVEND LTD,93976,20/02/2024,2047494,OLSIO Bottled Drinks,14/03/2024,63.44,317.22,380.66,OLSIO - Hospitality,Bar Provisions,61905
http://statistics.data.gov.uk/id/local-authority/12UE,Huntingdonshire District Council,202688,NUTRIVEND LTD,92187,09/01/2024,2043654,OLSIO Bottled Drinks,01/02/2024,63.15,315.75,378.9,OLSIO - Hospitality,Vending Materials,61907
http://statistics.data.gov.uk/id/local-authority/12UE,Huntingdonshire District Council,200734,SOUTH LINCS FOOD SERVICE SOUTH LINCS FOOD SERVICE,92650,25/01/2024,358182,OLSIO Catering&Vending/Materials,01/02/2024,0,300.02,300.02,OLSIO - Hospitality,Catering Supplies,61900
http://statistics.data.gov.uk/id/local-authority/12UE,Huntingdonshire District Council,200471,LACONS LACONS,90754,11/12/2023,945450,OLSIO Bar Provisions,04/01/2024,49.28,246.38,295.66,OLSIO - Hospitality,Bar Provisions,61905
http://statistics.data.gov.uk/id/local-authority/12UE,Huntingdonshire District Council,200471,LACONS LACONS,92536,22/01/2024,949246,BH Bar Provisions,15/02/2024,52.21,261.04,313.25,OLSIO - Hospitality,Bar Provisions,61905
http://statistics.data.gov.uk/id/local-authority/12UE,Huntingdonshire District Council,200734,SOUTH LINCS FOOD SERVICE SOUTH LINCS FOOD SERVICE,94282,22/02/2024,365228,OLSIO Catering Supplies/Bar/Materials,05/03/2024,0,244.51,244.51,OLSIO - Hospitality,Catering Supplies,61900
http://statistics.data.gov.uk/id/local-authority/12UE,Huntingdonshire District Council,200734,SOUTH LINCS FOOD SERVICE SOUTH LINCS FOOD SERVICE,94282,22/02/2024,365228,OLSIO Catering Supplies/Bar/Materials,05/03/2024,0.3,1.52,1.82,OLSIO - Hospitality,Bar Provisions,61905
http://statistics.data.gov.uk/id/local-authority/12UE,Huntingdonshire District Council,200489,LES MILLS UK LES MILLS UK,91638,08/01/2024,LMUK-SIV-191835,OLSI Licences May23-Mar24,01/02/2024,61.53,307.67,369.2,OLSI - Fitness Activities,Licences,60410
http://statistics.data.gov.uk/id/local-authority/12UE,Huntingdonshire District Council,200489,LES MILLS UK LES MILLS UK,94423,07/02/2024,LMUK-SIV-193745,OLSI Licences May23-Mar24,05/03/2024,61.53,307.67,369.2,OLSI - Fitness Activities,Licences,60410
http://statistics.data.gov.uk/id/local-authority/12UE,Huntingdonshire District Council,200489,LES MILLS UK LES MILLS UK,94672,05/03/2024,LMUK-SIV-195766,OLSI Licences Mar24,27/03/2024,61.53,307.67,369.2,OLSI - Fitness Activities,Licences,60410
http://statistics.data.gov.uk/id/local-authority/12UE,Huntingdonshire District Council,200489,LES MILLS UK LES MILLS UK,90275,05/12/2023,LMUK-SIV-184870,OLSI Licences May23-Mar24,02/01/2024,58.6,293.02,351.62,OLSI - Fitness Activities,Licences,60410
http://statistics.data.gov.uk/id/local-authority/12UE,Huntingdonshire District Council,200300,FLEET LINE MARKERS LTD FLEET LINE MARKERS LTD,90430,07/12/2023,SI234814,OLSIO Pitchmarker,02/01/2024,153.84,769.2,923.04,OLSIO - Outdoor Sports,Grounds Maintenance,60503
http://statistics.data.gov.uk/id/local-authority/12UE,Huntingdonshire District Council,200717,SHERRIFF AMENITY SERVICES SHERRIFF AMENITY SERVICES,93804,13/02/2024,CD971664526,Grounds Maintenance - Fertilizer,08/03/2024,94.8,474,568.8,OLSIO - Outdoor Sports,Grounds Maintenance,60503
http://statistics.data.gov.uk/id/local-authority/12UE,Huntingdonshire District Council,201386,THAMES LABORATORIES,91757,29/12/2023,INV-98964,Reinspection Surveys - Various Sites,19/01/2024,23,115,138,OLSIO - Site & Centre Management,Maintenance - Mechanical And Electrical,60203
http://statistics.data.gov.uk/id/local-authority/12UE,Huntingdonshire District Council,200664,RAPID RESPONSE LOCKSMITHS RAPID RESPONSE LOCKSMITHS,95482,09/03/2024,3318,OLSIO Fire Doors Panic Bars,27/03/2024,149.5,747.5,897,OLSIO - Site & Centre Management,Maintenance - Building,60201
http://statistics.data.gov.uk/id/local-authority/12UE,Huntingdonshire District Council,200694,ROGER WILSON ELECTRONICS ROGER WILSON ELECTRONICS,92325,05/12/2023,11094,OLSIO Light Works,26/01/2024,105,525,630,OLSIO - Site & Centre Management,Maintenance - Fixed Plant,60202
http://statistics.data.gov.uk/id/local-authority/12UE,Huntingdonshire District Council,200226,DAL-ROD (CAMRIDGESHIRE) DAL-ROD (CAMRIDGESHIRE),94744,05/03/2024,30004627,OLSIO Blocked Drains,27/03/2024,87,435,522,OLSIO - Site & Centre Management,Maintenance - Building,60201
http://statistics.data.gov.uk/id/local-authority/12UE,Huntingdonshire District Council,202135,TOTAL GAS AND POWER LTD,93657,14/02/2024,331042046/24,OCOMP Jan24,20/02/2024,1832.89,9164.44,10997.33,OLSIO - Site & Centre Management,Electricity,60303
http://statistics.data.gov.uk/id/local-authority/12UE,Huntingdonshire District Council,202135,TOTAL GAS AND POWER LTD,95098,10/03/2024,333557262/24,OLSIO Jan-Feb24,14/03/2024,1678.69,8393.45,10072.14,OLSIO - Site & Centre Management,Electricity,60303
http://statistics.data.gov.uk/id/local-authority/12UE,Huntingdonshire District Council,202135,TOTAL GAS AND POWER LTD,91967,10/01/2024,326695836/24,,19/01/2024,1567.09,7835.44,9402.53,OLSIO - Site & Centre Management,Electricity,60303
http://statistics.data.gov.uk/id/local-authority/12UE,Huntingdonshire District Council,202135,TOTAL GAS AND POWER LTD,94245,21/02/2024,331474797/24,OLSIO Gas Jan24,05/03/2024,543.45,2717.26,3260.71,OLSIO - Site & Centre Management,Gas,60305
http://statistics.data.gov.uk/id/local-authority/12UE,Huntingdonshire District Council,202135,TOTAL GAS AND POWER LTD,95087,09/03/2024,333100146/24,OLSIO Jan-Feb24,14/03/2024,232.61,1163.05,1395.66,OLSIO - Site & Centre Management,Gas,60305
http://statistics.data.gov.uk/id/local-authority/12UE,Huntingdonshire District Council,200126,BRITISH GAS BUSINESS BRITISH GAS BUSINESS,91003,22/12/2023,806491589,olsti nov 23,01/02/2024,117.88,589.38,707.26,OLSIO - Site & Centre Management,Gas,60305
http://statistics.data.gov.uk/id/local-authority/12UE,Huntingdonshire District Council,202101,Huumans Tech Ltd,91308,01/01/2024,INV-0169,olsti myzone licence,08/01/2024,99,495,594,OLSIO - Site & Centre Management,Licences,60410
http://statistics.data.gov.uk/id/local-authority/12UE,Huntingdonshire District Council,202101,Huumans Tech Ltd,93038,01/02/2024,INV-0170,OL Myzone Licences Feb24,08/02/2024,99,495,594,OLSIO - Site & Centre Management,Licences,60410
http://statistics.data.gov.uk/id/local-authority/12UE,Huntingdonshire District Council,202101,Huumans Tech Ltd,94436,01/03/2024,INV-0262,MyZone All Sites Licences Mar24,05/03/2024,99,495,594,OLSIO - Site & Centre Management,Licences,60410
http://statistics.data.gov.uk/id/local-authority/12UE,Huntingdonshire District Council,200096,BEN BURGESS & COMPANY BEN BURGESS & COMPANY,94948,08/03/2024,966373,OLSIO Tractor/Mower Maintenance,27/03/2024,117.66,588.3,705.96,OLSIO - Site & Centre Management,Vehicle Maintenance - External,60921
http://statistics.data.gov.uk/id/local-authority/12UE,Huntingdonshire District Council,200096,BEN BURGESS & COMPANY BEN BURGESS & COMPANY,94947,08/03/2024,966377,OLSIO Vehicle Maintenance,27/03/2024,73.16,365.81,438.97,OLSIO - Site & Centre Management,Vehicle Maintenance - External,60921
http://statistics.data.gov.uk/id/local-authority/12UE,Huntingdonshire District Council,202728,ESCOREFRESH,92324,22/01/2024,44241,OLSIO Cleaning Materials,08/02/2024,93.46,467.32,560.78,OLSIO - Site & Centre Management,Cleaning Materials,61300
http://statistics.data.gov.uk/id/local-authority/12UE,Huntingdonshire District Council,200117,BRAMBLE HUB LTD BRAMBLE HUB LTD,90296,04/12/2023,INV-13885,OL All Sites Chip&Pin Integration,02/01/2024,123.43,617.16,740.59,OLSIO - Site & Centre Management,Ict Hardware,64070
http://statistics.data.gov.uk/id/local-authority/12UE,Huntingdonshire District Council,200117,BRAMBLE HUB LTD BRAMBLE HUB LTD,93243,30/01/2024,INV-14049,"M STRAIN 10-11,01,24",29/02/2024,13.75,68.75,82.5,OLSIO - Site & Centre Management,Ict Hardware,64070
http://statistics.data.gov.uk/id/local-authority/12UE,Huntingdonshire District Council,201123,SELECTA UK LTD,90693,11/12/2023,230172764,OLSN Vending Maintenance 01.01-31.03.24,19/03/2024,96.52,482.58,579.1,OLSN - Hospitality,Hire - Equipment Furniture And Materials,61700
http://statistics.data.gov.uk/id/local-authority/12UE,Huntingdonshire District Council,202688,NUTRIVEND LTD,92157,16/01/2024,2044304,OLSN Bottled Drinks,08/02/2024,84.95,424.77,509.72,OLSN - Hospitality,Vending Materials,61907
http://statistics.data.gov.uk/id/local-authority/12UE,Huntingdonshire District Council,202688,NUTRIVEND LTD,94287,29/02/2024,2048293,OLSN Bottled Drinks,22/03/2024,82.74,413.71,496.45,OLSN - Hospitality,Vending Materials,61907
http://statistics.data.gov.uk/id/local-authority/12UE,Huntingdonshire District Council,200726,SNACKLINE DIRECT LTD SNACKLINE DIRECT LTD,93649,23/01/2024,146763,OLSN Vending Materials,20/02/2024,69.16,345.79,414.95,OLSN - Hospitality,Vending Materials,61907
http://statistics.data.gov.uk/id/local-authority/12UE,Huntingdonshire District Council,200726,SNACKLINE DIRECT LTD SNACKLINE DIRECT LTD,93649,23/01/2024,146763,OLSN Vending Materials,20/02/2024,0,35.98,35.98,OLSN - Hospitality,Vending Materials,61907
http://statistics.data.gov.uk/id/local-authority/12UE,Huntingdonshire District Council,200726,SNACKLINE DIRECT LTD SNACKLINE DIRECT LTD,91252,07/11/2023,145013,OLSTN CATERING,04/01/2024,66.36,331.8,398.16,OLSN - Hospitality,Vending Materials,61907
http://statistics.data.gov.uk/id/local-authority/12UE,Huntingdonshire District Council,200726,SNACKLINE DIRECT LTD SNACKLINE DIRECT LTD,91252,07/11/2023,145013,OLSTN CATERING,04/01/2024,0,35.98,35.98,OLSN - Hospitality,Vending Materials,61907
http://statistics.data.gov.uk/id/local-authority/12UE,Huntingdonshire District Council,200723,SLUSH PUPPIE LTD SLUSH PUPPIE LTD,92875,31/01/2024,INVGB313161,OLSN Catering & Vending Supplies,22/02/2024,71.56,357.8,429.36,OLSN - Hospitality,Catering Supplies,61900
http://statistics.data.gov.uk/id/local-authority/12UE,Huntingdonshire District Council,200679,RICHARD SISTROM PAINTING & DECORATING RICHARD SISTROM PAINTING & DECORATING,92708,24/01/2024,INV 102,OLSN x11 Decorating & Repair Jobs,15/02/2024,0,2291,2291,OLSN - Site & Centre Management,Maintenance - Building,60201
http://statistics.data.gov.uk/id/local-authority/12UE,Huntingdonshire District Council,200542,MIRAMAR ENGINEERING LTD MIRAMAR ENGINEERING LTD,92874,29/01/2024,12997,OLSN Replace AHU Controller,22/02/2024,226.59,1132.94,1359.53,OLSN - Site & Centre Management,Maintenance - Building,60201
http://statistics.data.gov.uk/id/local-authority/12UE,Huntingdonshire District Council,200694,ROGER WILSON ELECTRONICS ROGER WILSON ELECTRONICS,93159,05/02/2024,11124,OLSN x6 Electrical Jobs,08/02/2024,155.3,776.49,931.79,OLSN - Site & Centre Management,Maintenance - Building,60201
http://statistics.data.gov.uk/id/local-authority/12UE,Huntingdonshire District Council,202742,NFC Property Maintenance Ltd,93086,23/01/2024,1219,OLSN Pure Tile Wall Removal & Replace,15/02/2024,135.5,677.5,813,OLSN - Site & Centre Management,Maintenance - Building,60201
http://statistics.data.gov.uk/id/local-authority/12UE,Huntingdonshire District Council,200226,DAL-ROD (CAMRIDGESHIRE) DAL-ROD (CAMRIDGESHIRE),90258,05/12/2023,30003082,OLSN Blocked Drains & Clearance Work,02/01/2024,120,600,720,OLSN - Site & Centre Management,Maintenance - Building,60201
http://statistics.data.gov.uk/id/local-authority/12UE,Huntingdonshire District Council,200542,MIRAMAR ENGINEERING LTD MIRAMAR ENGINEERING LTD,91323,04/01/2024,12777,OLH ENGINEER,26/01/2024,115.1,575.5,690.6,OLSN - Site & Centre Management,Maintenance - Building,60201
http://statistics.data.gov.uk/id/local-authority/12UE,Huntingdonshire District Council,202289,HARVEST HEALTHCARE LTD,90242,05/12/2023,11141379,OLSN Hoist Call Out & Maintenance,02/01/2024,103.7,518.52,622.22,OLSN - Site & Centre Management,Maintenance - Building,60201
http://statistics.data.gov.uk/id/local-authority/12UE,Huntingdonshire District Council,203258,Sven Saunas Limited,92707,23/01/2024,SI -191400,Citrus Steam Room Full Repairs,15/02/2024,91,455,546,OLSN - Site & Centre Management,Maintenance - Building,60201
http://statistics.data.gov.uk/id/local-authority/12UE,Huntingdonshire District Council,200226,DAL-ROD (CAMRIDGESHIRE) DAL-ROD (CAMRIDGESHIRE),92712,25/01/2024,30003963,OLSN Pool Flow Blockage Cleared,15/02/2024,87,435,522,OLSN - Site & Centre Management,Maintenance - Building,60201
http://statistics.data.gov.uk/id/local-authority/12UE,Huntingdonshire District Council,200226,DAL-ROD (CAMRIDGESHIRE) DAL-ROD (CAMRIDGESHIRE),92154,16/01/2024,30003757,OLSN Unblock Overflowing Manhole,08/02/2024,58,290,348,OLSN - Site & Centre Management,Maintenance - Building,60201
http://statistics.data.gov.uk/id/local-authority/12UE,Huntingdonshire District Council,202742,NFC Property Maintenance Ltd,90005,04/12/2023,1180,OLSN Install New Cistern/Toilet Seat,02/01/2024,55,275,330,OLSN - Site & Centre Management,Maintenance - Building,60201
http://statistics.data.gov.uk/id/local-authority/12UE,Huntingdonshire District Council,202135,TOTAL GAS AND POWER LTD,95088,09/03/2024,333100168/24,OLSN Dry Reissued Dec23-Feb24,14/03/2024,416.04,2080.19,2496.23,OLSN - Site & Centre Management,Gas,60305
http://statistics.data.gov.uk/id/local-authority/12UE,Huntingdonshire District Council,202699,SMS ENERGY SERVICES LTD,92336,19/01/2024,ESL-SINV057001,MOP Contract Year3,08/02/2024,42.8,214,256.8,OLSN - Site & Centre Management,Electricity,60303
http://statistics.data.gov.uk/id/local-authority/12UE,Huntingdonshire District Council,200689,RLSS UK Enterprise Ltd,94559,01/03/2024,ESI000690,Licences ATC Fees Mar24,14/03/2024,0,125,125,OLSN - Site & Centre Management,Licences,60410
http://statistics.data.gov.uk/id/local-authority/12UE,Huntingdonshire District Council,202728,ESCOREFRESH,91216,21/12/2023,44169,OLSN Cleaning Products,12/01/2024,114.84,574.19,689.03,OLSN - Site & Centre Management,Cleaning Materials,61300
http://statistics.data.gov.uk/id/local-authority/12UE,Huntingdonshire District Council,202728,ESCOREFRESH,93091,02/02/2024,44283,OLSN Cleaning Materials,22/02/2024,77.43,387.14,464.57,OLSN - Site & Centre Management,Cleaning Materials,61300
http://statistics.data.gov.uk/id/local-authority/12UE,Huntingdonshire District Council,202728,ESCOREFRESH,90683,08/12/2023,44135,OLSN Cleaning Materials,02/01/2024,72.08,360.4,432.48,OLSN - Site & Centre Management,Cleaning Materials,61300
http://statistics.data.gov.uk/id/local-authority/12UE,Huntingdonshire District Council,202728,ESCOREFRESH,94071,17/02/2024,44318,OLSN Cleaning Materials,08/03/2024,71.41,357.05,428.46,OLSN - Site & Centre Management,Cleaning Materials,61300
http://statistics.data.gov.uk/id/local-authority/12UE,Huntingdonshire District Council,202728,ESCOREFRESH,91493,15/12/2023,44151,OLSTN EQUIPMENT,08/01/2024,67.05,335.25,402.3,OLSN - Site & Centre Management,Cleaning Materials,61300
http://statistics.data.gov.uk/id/local-authority/12UE,Huntingdonshire District Council,200737,SPORTMAX SPORTMAX,91044,21/11/2023,129243,olstn swimwear,02/01/2024,0,80.2,80.2,OLSN - Site & Centre Management,Goods For Resale,61400
http://statistics.data.gov.uk/id/local-authority/12UE,Huntingdonshire District Council,200737,SPORTMAX SPORTMAX,91044,21/11/2023,129243,olstn swimwear,02/01/2024,188.23,941.15,1129.38,OLSN - Site & Centre Management,Goods For Resale,61400
http://statistics.data.gov.uk/id/local-authority/12UE,Huntingdonshire District Council,200737,SPORTMAX SPORTMAX,94012,26/02/2024,130885,OLSN Items For Sale,22/03/2024,171.7,858.5,1030.2,OLSN - Site & Centre Management,Goods For Resale,61400
http://statistics.data.gov.uk/id/local-authority/12UE,Huntingdonshire District Council,200737,SPORTMAX SPORTMAX,94012,26/02/2024,130885,OLSN Items For Sale,22/03/2024,0,60.4,60.4,OLSN - Site & Centre Management,Goods For Resale,61400
http://statistics.data.gov.uk/id/local-authority/12UE,Huntingdonshire District Council,200737,SPORTMAX SPORTMAX,92507,22/01/2024,130243,OLSN Wet Items For Sale,15/02/2024,0,100.2,100.2,OLSN - Site & Centre Management,Goods For Resale,61400
http://statistics.data.gov.uk/id/local-authority/12UE,Huntingdonshire District Council,200737,SPORTMAX SPORTMAX,92507,22/01/2024,130243,OLSN Wet Items For Sale,15/02/2024,84.46,422.3,506.76,OLSN - Site & Centre Management,Goods For Resale,61400
http://statistics.data.gov.uk/id/local-authority/12UE,Huntingdonshire District Council,200737,SPORTMAX SPORTMAX,91210,11/12/2023,129610,OLSN Swimwear for resale,04/01/2024,50.35,251.75,302.1,OLSN - Site & Centre Management,Goods For Resale,61400
http://statistics.data.gov.uk/id/local-authority/12UE,Huntingdonshire District Council,200737,SPORTMAX SPORTMAX,91210,11/12/2023,129610,OLSN Swimwear for resale,04/01/2024,0,116,116,OLSN - Site & Centre Management,Goods For Resale,61400
http://statistics.data.gov.uk/id/local-authority/12UE,Huntingdonshire District Council,200430,J P LENNARD LTD J P LENNARD LTD,92193,02/11/2023,197362,Pool Reception - x3 Table x12 Chairs,19/01/2024,243.9,1219.5,1463.4,OLSN - Site & Centre Management,Materials,61709
http://statistics.data.gov.uk/id/local-authority/12UE,Huntingdonshire District Council,200411,INITIAL WASHROOM SOLUTIONS INITIAL WASHROOM SOLUTIONS,91821,10/01/2024,34953993,Hire Equipment - All OL's Jan-Feb24,01/02/2024,71.66,358.28,429.94,OLSN - Site & Centre Management,Hire - Equipment Furniture And Materials,61700
http://statistics.data.gov.uk/id/local-authority/12UE,Huntingdonshire District Council,200411,INITIAL WASHROOM SOLUTIONS INITIAL WASHROOM SOLUTIONS,93299,07/02/2024,34985321,Equipment Hire All Sites 29.02-29.03.24,29/02/2024,71.66,358.28,429.94,OLSN - Site & Centre Management,Hire - Equipment Furniture And Materials,61700
http://statistics.data.gov.uk/id/local-authority/12UE,Huntingdonshire District Council,200411,INITIAL WASHROOM SOLUTIONS INITIAL WASHROOM SOLUTIONS,90691,04/12/2023,34919816,Equipment Hire All Sites Dec23-Jan24,02/01/2024,67.09,335.45,402.54,OLSN - Site & Centre Management,Hire - Equipment Furniture And Materials,61700
http://statistics.data.gov.uk/id/local-authority/12UE,Huntingdonshire District Council,200689,RLSS UK Enterprise Ltd,92848,18/01/2024,TI001673,x9 Candidates Lifeguarding Course,08/02/2024,0,549,549,OLSN - Site & Centre Management,Materials,61709
http://statistics.data.gov.uk/id/local-authority/12UE,Huntingdonshire District Council,200427,J A K  SYSTEMS LTD J A K SYSTEMS LTD,92878,26/01/2024,17745,Call Out - Granudos Machine,15/02/2024,95.75,478.75,574.5,OLSN - Site & Centre Management,"Maintenance - Equipment, Furniture And Materials",61702
http://statistics.data.gov.uk/id/local-authority/12UE,Huntingdonshire District Council,200427,J A K  SYSTEMS LTD J A K SYSTEMS LTD,92879,18/09/2023,17140,Call Out - Granudos Machine,08/02/2024,78.5,392.5,471,OLSN - Site & Centre Management,"Maintenance - Equipment, Furniture And Materials",61702
http://statistics.data.gov.uk/id/local-authority/12UE,Huntingdonshire District Council,200427,J A K  SYSTEMS LTD J A K SYSTEMS LTD,92880,19/01/2024,17714,Granudos Blocked & Fuse Blown,08/02/2024,76.82,384.1,460.92,OLSN - Site & Centre Management,"Maintenance - Equipment, Furniture And Materials",61702
http://statistics.data.gov.uk/id/local-authority/12UE,Huntingdonshire District Council,200430,J P LENNARD LTD J P LENNARD LTD,91736,18/12/2023,201548,Pure & Pool Wristbands,12/01/2024,64.44,322.2,386.64,OLSN - Site & Centre Management,Materials,61709
http://statistics.data.gov.uk/id/local-authority/12UE,Huntingdonshire District Council,200430,J P LENNARD LTD J P LENNARD LTD,93447,13/02/2024,206397,OLSN Pool & Centre Equipment,08/03/2024,75.1,375.49,450.59,OLSN - Site & Centre Management,Equipment,61713
http://statistics.data.gov.uk/id/local-authority/12UE,Huntingdonshire District Council,200417,Swim England Trading Limited,91819,01/01/2024,SWINV098593,Swim Badges  & Certificates,26/01/2024,67.84,339.2,407.04,OLSN - Site & Centre Management,Badges and Certificates,61712
http://statistics.data.gov.uk/id/local-authority/12UE,Huntingdonshire District Council,200430,J P LENNARD LTD J P LENNARD LTD,94774,06/03/2024,208890,OLSN Lane Ropes/Batteries,27/03/2024,58.78,293.9,352.68,OLSN - Site & Centre Management,Equipment,61713
http://statistics.data.gov.uk/id/local-authority/12UE,Huntingdonshire District Council,200434,JADE SECURITY SERVICES LTD JADE SECURITY SERVICES LTD,94694,29/02/2024,7100,Cash Collections Feb24,22/03/2024,10.8,54,64.8,OLSN - Site & Centre Management,Contract Charges ,61800
http://statistics.data.gov.uk/id/local-authority/12UE,Huntingdonshire District Council,200434,JADE SECURITY SERVICES LTD JADE SECURITY SERVICES LTD,93380,31/01/2024,6959,Cash Collections Jan24,22/02/2024,10.8,54,64.8,OLSN - Site & Centre Management,Contract Charges ,61800
http://statistics.data.gov.uk/id/local-authority/12UE,Huntingdonshire District Council,200434,JADE SECURITY SERVICES LTD JADE SECURITY SERVICES LTD,92898,31/12/2023,6761,Cash Collections Dec23,08/02/2024,5.4,27,32.4,OLSN - Site & Centre Management,Contract Charges ,61800
http://statistics.data.gov.uk/id/local-authority/12UE,Huntingdonshire District Council,203204,Ramtech Consulting Ltd/Paul Sandford,94499,04/03/2024,807/1599/040324,OLSN Door Consultancy,27/03/2024,120,600,720,OLSN - Site & Centre Management,Consultancy Fees,62400
http://statistics.data.gov.uk/id/local-authority/12UE,Huntingdonshire District Council,203258,Sven Saunas Limited,90237,05/12/2023,SI-191103,OLSN Heat Room Chemicals,02/01/2024,61.25,306.25,367.5,OLSN - Site & Centre Management,Chemicals,64000
http://statistics.data.gov.uk/id/local-authority/12UE,Huntingdonshire District Council,203258,Sven Saunas Limited,92678,29/01/2024,SI -191423,Essences For Pure,22/02/2024,61.25,306.25,367.5,OLSN - Site & Centre Management,Chemicals,64000
http://statistics.data.gov.uk/id/local-authority/12UE,Huntingdonshire District Council,200117,BRAMBLE HUB LTD BRAMBLE HUB LTD,90296,04/12/2023,INV-13885,OL All Sites Chip&Pin Integration,02/01/2024,246.87,1234.33,1481.2,OLSN - Site & Centre Management,Ict Hardware,64070
http://statistics.data.gov.uk/id/local-authority/12UE,Huntingdonshire District Council,200117,BRAMBLE HUB LTD BRAMBLE HUB LTD,93243,30/01/2024,INV-14049,"M STRAIN 10-11,01,24",29/02/2024,27.5,137.5,165,OLSN - Site & Centre Management,Ict Hardware,64070
http://statistics.data.gov.uk/id/local-authority/12UE,Huntingdonshire District Council,202135,TOTAL GAS AND POWER LTD,93656,14/02/2024,331042068/24,OLSN Jan24,20/02/2024,4437.35,22186.73,26624.08,OLSN - Swimming,Electricity,60303
http://statistics.data.gov.uk/id/local-authority/12UE,Huntingdonshire District Council,202135,TOTAL GAS AND POWER LTD,93656,14/02/2024,331042068/24,OLSN Jan24,20/02/2024,0,294,294,OLSN - Swimming,Electricity,60303
http://statistics.data.gov.uk/id/local-authority/12UE,Huntingdonshire District Council,202135,TOTAL GAS AND POWER LTD,95096,10/03/2024,333557284/24,OLSN Jan-Feb24,19/03/2024,4065.92,20329.62,24395.54,OLSN - Swimming,Electricity,60303
http://statistics.data.gov.uk/id/local-authority/12UE,Huntingdonshire District Council,202135,TOTAL GAS AND POWER LTD,91965,10/01/2024,326695858/24,OLSN Dec23,23/01/2024,3850.81,19254.04,23104.85,OLSN - Swimming,Electricity,60303
http://statistics.data.gov.uk/id/local-authority/12UE,Huntingdonshire District Council,202135,TOTAL GAS AND POWER LTD,94412,21/02/2024,331474753/24,OLSN Gas Jan24,05/03/2024,3282.77,16413.83,19696.6,OLSN - Swimming,Gas,60305
http://statistics.data.gov.uk/id/local-authority/12UE,Huntingdonshire District Council,202135,TOTAL GAS AND POWER LTD,95105,09/03/2024,333100113/24,OLSN Wet Jan-Feb24,14/03/2024,2333.87,11669.37,14003.24,OLSN - Swimming,Gas,60305
http://statistics.data.gov.uk/id/local-authority/12UE,Huntingdonshire District Council,200913,WAVE  ANGLIAN WATER BUSINESS,92737,26/01/2024,13073121,OLSN Dec23-Jan24,01/02/2024,0,3335.99,3335.99,OLSN - Swimming,Water And Sewerage,60302
http://statistics.data.gov.uk/id/local-authority/12UE,Huntingdonshire District Council,200913,WAVE  ANGLIAN WATER BUSINESS,94076,26/02/2024,13199352,OLSN Jan-Feb24,29/02/2024,0,3306.99,3306.99,OLSN - Swimming,Water And Sewerage,60302
http://statistics.data.gov.uk/id/local-authority/12UE,Huntingdonshire District Council,200913,WAVE  ANGLIAN WATER BUSINESS,91309,26/12/2023,12954552,olstn 261123-251223,01/02/2024,0,3214.5,3214.5,OLSN - Swimming,Water And Sewerage,60302
http://statistics.data.gov.uk/id/local-authority/12UE,Huntingdonshire District Council,202749,COMPLETE POOL CONTROLS LTD,92778,30/01/2024,DOC213601,OLSTI CATERING,22/02/2024,255.97,1279.85,1535.82,OLSN - Swimming,Chemicals,64000
http://statistics.data.gov.uk/id/local-authority/12UE,Huntingdonshire District Council,202749,COMPLETE POOL CONTROLS LTD,94699,05/03/2024,INV097260,OLSN Pool Chemicals,27/03/2024,190.48,952.39,1142.87,OLSN - Swimming,Chemicals,64000
http://statistics.data.gov.uk/id/local-authority/12UE,Huntingdonshire District Council,202749,COMPLETE POOL CONTROLS LTD,93219,08/12/2023,INV094879,OLSN Pool Chemicals,08/02/2024,122.99,614.94,737.93,OLSN - Swimming,Chemicals,64000
http://statistics.data.gov.uk/id/local-authority/12UE,Huntingdonshire District Council,202749,COMPLETE POOL CONTROLS LTD,90433,06/12/2023,INV094823,OLSN Pool Chemicals,02/01/2024,52.25,261.25,313.5,OLSN - Swimming,Chemicals,64000
http://statistics.data.gov.uk/id/local-authority/12UE,Huntingdonshire District Council,200117,BRAMBLE HUB LTD BRAMBLE HUB LTD,93243,30/01/2024,INV-14049,REDACTED,29/02/2024,27.5,137.5,165,One Leisure Call Centre Income,Ict Hardware,64070
http://statistics.data.gov.uk/id/local-authority/12UE,Huntingdonshire District Council,202855,ORTHOPAEDIC RESEARCH UK,94017,20/02/2024,INV-24056,Escape Pain Back Crs 20/3 x 2 delegates,14/03/2024,0,350,350,Integrated Lifestyle Service,Staff Development And Training,60115
http://statistics.data.gov.uk/id/local-authority/12UE,Huntingdonshire District Council,200072,B & H DIGITAL LTD B & H DIGITAL LTD,95650,08/03/2024,42943,Health Walk Brochure,27/03/2024,143,715,858,Integrated Lifestyle Service,"Advertising, Publicity And Marketing",62005
http://statistics.data.gov.uk/id/local-authority/12UE,Huntingdonshire District Council,200072,B & H DIGITAL LTD B & H DIGITAL LTD,95650,08/03/2024,42943,Health Walk Brochure,27/03/2024,55,275,330,Integrated Lifestyle Service,"Advertising, Publicity And Marketing",62005
http://statistics.data.gov.uk/id/local-authority/12UE,Huntingdonshire District Council,201313,Central England Co-Operative Limited,95916,27/03/2024,ARJ009545,Retuned payment - unknown Reference,28/03/2024,0,-72.74,-72.74,Active Health,Courses Income,52000
http://statistics.data.gov.uk/id/local-authority/12UE,Huntingdonshire District Council,201313,Central England Co-Operative Limited,95916,27/03/2024,ARJ009545,Retuned payment - unknown Reference,28/03/2024,0,-198.37,-198.37,Active Health,Courses Income,52000
http://statistics.data.gov.uk/id/local-authority/12UE,Huntingdonshire District Council,203450,REDACTED,91746,10/01/2024,ARJ009050,Coleman Creative Refund,12/01/2024,0,-4.13,-4.13,Active Health,Courses Income,52000
http://statistics.data.gov.uk/id/local-authority/12UE,Huntingdonshire District Council,203450,REDACTED,91746,10/01/2024,ARJ009050,Coleman Creative Refund,12/01/2024,0,-4.13,-4.13,Active Health,Courses Income,52000
http://statistics.data.gov.uk/id/local-authority/12UE,Huntingdonshire District Council,202204,LONGHURST GROUP,93378,14/02/2024,ARJ009292,REDACTED,15/02/2024,0,-145.48,-145.48,Active Health,Courses Income,52000
http://statistics.data.gov.uk/id/local-authority/12UE,Huntingdonshire District Council,200132,BRYAN LECOCHE LTD BRYAN LECOCHE LTD,93213,11/01/2024,8295,Overnight Security,08/02/2024,2287.05,11435.25,13722.3,Countryside Service Management,Security Of Premises,60271
http://statistics.data.gov.uk/id/local-authority/12UE,Huntingdonshire District Council,200060,ARTHUR IBBETT LTD ARTHUR IBBETT LTD,94543,29/02/2024,169088,Little Paxton NR - Materials,22/03/2024,0,65.5,65.5,Countryside Service Management,"Clothes, Uniform And Laundry",62000
http://statistics.data.gov.uk/id/local-authority/12UE,Huntingdonshire District Council,200060,ARTHUR IBBETT LTD ARTHUR IBBETT LTD,94543,29/02/2024,169088,Little Paxton NR - Materials,22/03/2024,0,65.5,65.5,Countryside Service Management,"Clothes, Uniform And Laundry",62000
http://statistics.data.gov.uk/id/local-authority/12UE,Huntingdonshire District Council,200373,HI-SPEC FACILITIES SERVICES PLC HI-SPEC FACILITIES SERVICES PLC,91734,31/12/2023,53851,Monthly Cleaning Service Dec23,19/01/2024,125.51,627.55,753.06,H'Brooke Countryside Centre,Cleaning Contract,60502
http://statistics.data.gov.uk/id/local-authority/12UE,Huntingdonshire District Council,200373,HI-SPEC FACILITIES SERVICES PLC HI-SPEC FACILITIES SERVICES PLC,93847,31/01/2024,54110,Monthly Cleaning Service Jan24,22/02/2024,125.51,627.55,753.06,H'Brooke Countryside Centre,Cleaning Contract,60502
http://statistics.data.gov.uk/id/local-authority/12UE,Huntingdonshire District Council,200373,HI-SPEC FACILITIES SERVICES PLC HI-SPEC FACILITIES SERVICES PLC,94991,29/02/2024,54328,Monthly Cleaning Service Feb24,22/03/2024,41.84,209.18,251.02,H'Brooke Countryside Centre,Cleaning Contract,60502
http://statistics.data.gov.uk/id/local-authority/12UE,Huntingdonshire District Council,200373,HI-SPEC FACILITIES SERVICES PLC HI-SPEC FACILITIES SERVICES PLC,94991,29/02/2024,54328,Monthly Cleaning Service Feb24,22/03/2024,41.84,209.18,251.02,H'Brooke Countryside Centre,Cleaning Contract,60502
http://statistics.data.gov.uk/id/local-authority/12UE,Huntingdonshire District Council,200373,HI-SPEC FACILITIES SERVICES PLC HI-SPEC FACILITIES SERVICES PLC,94991,29/02/2024,54328,Monthly Cleaning Service Feb24,22/03/2024,41.84,209.18,251.02,H'Brooke Countryside Centre,Cleaning Contract,60502
http://statistics.data.gov.uk/id/local-authority/12UE,Huntingdonshire District Council,202135,TOTAL GAS AND POWER LTD,93916,14/02/2024,331041001/24,HCP Caf� Jan24,27/02/2024,485.66,2428.29,2913.95,Hinchingbrooke Park Cafe,Electricity,60303
http://statistics.data.gov.uk/id/local-authority/12UE,Huntingdonshire District Council,202135,TOTAL GAS AND POWER LTD,91132,10/12/2023,323552971/23,hcp,02/01/2024,453.43,2267.17,2720.6,Hinchingbrooke Park Cafe,Electricity,60303
http://statistics.data.gov.uk/id/local-authority/12UE,Huntingdonshire District Council,202135,TOTAL GAS AND POWER LTD,92029,10/01/2024,326694329/24,HCP Caf� Dec23,19/01/2024,434.42,2172.11,2606.53,Hinchingbrooke Park Cafe,Electricity,60303
http://statistics.data.gov.uk/id/local-authority/12UE,Huntingdonshire District Council,202135,TOTAL GAS AND POWER LTD,95931,10/03/2024,333556866/24,HCP Caf� Feb24,28/03/2024,414.69,2073.45,2488.14,Hinchingbrooke Park Cafe,Electricity,60303
http://statistics.data.gov.uk/id/local-authority/12UE,Huntingdonshire District Council,200462,KING BROS KING BROS,91318,30/12/2023,283490,hcp catering,19/01/2024,1.79,8.96,10.75,Hinchingbrooke Park Cafe,Cleaning Materials,61300
http://statistics.data.gov.uk/id/local-authority/12UE,Huntingdonshire District Council,200462,KING BROS KING BROS,93439,09/02/2024,288336,HCP Catering Supplies/Cleaning Materials,29/02/2024,3.38,16.89,20.27,Hinchingbrooke Park Cafe,Cleaning Materials,61300
http://statistics.data.gov.uk/id/local-authority/12UE,Huntingdonshire District Council,200462,KING BROS KING BROS,93440,10/02/2024,288908,HCP Catering Supplies/Cleaning Materials,29/02/2024,0.75,3.75,4.5,Hinchingbrooke Park Cafe,Cleaning Materials,61300
http://statistics.data.gov.uk/id/local-authority/12UE,Huntingdonshire District Council,200462,KING BROS KING BROS,93155,05/02/2024,287995,HCP Catering/Cleaning Supplies,29/02/2024,2.1,10.5,12.6,Hinchingbrooke Park Cafe,Cleaning Materials,61300
http://statistics.data.gov.uk/id/local-authority/12UE,Huntingdonshire District Council,200462,KING BROS KING BROS,94710,02/03/2024,291536,HCP Catering & Vending Supplies,22/03/2024,3.05,15.24,18.29,Hinchingbrooke Park Cafe,Cleaning Materials,61300
http://statistics.data.gov.uk/id/local-authority/12UE,Huntingdonshire District Council,200462,KING BROS KING BROS,92513,16/01/2024,285286,HCP Catering & Vending Supplies,08/02/2024,2.85,14.25,17.1,Hinchingbrooke Park Cafe,Cleaning Materials,61300
http://statistics.data.gov.uk/id/local-authority/12UE,Huntingdonshire District Council,200462,KING BROS KING BROS,93082,31/01/2024,287398,HCP Catering & Vending Supplies,22/02/2024,7.27,36.36,43.63,Hinchingbrooke Park Cafe,Cleaning Materials,61300
http://statistics.data.gov.uk/id/local-authority/12UE,Huntingdonshire District Council,200462,KING BROS KING BROS,94661,29/11/2023,279299,HCP Catering Supplies/Cleaning Materials,08/03/2024,4.7,23.51,28.21,Hinchingbrooke Park Cafe,Cleaning Materials,61300
http://statistics.data.gov.uk/id/local-authority/12UE,Huntingdonshire District Council,200462,KING BROS KING BROS,94560,20/11/2023,277922,HCP Catering Supplies/Cleaning Materials,08/03/2024,2.51,12.56,15.07,Hinchingbrooke Park Cafe,Cleaning Materials,61300
http://statistics.data.gov.uk/id/local-authority/12UE,Huntingdonshire District Council,200462,KING BROS KING BROS,93665,17/02/2024,289804,HCP Catering & Vending Supplies,08/03/2024,2.1,10.5,12.6,Hinchingbrooke Park Cafe,Cleaning Materials,61300
http://statistics.data.gov.uk/id/local-authority/12UE,Huntingdonshire District Council,200462,KING BROS KING BROS,93108,03/02/2024,287880,HCP Catering & Cleaning Supplies,22/02/2024,1.79,8.96,10.75,Hinchingbrooke Park Cafe,Cleaning Materials,61300
http://statistics.data.gov.uk/id/local-authority/12UE,Huntingdonshire District Council,200571,NISBETS NISBETS,92220,15/01/2024,26849305,HCP Caf� Catering Materials,08/02/2024,66.58,332.91,399.49,Hinchingbrooke Park Cafe,Materials,61709
http://statistics.data.gov.uk/id/local-authority/12UE,Huntingdonshire District Council,200434,JADE SECURITY SERVICES LTD JADE SECURITY SERVICES LTD,94694,29/02/2024,7100,Cash Collections Feb24,22/03/2024,10.8,54,64.8,Hinchingbrooke Park Cafe,Contract Charges ,61800
http://statistics.data.gov.uk/id/local-authority/12UE,Huntingdonshire District Council,200434,JADE SECURITY SERVICES LTD JADE SECURITY SERVICES LTD,93380,31/01/2024,6959,Cash Collections Jan24,22/02/2024,10.8,54,64.8,Hinchingbrooke Park Cafe,Contract Charges ,61800
http://statistics.data.gov.uk/id/local-authority/12UE,Huntingdonshire District Council,200462,KING BROS KING BROS,91978,11/01/2024,284733,HCP Catering & Vending Supplies,01/02/2024,0,568.7,568.7,Hinchingbrooke Park Cafe,Catering Supplies,61900
http://statistics.data.gov.uk/id/local-authority/12UE,Huntingdonshire District Council,200462,KING BROS KING BROS,91978,11/01/2024,284733,HCP Catering & Vending Supplies,01/02/2024,37.28,186.38,223.66,Hinchingbrooke Park Cafe,Catering Supplies,61900
http://statistics.data.gov.uk/id/local-authority/12UE,Huntingdonshire District Council,200462,KING BROS KING BROS,91318,30/12/2023,283490,hcp catering,19/01/2024,0,483.54,483.54,Hinchingbrooke Park Cafe,Catering Supplies,61900
http://statistics.data.gov.uk/id/local-authority/12UE,Huntingdonshire District Council,200462,KING BROS KING BROS,91318,30/12/2023,283490,hcp catering,19/01/2024,46,229.98,275.98,Hinchingbrooke Park Cafe,Catering Supplies,61900
http://statistics.data.gov.uk/id/local-authority/12UE,Huntingdonshire District Council,200462,KING BROS KING BROS,93439,09/02/2024,288336,HCP Catering Supplies/Cleaning Materials,29/02/2024,0,354.3,354.3,Hinchingbrooke Park Cafe,Catering Supplies,61900
http://statistics.data.gov.uk/id/local-authority/12UE,Huntingdonshire District Council,200462,KING BROS KING BROS,93439,09/02/2024,288336,HCP Catering Supplies/Cleaning Materials,29/02/2024,40.05,200.26,240.31,Hinchingbrooke Park Cafe,Catering Supplies,61900
http://statistics.data.gov.uk/id/local-authority/12UE,Huntingdonshire District Council,200462,KING BROS KING BROS,93440,10/02/2024,288908,HCP Catering Supplies/Cleaning Materials,29/02/2024,0,114.11,114.11,Hinchingbrooke Park Cafe,Catering Supplies,61900
http://statistics.data.gov.uk/id/local-authority/12UE,Huntingdonshire District Council,200462,KING BROS KING BROS,93440,10/02/2024,288908,HCP Catering Supplies/Cleaning Materials,29/02/2024,85.87,429.36,515.23,Hinchingbrooke Park Cafe,Catering Supplies,61900
http://statistics.data.gov.uk/id/local-authority/12UE,Huntingdonshire District Council,200462,KING BROS KING BROS,90939,08/09/2023,276241,HCP Catering & Vending Supplies,02/01/2024,0,127.46,127.46,Hinchingbrooke Park Cafe,Catering Supplies,61900
http://statistics.data.gov.uk/id/local-authority/12UE,Huntingdonshire District Council,200462,KING BROS KING BROS,90939,08/09/2023,276241,HCP Catering & Vending Supplies,02/01/2024,78.57,392.85,471.42,Hinchingbrooke Park Cafe,Catering Supplies,61900
http://statistics.data.gov.uk/id/local-authority/12UE,Huntingdonshire District Council,200462,KING BROS KING BROS,91319,28/12/2023,283305,hcp catering,19/01/2024,0,228.97,228.97,Hinchingbrooke Park Cafe,Catering Supplies,61900
http://statistics.data.gov.uk/id/local-authority/12UE,Huntingdonshire District Council,200462,KING BROS KING BROS,91319,28/12/2023,283305,hcp catering,19/01/2024,57.46,287.32,344.78,Hinchingbrooke Park Cafe,Catering Supplies,61900
http://statistics.data.gov.uk/id/local-authority/12UE,Huntingdonshire District Council,200462,KING BROS KING BROS,93155,05/02/2024,287995,HCP Catering/Cleaning Supplies,29/02/2024,0,414.74,414.74,Hinchingbrooke Park Cafe,Catering Supplies,61900
http://statistics.data.gov.uk/id/local-authority/12UE,Huntingdonshire District Council,200462,KING BROS KING BROS,93155,05/02/2024,287995,HCP Catering/Cleaning Supplies,29/02/2024,17.37,86.87,104.24,Hinchingbrooke Park Cafe,Catering Supplies,61900
http://statistics.data.gov.uk/id/local-authority/12UE,Huntingdonshire District Council,200462,KING BROS KING BROS,93728,02/11/2023,275178,HCP Catering & Vending Supplies,22/02/2024,0,456.44,456.44,Hinchingbrooke Park Cafe,Catering Supplies,61900
http://statistics.data.gov.uk/id/local-authority/12UE,Huntingdonshire District Council,200462,KING BROS KING BROS,93728,02/11/2023,275178,HCP Catering & Vending Supplies,22/02/2024,6.34,31.71,38.05,Hinchingbrooke Park Cafe,Catering Supplies,61900
http://statistics.data.gov.uk/id/local-authority/12UE,Huntingdonshire District Council,200462,KING BROS KING BROS,94710,02/03/2024,291536,HCP Catering & Vending Supplies,22/03/2024,0,232,232,Hinchingbrooke Park Cafe,Catering Supplies,61900
http://statistics.data.gov.uk/id/local-authority/12UE,Huntingdonshire District Council,200462,KING BROS KING BROS,94710,02/03/2024,291536,HCP Catering & Vending Supplies,22/03/2024,40.91,204.56,245.47,Hinchingbrooke Park Cafe,Catering Supplies,61900
http://statistics.data.gov.uk/id/local-authority/12UE,Huntingdonshire District Council,200462,KING BROS KING BROS,92513,16/01/2024,285286,HCP Catering & Vending Supplies,08/02/2024,0,184.25,184.25,Hinchingbrooke Park Cafe,Catering Supplies,61900
http://statistics.data.gov.uk/id/local-authority/12UE,Huntingdonshire District Council,200462,KING BROS KING BROS,92513,16/01/2024,285286,HCP Catering & Vending Supplies,08/02/2024,44.92,224.58,269.5,Hinchingbrooke Park Cafe,Catering Supplies,61900
http://statistics.data.gov.uk/id/local-authority/12UE,Huntingdonshire District Council,200462,KING BROS KING BROS,93082,31/01/2024,287398,HCP Catering & Vending Supplies,22/02/2024,0,88.44,88.44,Hinchingbrooke Park Cafe,Catering Supplies,61900
http://statistics.data.gov.uk/id/local-authority/12UE,Huntingdonshire District Council,200462,KING BROS KING BROS,93082,31/01/2024,287398,HCP Catering & Vending Supplies,22/02/2024,58.86,294.28,353.14,Hinchingbrooke Park Cafe,Catering Supplies,61900
http://statistics.data.gov.uk/id/local-authority/12UE,Huntingdonshire District Council,200462,KING BROS KING BROS,92761,21/01/2024,286859,hcp catering,08/02/2024,0,335.22,335.22,Hinchingbrooke Park Cafe,Catering Supplies,61900
http://statistics.data.gov.uk/id/local-authority/12UE,Huntingdonshire District Council,200462,KING BROS KING BROS,92761,21/01/2024,286859,hcp catering,08/02/2024,16.21,81.07,97.28,Hinchingbrooke Park Cafe,Catering Supplies,61900
http://statistics.data.gov.uk/id/local-authority/12UE,Huntingdonshire District Council,200462,KING BROS KING BROS,90880,19/12/2023,282499,HCP Catering & Vending Supplies,12/01/2024,0,293.85,293.85,Hinchingbrooke Park Cafe,Catering Supplies,61900
http://statistics.data.gov.uk/id/local-authority/12UE,Huntingdonshire District Council,200462,KING BROS KING BROS,90880,19/12/2023,282499,HCP Catering & Vending Supplies,12/01/2024,24.24,121.21,145.45,Hinchingbrooke Park Cafe,Catering Supplies,61900
http://statistics.data.gov.uk/id/local-authority/12UE,Huntingdonshire District Council,200462,KING BROS KING BROS,93063,29/01/2024,287058,HCP Catering & Vending Supplies,22/02/2024,0,303.21,303.21,Hinchingbrooke Park Cafe,Catering Supplies,61900
http://statistics.data.gov.uk/id/local-authority/12UE,Huntingdonshire District Council,200462,KING BROS KING BROS,93063,29/01/2024,287058,HCP Catering & Vending Supplies,22/02/2024,18.84,94.19,113.03,Hinchingbrooke Park Cafe,Catering Supplies,61900
http://statistics.data.gov.uk/id/local-authority/12UE,Huntingdonshire District Council,200462,KING BROS KING BROS,91484,13/12/2023,281729,hcp food,08/01/2024,0,294.04,294.04,Hinchingbrooke Park Cafe,Catering Supplies,61900
http://statistics.data.gov.uk/id/local-authority/12UE,Huntingdonshire District Council,200462,KING BROS KING BROS,91484,13/12/2023,281729,hcp food,08/01/2024,19.45,97.24,116.69,Hinchingbrooke Park Cafe,Catering Supplies,61900
http://statistics.data.gov.uk/id/local-authority/12UE,Huntingdonshire District Council,200462,KING BROS KING BROS,92514,18/01/2024,285730,HCP Catering & Vending Supplies,08/02/2024,0,297.91,297.91,Hinchingbrooke Park Cafe,Catering Supplies,61900
http://statistics.data.gov.uk/id/local-authority/12UE,Huntingdonshire District Council,200462,KING BROS KING BROS,92514,18/01/2024,285730,HCP Catering & Vending Supplies,08/02/2024,17.03,85.16,102.19,Hinchingbrooke Park Cafe,Catering Supplies,61900
http://statistics.data.gov.uk/id/local-authority/12UE,Huntingdonshire District Council,200462,KING BROS KING BROS,94661,29/11/2023,279299,HCP Catering Supplies/Cleaning Materials,08/03/2024,0,320.91,320.91,Hinchingbrooke Park Cafe,Catering Supplies,61900
http://statistics.data.gov.uk/id/local-authority/12UE,Huntingdonshire District Council,200462,KING BROS KING BROS,94661,29/11/2023,279299,HCP Catering Supplies/Cleaning Materials,08/03/2024,7.35,36.75,44.1,Hinchingbrooke Park Cafe,Catering Supplies,61900
http://statistics.data.gov.uk/id/local-authority/12UE,Huntingdonshire District Council,200462,KING BROS KING BROS,91706,23/11/2023,278410,HCP Catering & Vending Supplies,12/01/2024,0,190.28,190.28,Hinchingbrooke Park Cafe,Catering Supplies,61900
http://statistics.data.gov.uk/id/local-authority/12UE,Huntingdonshire District Council,200462,KING BROS KING BROS,91706,23/11/2023,278410,HCP Catering & Vending Supplies,12/01/2024,35.32,176.58,211.9,Hinchingbrooke Park Cafe,Catering Supplies,61900
http://statistics.data.gov.uk/id/local-authority/12UE,Huntingdonshire District Council,200462,KING BROS KING BROS,94560,20/11/2023,277922,HCP Catering Supplies/Cleaning Materials,08/03/2024,0,237.19,237.19,Hinchingbrooke Park Cafe,Catering Supplies,61900
http://statistics.data.gov.uk/id/local-authority/12UE,Huntingdonshire District Council,200462,KING BROS KING BROS,94560,20/11/2023,277922,HCP Catering Supplies/Cleaning Materials,08/03/2024,15.72,78.6,94.32,Hinchingbrooke Park Cafe,Catering Supplies,61900
http://statistics.data.gov.uk/id/local-authority/12UE,Huntingdonshire District Council,200462,KING BROS KING BROS,93665,17/02/2024,289804,HCP Catering & Vending Supplies,08/03/2024,0,132.82,132.82,Hinchingbrooke Park Cafe,Catering Supplies,61900
http://statistics.data.gov.uk/id/local-authority/12UE,Huntingdonshire District Council,200462,KING BROS KING BROS,93665,17/02/2024,289804,HCP Catering & Vending Supplies,08/03/2024,33.66,168.31,201.97,Hinchingbrooke Park Cafe,Catering Supplies,61900
http://statistics.data.gov.uk/id/local-authority/12UE,Huntingdonshire District Council,200462,KING BROS KING BROS,90685,09/12/2023,281194,HCP Catering & Vending Supplies,02/01/2024,0,230.34,230.34,Hinchingbrooke Park Cafe,Catering Supplies,61900
http://statistics.data.gov.uk/id/local-authority/12UE,Huntingdonshire District Council,200462,KING BROS KING BROS,90685,09/12/2023,281194,HCP Catering & Vending Supplies,02/01/2024,15.98,79.88,95.86,Hinchingbrooke Park Cafe,Catering Supplies,61900
http://statistics.data.gov.uk/id/local-authority/12UE,Huntingdonshire District Council,200462,KING BROS KING BROS,93108,03/02/2024,287880,HCP Catering & Cleaning Supplies,22/02/2024,0,209.04,209.04,Hinchingbrooke Park Cafe,Catering Supplies,61900
http://statistics.data.gov.uk/id/local-authority/12UE,Huntingdonshire District Council,200462,KING BROS KING BROS,93108,03/02/2024,287880,HCP Catering & Cleaning Supplies,22/02/2024,11.63,58.14,69.77,Hinchingbrooke Park Cafe,Catering Supplies,61900
http://statistics.data.gov.uk/id/local-authority/12UE,Huntingdonshire District Council,200462,KING BROS KING BROS,93727,05/10/2023,271145,HCP Catering & Vending Supplies,22/02/2024,0,237.19,237.19,Hinchingbrooke Park Cafe,Catering Supplies,61900
http://statistics.data.gov.uk/id/local-authority/12UE,Huntingdonshire District Council,200462,KING BROS KING BROS,93821,20/02/2024,290017,HCP Catering & Vending Supplies,14/03/2024,0,168.16,168.16,Hinchingbrooke Park Cafe,Catering Supplies,61900
http://statistics.data.gov.uk/id/local-authority/12UE,Huntingdonshire District Council,200462,KING BROS KING BROS,93821,20/02/2024,290017,HCP Catering & Vending Supplies,14/03/2024,19.79,98.96,118.75,Hinchingbrooke Park Cafe,Catering Supplies,61900
http://statistics.data.gov.uk/id/local-authority/12UE,Huntingdonshire District Council,200462,KING BROS KING BROS,91705,02/12/2023,280083,HCP Catering & Vending Supplies,12/01/2024,0,83.12,83.12,Hinchingbrooke Park Cafe,Catering Supplies,61900
http://statistics.data.gov.uk/id/local-authority/12UE,Huntingdonshire District Council,200462,KING BROS KING BROS,91705,02/12/2023,280083,HCP Catering & Vending Supplies,12/01/2024,34.79,173.96,208.75,Hinchingbrooke Park Cafe,Catering Supplies,61900
http://statistics.data.gov.uk/id/local-authority/12UE,Huntingdonshire District Council,202204,LONGHURST GROUP,93378,14/02/2024,ARJ009292,Longhurst paid in error,15/02/2024,0,-110.3,-110.3,Hinchingbrooke Park Management,Government Grants Revenue Income - Ringfenced,50000
http://statistics.data.gov.uk/id/local-authority/12UE,Huntingdonshire District Council,203408,HAVi Technologies Ltd,89763,17/12/2023,1008464,Havi Small Team Pack,08/01/2024,253.97,1269.85,1523.82,Hinchingbrooke Park Management,Health And Safety Supplies And Services,60207
http://statistics.data.gov.uk/id/local-authority/12UE,Huntingdonshire District Council,200542,MIRAMAR ENGINEERING LTD MIRAMAR ENGINEERING LTD,94524,26/02/2024,13276,HCP Biomass Boiler Annual Service,22/03/2024,137.28,686.4,823.68,Hinchingbrooke Park Management,Maintenance - Building,60201
http://statistics.data.gov.uk/id/local-authority/12UE,Huntingdonshire District Council,200542,MIRAMAR ENGINEERING LTD MIRAMAR ENGINEERING LTD,95338,18/12/2023,12678,HCP Annual Boiler Service,19/03/2024,65,325,390,Hinchingbrooke Park Management,Maintenance - Building,60201
http://statistics.data.gov.uk/id/local-authority/12UE,Huntingdonshire District Council,200075,B S GRAVES ELECTRICAL LTD B S GRAVES ELECTRICAL LTD,90945,09/11/2023,31377,HCP Repair Workshop Damage,02/01/2024,53.09,265.44,318.53,Hinchingbrooke Park Management,Responsive Repairs - Building,60267
http://statistics.data.gov.uk/id/local-authority/12UE,Huntingdonshire District Council,202135,TOTAL GAS AND POWER LTD,95932,10/03/2024,333557097/24,HCP Visitors Centre Feb24,28/03/2024,124.55,622.76,747.31,Hinchingbrooke Park Management,Electricity,60303
http://statistics.data.gov.uk/id/local-authority/12UE,Huntingdonshire District Council,202135,TOTAL GAS AND POWER LTD,93917,14/02/2024,331041353/24,HCP Visitors Centre Jan24,27/02/2024,104.8,524.02,628.82,Hinchingbrooke Park Management,Electricity,60303
http://statistics.data.gov.uk/id/local-authority/12UE,Huntingdonshire District Council,202135,TOTAL GAS AND POWER LTD,92028,10/01/2024,326694736/24,HCP Visitors Centre Dec23,19/01/2024,93.35,466.75,560.1,Hinchingbrooke Park Management,Electricity,60303
http://statistics.data.gov.uk/id/local-authority/12UE,Huntingdonshire District Council,202135,TOTAL GAS AND POWER LTD,91133,10/12/2023,323553279/23,hcp centre,02/01/2024,90.98,454.87,545.85,Hinchingbrooke Park Management,Electricity,60303
http://statistics.data.gov.uk/id/local-authority/12UE,Huntingdonshire District Council,200913,WAVE  ANGLIAN WATER BUSINESS,92798,14/01/2024,13027946,hcp jan 24,29/02/2024,0,354.13,354.13,Hinchingbrooke Park Management,Water And Sewerage,60302
http://statistics.data.gov.uk/id/local-authority/12UE,Huntingdonshire District Council,201492,KEEP BRITAIN TIDY,94688,15/02/2024,SI007315,Green Flag Award - Pax Pits & HCP,08/03/2024,84.8,424,508.8,Hinchingbrooke Park Management,"Maintenance - Equipment, Furniture And Materials",61702
http://statistics.data.gov.uk/id/local-authority/12UE,Huntingdonshire District Council,200725,SMI INT GROUP LTD SMI GROUP,93071,08/12/2023,INV1348221,PPE,08/02/2024,8.4,42,50.4,Hinchingbrooke Park Management,Materials,61709
http://statistics.data.gov.uk/id/local-authority/12UE,Huntingdonshire District Council,200725,SMI INT GROUP LTD SMI GROUP,93071,08/12/2023,INV1348221,PPE,08/02/2024,4.36,21.82,26.18,Hinchingbrooke Park Management,Materials,61709
http://statistics.data.gov.uk/id/local-authority/12UE,Huntingdonshire District Council,200250,DTS SOLUTIONS (UK) LTD DTS SOLUTIONS (UK) LTD,91277,23/11/2023,S012314,OPS CHARGER,04/01/2024,164.3,821.5,985.8,Hinchingbrooke Park Management,Equipment,61713
http://statistics.data.gov.uk/id/local-authority/12UE,Huntingdonshire District Council,200462,KING BROS KING BROS,93727,05/10/2023,271145,HCP Catering & Vending Supplies,22/02/2024,6.38,31.91,38.29,Hinchingbrooke Park Management,Catering Supplies,61900
http://statistics.data.gov.uk/id/local-authority/12UE,Huntingdonshire District Council,200725,SMI INT GROUP LTD SMI GROUP,93071,08/12/2023,INV1348221,PPE,08/02/2024,4.7,23.52,28.22,Hinchingbrooke Park Management,"Clothes, Uniform And Laundry",62000
http://statistics.data.gov.uk/id/local-authority/12UE,Huntingdonshire District Council,200725,SMI INT GROUP LTD SMI GROUP,93071,08/12/2023,INV1348221,PPE,08/02/2024,2.98,14.9,17.88,Hinchingbrooke Park Management,"Clothes, Uniform And Laundry",62000
http://statistics.data.gov.uk/id/local-authority/12UE,Huntingdonshire District Council,200725,SMI INT GROUP LTD SMI GROUP,93071,08/12/2023,INV1348221,PPE,08/02/2024,6.05,30.24,36.29,Hinchingbrooke Park Management,"Clothes, Uniform And Laundry",62000
http://statistics.data.gov.uk/id/local-authority/12UE,Huntingdonshire District Council,200725,SMI INT GROUP LTD SMI GROUP,93071,08/12/2023,INV1348221,PPE,08/02/2024,1.06,5.3,6.36,Hinchingbrooke Park Management,"Clothes, Uniform And Laundry",62000
http://statistics.data.gov.uk/id/local-authority/12UE,Huntingdonshire District Council,200725,SMI INT GROUP LTD SMI GROUP,93071,08/12/2023,INV1348221,PPE,08/02/2024,3.18,15.9,19.08,Hinchingbrooke Park Management,"Clothes, Uniform And Laundry",62000
http://statistics.data.gov.uk/id/local-authority/12UE,Huntingdonshire District Council,200725,SMI INT GROUP LTD SMI GROUP,93071,08/12/2023,INV1348221,PPE,08/02/2024,20.63,103.14,123.77,Hinchingbrooke Park Management,"Clothes, Uniform And Laundry",62000
http://statistics.data.gov.uk/id/local-authority/12UE,Huntingdonshire District Council,200725,SMI INT GROUP LTD SMI GROUP,93071,08/12/2023,INV1348221,PPE,08/02/2024,2.06,10.3,12.36,Hinchingbrooke Park Management,"Clothes, Uniform And Laundry",62000
http://statistics.data.gov.uk/id/local-authority/12UE,Huntingdonshire District Council,203159,Abbey Locksmiths,94515,01/03/2024,INV-3244,HCP Locksmith Services,08/03/2024,0,365,365,Hinchingbrooke Park Management,Other Services,69150
http://statistics.data.gov.uk/id/local-authority/12UE,Huntingdonshire District Council,200060,ARTHUR IBBETT LTD ARTHUR IBBETT LTD,94615,01/03/2024,169232,Little Paxton NR - Materials,22/03/2024,94.4,472,566.4,Barford Road Pocket Park,Equipment,61713
http://statistics.data.gov.uk/id/local-authority/12UE,Huntingdonshire District Council,200060,ARTHUR IBBETT LTD ARTHUR IBBETT LTD,94615,01/03/2024,169232,Little Paxton NR - Materials,22/03/2024,94.4,472,566.4,Barford Road Pocket Park,Equipment,61713
http://statistics.data.gov.uk/id/local-authority/12UE,Huntingdonshire District Council,200060,ARTHUR IBBETT LTD ARTHUR IBBETT LTD,94615,01/03/2024,169232,Little Paxton NR - Materials,22/03/2024,52,260,312,Barford Road Pocket Park,Equipment,61713
http://statistics.data.gov.uk/id/local-authority/12UE,Huntingdonshire District Council,202448,FIBREGRID LTD,93780,20/02/2024,100 / 10030620,Materials,14/03/2024,815,4075,4890,Holt Island,Materials,61709
